{"text_format":"1","workbook":"xlsx","n_sheets":15,"sheets":["Données ménage","Données bâti","Consommation et énergies","Chauffage ventilation","Eau","Froid","Lavage  sechage","Eclairage","Veilles","Accompagnement","Recap visite","Rapport visite","MAJ Données","Indicateurs","liste preconisations"],"not_rendered":{"charts":0,"images":12,"macros":1,"external_links":0,"defined_names":5,"comments":5,"pivot_tables":6},"unopened":[],"bounds":{"document_bytes":16777216,"sheet_cells":100000,"rows_first":2000,"rows_last":500,"rows_between":2000,"halvings":0,"cell_chars":16384,"cell_head_chars":4096},"cells_cut":0,"cells_raw":0,"read":"whole","date_system":"1900"}

{"sheet":"Données ménage","index":0,"n_rows":102,"n_cols":24,"rows_kept":102,"cut":false,"hidden":false,"merged":[[17,1,17,9],[8,7,8,8],[13,7,13,8],[21,7,21,8],[9,7,9,8],[19,7,19,8],[10,7,10,8],[4,3,4,5],[14,7,14,8],[11,7,11,8],[6,1,6,9],[16,2,16,8],[12,7,12,8],[46,4,46,5],[45,4,45,5],[44,4,44,5],[24,1,24,9],[36,34,37,34],[36,31,37,31],[36,32,37,32],[36,33,37,33],[42,1,42,9],[35,1,35,9],[34,2,34,8],[41,2,41,8],[37,6,37,7],[26,7,26,8]]}
[true]
[]
[null,null,null,null,null,"Case jaune =","à remplir"]
[]
[null,null,null,"Données sur le ménage"]
[]
[null,"Coordonnées du ménage visité"]
[]
[null,null,"Nom de famille :",null,null,"Prénom :"]
[null,null,"N° du contact",null,null,"Civilité"]
[null,null,"N° et nom de la voie :",null,null,"Commune :"]
[null,null,"Code Postal :",null,null,"Région:",null,"Lorraine"]
[null,null,"N° appartement :",null,null,"Bâtiment :"]
[null,null,"Palier :",null,null,"Digicode :"]
[null,null,"Téléphone fixe :",null,null,"Téléphone portable : "]
[]
[]
[null,"Intervenants conseillers energie"]
[]
[null,null,"Chargé de visite n° 1 :","Amélie LOMBARD / ROY MATHIS",null,"Chargé de visite n° 2 : "]
[null,null,null,null,null,null,null,null,false]
[null,null,"Date de 1ère visite :","2023-07-21",null,"Date de 2ème visite :"]
[]
[]
[null,"Occupation du logement"]
[]
[null,null,"Nombre d'occupants",null,null,"Profil du ménage"]
[null,null,"     Dont enfants de moins de 12 ans"]
[null,null,"Dont personne de + de 60 ans"]
[null,null,"Problèmes respiratoires",null,"       Nb de personnes concernées:"]
[null,null,null,null,"       Dont enfants:"]
[null,null,"Présence continue en journée : "]
[null,null,"Nb de semaines d'abscence par an",null,"       Soit une présence (en j/an) de:",null,{"$f":"365-(D33*7)","v":365}]
[]
[]
[null,"Statut d’occupation"]
[]
[null,null,"Statut d’occupation","Locataire social",null,"Nom du bailleur:","VOSGELIS"]
[null,null,"Date d'entrée dans le logement :"]
[]
[]
[]
[null,"Situation sociale et économique du ménage"]
[]
[null,null,"Revenu annuel disponible :",null,"   Montant du revenu annuel:"]
[null,null,null,null,"    Nombre personnes rattachés:"]
[null,null,"Autres revenus (CAF, RSA, etc)",null,"   Montant annuel autres revenus:"]
[null,null,"Suivi par un travailleur social : ",null,"    Nom du travailleur social:"]
[null,null,null,null,"    Structure travailleur social:"]
[null,null,null,null,"    Téléphone travailleur social:"]
[null,null,"Aides énergie perçues (FSL):",null,"    Année de la dernière aide perçue:"]
[null,null,"CMU Complémentaire",null,"     Eligible CMU-C",null,null,{"$f":"IF(OR(D45=\"\",D45=\"Non\",H45=\"\",D27=\"\"),\"Inconnu\",IF(AND(D45=\"Oui\",S98>0,H45<S98),\"Eligible\",IF(AND(D45=\"Oui\",S98>0,H45>S98),\"Non éligible\",\"Inconnu\")))","v":"Inconnu"}]
[null,null,"ACS (Aide à la Complémentaire Santé)",null,"     Eligible ACS",null,null,{"$f":"IF(OR(D45=\"\",D45=\"Non\",H45=\"\",D27=\"\"),\"Inconnu\",IF(AND(D45=\"Oui\",T98>0,H45<T98),\"Eligible\",IF(AND(D45=\"Oui\",T98>0,H45>T98),\"Non éligible\",\"Inconnu\")))","v":"Inconnu"}]
[null,null,null,null,"     Eligible aides ANAH",null,null,{"$f":"IF(OR(D45=\"Non\",D45=\"\",H45=\"\"),\"Inconnu\",IF(AND(D45=\"Oui\",D38=\"Propriétaire\",H45=\"\"),\"Inconnu\",IF(AND(D45=\"Non\",D38=\"Propriétaire\"),\"Inconnu\",IF(D38<>\"Propriétaire\",\"Non éligible\",IF(AND(D45=\"Oui\",R98>0,D38=\"Propriétaire\",H45<R98),\"Eligible\",IF(AND(D45=\"Oui\",R98>0,H45>R98),\"Non éligible\",\"Inconnu\"))))))","v":"Inconnu"}]
[null,null,null,null,"     Eligible PACTE Energie Solidarité",null,null,{"$f":"IF(OR(D45=\"Non\",D45=\"\",H45=\"\"),\"Inconnu\",IF(OR('Données bâti'!E17<>\"Individuel\",'Données bâti'!H14<>\"Non\"),\"Non éligible\",IF(AND('Données bâti'!E17=\"Individuel\",'Données bâti'!H14=\"Non\",H45<R98),\"Eligible\",IF(OR(H45>R98,'Données bâti'!E17=\"Collectif\",'Données bâti'!H14=\"Oui\"),\"Non éligible\",\"Inconnu\"))))","v":"Inconnu"}]
[]
[]
[]
[]
[]
[null,null,null,null,null,null,null,null,null,null,null,null,null,null,null,null,"Données à ne pas modifier"]
[null,null,null,null,null,null,null,null,null,null,null,null,null,null,null,null,"Civilité","Nb occupants","Nb Enfants/pers. Agées","Semaines absence","Statut occupation","Choix","Date entrée","Profil ménage"]
[null,null,null,null,null,null,null,null,null,null,null,null,null,null,null,null,"Mme",1,0,0,"Locataire privé","Oui","< 5 ans","Personne seule"]
[null,null,null,null,null,null,null,null,null,null,null,null,null,null,null,null,"M.",2,1,1,"Locataire social","Non","Entre 5 et 10 ans","Adulte avec enfants"]
[null,null,null,null,null,null,null,null,null,null,null,null,null,null,null,null,"Mlle",3,2,2,"Propriétaire",null,"Entre 10 et 20 ans","Couple avec enfants"]
[null,null,null,null,null,null,null,null,null,null,null,null,null,null,null,null,null,4,3,3,"Logé gratuitement",null,"> 20 ans","Couple sans enfants"]
[null,null,null,null,null,null,null,null,null,null,null,null,null,null,null,null,null,5,4,4,null,null,null,"Autre"]
[null,null,null,null,null,null,null,null,null,null,null,null,null,null,null,null,null,6,5,5]
[null,null,null,null,null,null,null,null,null,null,null,null,null,null,null,null,null,7,6,6]
[null,null,null,null,null,null,null,null,null,null,null,null,null,null,null,null,null,8,7,7]
[null,null,null,null,null,null,null,null,null,null,null,null,null,null,null,null,null,9,8,8]
[null,null,null,null,null,null,null,null,null,null,null,null,null,null,null,null,null,10,9,9]
[null,null,null,null,null,null,null,null,null,null,null,null,null,null,null,null,null,11,10,10]
[null,null,null,null,null,null,null,null,null,null,null,null,null,null,null,null,null,12,null,11]
[null,null,null,null,null,null,null,null,null,null,null,null,null,null,null,null,null,13,null,12]
[null,null,null,null,null,null,null,null,null,null,null,null,null,null,null,null,null,14]
[null,null,null,null,null,null,null,null,null,null,null,null,null,null,null,null,null,15]
[null,null,null,null,null,null,null,null,null,null,null,null,null,null,null,null,null,null,null,null,null,null,"DH (19°C)"]
[null,null,null,null,null,null,null,null,null,null,null,null,null,null,null,null,"Eléments de calcul",null,null,null,null,"Alsace",81000]
[null,null,null,null,null,null,null,null,null,null,null,null,null,null,null,null,"Plafond ressources aides ANAH/CMU-C/ACS ",null,null,null,null,"Aquitaine",60000]
[null,null,null,null,null,null,null,null,null,null,null,null,null,null,null,null,"nb pers","ANAH","CMU-C","ACS",null,"Auvergne",75000]
[null,null,null,null,null,null,null,null,null,null,null,null,null,null,null,null,1,{"$f":"IF('MAJ Données'!$C$30='MAJ Données'!$C$31,'MAJ Données'!D33,IF('MAJ Données'!$C$30='MAJ Données'!$E$31,'MAJ Données'!F33,'MAJ Données'!D33))","v":24094},{"$f":"'MAJ Données'!C20","v":9719},{"$f":"'MAJ Données'!C9","v":13120},null,"Basse Normandie",75000]
[null,null,null,null,null,null,null,null,null,null,null,null,null,null,null,null,2,{"$f":"IF('MAJ Données'!$C$30='MAJ Données'!$C$31,'MAJ Données'!D34,IF('MAJ Données'!$C$30='MAJ Données'!$E$31,'MAJ Données'!F34,'MAJ Données'!D34))","v":35362},{"$f":"'MAJ Données'!C21","v":14578},{"$f":"'MAJ Données'!C10","v":19680},null,"Bourgogne",75000]
[null,null,null,null,null,null,null,null,null,null,null,null,null,null,null,null,3,{"$f":"IF('MAJ Données'!$C$30='MAJ Données'!$C$31,'MAJ Données'!D35,IF('MAJ Données'!$C$30='MAJ Données'!$E$31,'MAJ Données'!F35,'MAJ Données'!D35))","v":42471},{"$f":"'MAJ Données'!C22","v":17494},{"$f":"'MAJ Données'!C11","v":23616},null,"Bretagne",69000]
[null,null,null,null,null,null,null,null,null,null,null,null,null,null,null,null,4,{"$f":"IF('MAJ Données'!$C$30='MAJ Données'!$C$31,'MAJ Données'!D36,IF('MAJ Données'!$C$30='MAJ Données'!$E$31,'MAJ Données'!F36,'MAJ Données'!D36))","v":49592},{"$f":"'MAJ Données'!C23","v":20409},{"$f":"'MAJ Données'!C12","v":27533},null,"Centre",73000]
[null,null,null,null,null,null,null,null,null,null,null,null,null,null,null,null,5,{"$f":"IF('MAJ Données'!$C$30='MAJ Données'!$C$31,'Données ménage'!R85+'MAJ Données'!$D$38,IF('MAJ Données'!$C$30='MAJ Données'!$E$31,'Données ménage'!R85+'MAJ Données'!$F$38,'Données ménage'!R85+'MAJ Données'!$D$38))","v":56724},{"$f":"S85+'MAJ Données'!$C$24","v":24296},{"$f":"T85+'MAJ Données'!$C$13","v":32781},null,"Champagne-Ardenne",81000]
[null,null,null,null,null,null,null,null,null,null,null,null,null,null,null,null,6,{"$f":"IF('MAJ Données'!$C$30='MAJ Données'!$C$31,'Données ménage'!R86+'MAJ Données'!$D$38,IF('MAJ Données'!$C$30='MAJ Données'!$E$31,'Données ménage'!R86+'MAJ Données'!$F$38,'Données ménage'!R86+'MAJ Données'!$D$38))","v":63856},{"$f":"S86+'MAJ Données'!$C$24","v":28183},{"$f":"T86+'MAJ Données'!$C$13","v":38029},null,"Corse",41000]
[null,null,null,null,null,null,null,null,null,null,null,null,null,null,null,null,7,{"$f":"IF('MAJ Données'!$C$30='MAJ Données'!$C$31,'Données ménage'!R87+'MAJ Données'!$D$38,IF('MAJ Données'!$C$30='MAJ Données'!$E$31,'Données ménage'!R87+'MAJ Données'!$F$38,'Données ménage'!R87+'MAJ Données'!$D$38))","v":70988},{"$f":"S87+'MAJ Données'!$C$24","v":32070},{"$f":"T87+'MAJ Données'!$C$13","v":43277},null,"Franche-Comté",80000]
[null,null,null,null,null,null,null,null,null,null,null,null,null,null,null,null,8,{"$f":"IF('MAJ Données'!$C$30='MAJ Données'!$C$31,'Données ménage'!R88+'MAJ Données'!$D$38,IF('MAJ Données'!$C$30='MAJ Données'!$E$31,'Données ménage'!R88+'MAJ Données'!$F$38,'Données ménage'!R88+'MAJ Données'!$D$38))","v":78120},{"$f":"S88+'MAJ Données'!$C$24","v":35957},{"$f":"T88+'MAJ Données'!$C$13","v":48525},null,"Haute Normandie",81000]
[null,null,null,null,null,null,null,null,null,null,null,null,null,null,null,null,9,{"$f":"IF('MAJ Données'!$C$30='MAJ Données'!$C$31,'Données ménage'!R89+'MAJ Données'!$D$38,IF('MAJ Données'!$C$30='MAJ Données'!$E$31,'Données ménage'!R89+'MAJ Données'!$F$38,'Données ménage'!R89+'MAJ Données'!$D$38))","v":85252},{"$f":"S89+'MAJ Données'!$C$24","v":39844},{"$f":"T89+'MAJ Données'!$C$13","v":53773},null,"Ile-de-France",69500]
[null,null,null,null,null,null,null,null,null,null,null,null,null,null,null,null,9,{"$f":"IF('MAJ Données'!$C$30='MAJ Données'!$C$31,'Données ménage'!R90+'MAJ Données'!$D$38,IF('MAJ Données'!$C$30='MAJ Données'!$E$31,'Données ménage'!R90+'MAJ Données'!$F$38,'Données ménage'!R90+'MAJ Données'!$D$38))","v":92384},{"$f":"S90+'MAJ Données'!$C$24","v":43731},{"$f":"T90+'MAJ Données'!$C$13","v":59021},null,"Languedoc-Roussillon",50000]
[null,null,null,null,null,null,null,null,null,null,null,null,null,null,null,null,10,{"$f":"IF('MAJ Données'!$C$30='MAJ Données'!$C$31,'Données ménage'!R91+'MAJ Données'!$D$38,IF('MAJ Données'!$C$30='MAJ Données'!$E$31,'Données ménage'!R91+'MAJ Données'!$F$38,'Données ménage'!R91+'MAJ Données'!$D$38))","v":99516},{"$f":"S91+'MAJ Données'!$C$24","v":47618},{"$f":"T91+'MAJ Données'!$C$13","v":64269},null,"Limousin",73000]
[null,null,null,null,null,null,null,null,null,null,null,null,null,null,null,null,11,{"$f":"IF('MAJ Données'!$C$30='MAJ Données'!$C$31,'Données ménage'!R92+'MAJ Données'!$D$38,IF('MAJ Données'!$C$30='MAJ Données'!$E$31,'Données ménage'!R92+'MAJ Données'!$F$38,'Données ménage'!R92+'MAJ Données'!$D$38))","v":106648},{"$f":"S92+'MAJ Données'!$C$24","v":51505},{"$f":"T92+'MAJ Données'!$C$13","v":69517},null,"Lorraine",82000]
[null,null,null,null,null,null,null,null,null,null,null,null,null,null,null,null,12,{"$f":"IF('MAJ Données'!$C$30='MAJ Données'!$C$31,'Données ménage'!R93+'MAJ Données'!$D$38,IF('MAJ Données'!$C$30='MAJ Données'!$E$31,'Données ménage'!R93+'MAJ Données'!$F$38,'Données ménage'!R93+'MAJ Données'!$D$38))","v":113780},{"$f":"S93+'MAJ Données'!$C$24","v":55392},{"$f":"T93+'MAJ Données'!$C$13","v":74765},null,"Midi-Pyrénées",60000]
[null,null,null,null,null,null,null,null,null,null,null,null,null,null,null,null,13,{"$f":"IF('MAJ Données'!$C$30='MAJ Données'!$C$31,'Données ménage'!R94+'MAJ Données'!$D$38,IF('MAJ Données'!$C$30='MAJ Données'!$E$31,'Données ménage'!R94+'MAJ Données'!$F$38,'Données ménage'!R94+'MAJ Données'!$D$38))","v":120912},{"$f":"S94+'MAJ Données'!$C$24","v":59279},{"$f":"T94+'MAJ Données'!$C$13","v":80013},null,"Nord-Pas-de-Calais",81000]
[null,null,null,null,null,null,null,null,null,null,null,null,null,null,null,null,14,{"$f":"IF('MAJ Données'!$C$30='MAJ Données'!$C$31,'Données ménage'!R95+'MAJ Données'!$D$38,IF('MAJ Données'!$C$30='MAJ Données'!$E$31,'Données ménage'!R95+'MAJ Données'!$F$38,'Données ménage'!R95+'MAJ Données'!$D$38))","v":128044},{"$f":"S95+'MAJ Données'!$C$24","v":63166},{"$f":"T95+'MAJ Données'!$C$13","v":85261},null,"Pays de la Loire",65000]
[null,null,null,null,null,null,null,null,null,null,null,null,null,null,null,null,15,{"$f":"IF('MAJ Données'!$C$30='MAJ Données'!$C$31,'Données ménage'!R96+'MAJ Données'!$D$38,IF('MAJ Données'!$C$30='MAJ Données'!$E$31,'Données ménage'!R96+'MAJ Données'!$F$38,'Données ménage'!R96+'MAJ Données'!$D$38))","v":135176},{"$f":"S96+'MAJ Données'!$C$24","v":67053},{"$f":"T96+'MAJ Données'!$C$13","v":90509},null,"Picardie",82500]
[null,null,null,null,null,null,null,null,null,null,null,null,null,null,null,null,null,{"$f":"IF(AND(D45=\"oui\",H45<>\"\",H46<>\"\"),VLOOKUP(H46,Q82:U97,2),IF(AND(D45=\"oui\",H45<>\"\",H46=\"\"),VLOOKUP(D27,Q82:U97,2),0))","v":0},{"$f":"IF(AND(D45=\"oui\",H45<>\"\",H46<>\"\"),VLOOKUP(H46,Q82:U97,3),IF(AND(D45=\"oui\",H45<>\"\",H46=\"\"),VLOOKUP(D27,Q82:U97,3),0))","v":0},{"$f":"IF(AND(D45=\"oui\",H45<>\"\",H46<>\"\"),VLOOKUP(H46,Q82:U97,4),IF(AND(D45=\"oui\",H45<>\"\",H46=\"\"),VLOOKUP(D27,Q82:U97,4),0))","v":0},null,"Poitou-Charentes",59000]
[null,null,null,null,null,null,null,null,null,null,null,null,null,null,null,null,null,null,null,null,null,"Provence-Alpes-Côte-d'Azur",38500]
[null,null,null,null,null,null,null,null,null,null,null,null,null,null,null,null,null,"Eligible","Bénéficie",null,{"$f":"IF(AND(R101=\"non\",R102=\"non\"),\"Non éligible\",IF(AND(T101<>\"-\",T102<>\"-\"),\"Eligible au TSS et TPN et n'en bénéficie pas\",IF(AND(T101<>\"-\",T102=\"-\"),\"Eligible au TSS et n'en bénéficie pas\",IF(AND(T101=\"-\",T102<>\"-\"),\"Eligible au TPN et n'en bénéficie pas\",IF('Consommation et énergies'!D22=\"Les 2\",\"Bénéficie du TPN et TSS\",'Consommation et énergies'!D22)))))","v":"Non éligible"},"Rhône-Alpes",72000]
[null,null,null,null,null,null,null,null,null,null,null,null,null,null,null,null,"TSS",{"$f":"IF(AND(OR('Consommation et énergies'!D8=\"Gaz naturel\",'Consommation et énergies'!D11=\"Gaz naturel\"),OR('Données ménage'!D52=\"oui\",'Données ménage'!D53=\"oui\")),\"oui\",\"non\")","v":"non"},{"$f":"IF(OR('Consommation et énergies'!D22='Consommation et énergies'!AW96,'Consommation et énergies'!D22='Consommation et énergies'!AW97),\"En bénéficie\",\"non\")","v":"non"},{"$f":"IF(AND(R101=\"oui\",S101=\"non\"),\"Eligible au TSS et n'en bénéficie pas\",\"-\")","v":"-"},null,null,{"$f":"AVERAGE(W79:W100)","v":69250}]
[null,null,null,null,null,null,null,null,null,null,null,null,null,null,null,null,"TPN",{"$f":"IF(OR('Données ménage'!D52=\"Oui\",'Données ménage'!D53=\"Oui\"),\"oui\",\"non\")","v":"non"},{"$f":"IF(OR('Consommation et énergies'!D22='Consommation et énergies'!AW95,'Consommation et énergies'!D22='Consommation et énergies'!AW97),\"En bénéficie\",\"non\")","v":"non"},{"$f":"IF(AND(R102=\"oui\",S102=\"non\"),\"Eligible au TPN et n'en bénéficie pas\",\"-\")","v":"-"}]

{"sheet":"Données bâti","index":1,"n_rows":105,"n_cols":34,"rows_kept":105,"cut":false,"hidden":false,"merged":[[16,2,16,3],[13,2,13,3],[14,2,14,3],[34,1,34,14],[45,2,45,5],[42,2,42,4],[38,2,38,4],[44,2,44,4],[28,2,28,7],[29,2,29,7],[30,2,30,7],[46,2,46,4],[47,2,47,4],[36,2,36,4],[37,2,37,4],[50,11,50,13],[49,2,49,13],[46,10,46,11],[59,3,59,4],[2,6,2,7],[3,6,3,7],[2,4,2,5],[7,1,7,14],[3,4,3,5],[9,2,9,4],[9,6,9,9],[24,2,24,7],[9,11,9,13],[10,7,10,8],[12,7,12,8],[22,1,22,14],[11,7,11,8],[10,12,10,13],[11,12,11,13]]}
[]
[]
[null,null,null,null,"Nom du/ des chargé(s) de visite",null,{"$f":"IF('Données ménage'!D20<>\"\",'Données ménage'!D20&IF('Données ménage'!H20<>\"\",\"/ \"&'Données ménage'!H20,\"\"))","v":"Amélie LOMBARD / ROY MATHIS"},null,null,null,null,"Case jaune =","à remplir"]
[null,null,null,null,"Nom de la famille",null,{"$f":"IF('Données ménage'!$D$9<>\"\",'Données ménage'!D9,\"\")","v":""}]
[]
[null,null,null,null,null,null,null,"Données du bâti"]
[]
[null,"Caractéristiques du bâti"]
[]
[null,null,"Général",null,null,null,"Individuel",null,null,null,null,"Collectif"]
[null,null,"Nombre d'occupants",null,{"$f":"'Données ménage'!D27","v":0},null,"Nombre de niveaux",null,null,null,null,"Position"]
[null,null,"Nb semaines d'abscence",null,{"$f":"'Données ménage'!D33","v":0},null,"Mitoyenneté",null,null,null,null,"Forme"]
[null,null,"Nombre de pièces",null,null,null,"Forme","Compact",null,null,null,"Nombre de lots","> 50 lots"]
[null,null,"Surface habitable (m²)",null,null,null,"Combles aménagées","Non",null,null,null,"Rénovation","Oui"]
[null,null,"Hauteur sous plafond",null,2.5,null,"Rénovation réalisée","Oui","Année des travaux",null,null,null,"Année des travaux","< 5 ans"]
[null,null,"Année de construction",null,null,null,null,null,"Travaux réalisés 1",null,null,null,"Travaux réalisés 1","Isolation murs"]
[null,null,"Type d'habitation",null,"Collectif",null,null,null,"Travaux réalisés 2",null,null,null,"Travaux réalisés 2","Changement fenêtres"]
[null,null,null,null,null,null,null,null,"Travaux réalisés 3",null,null,null,"Travaux réalisés 3","Ravalement de façade"]
[]
[]
[]
[]
[null,"Etat général extérieur"]
[]
[null,null,"Avez-vous pris des photos de l'extérieur du bâti?",null,null,null,null,null,"Non"]
[null,null,"Météo extérieure",null,null,null,null,null,"Pluvieux/ humide"]
[null,null,"Température extérieure mesurée"]
[null,null,"Taux d'humidité extérieur mesuré",null,null,null,null,null,0.93]
[null,null,"La toiture paraît-elle en bon état ?  ",null,null,null,null,null,"Oui"]
[null,null,"Le dispositif d'évacuation des eaux (chénaux, gouttières) est-il en bon état ? ",null,null,null,null,null,"Oui"]
[null,null,"L’immeuble ou la maison est-il protégé des remontées d’eau ? ",null,null,null,null,null,"Oui"]
[]
[]
[]
[null,"Etat général intérieur"]
[]
[null,null,"Avez-vous pris des photos de l'intérieur du logement ?",null,null,null,"Non"]
[null,null,"Le logement est-il difficile à chauffer?"]
[null,null,"Murs vers l'extérieur froid au toucher en hiver"]
[null,null,"Sensation de confort dans le logement perçu par le chargé de visite",null,null,null,"Normal"]
[null,null,"Niveau de confort perçu par l'occupant en hiver (0 nul à 5 très bon)"]
[null,null,"Niveau d'humidité perçu par l'occupant (0 nul à 5 très humide)"]
[null,null,"Type de ventilation"]
[null,null,"Présence de bouches d'extraction d'air"]
[null,null,"Etat des menuiseries",null,null,null,"Bon"]
[null,null,"Température mesurée du mur"]
[null,null,"Température mesurée dans la pièce principale"]
[null,null,"Taux d'humidité mesuré dans la pièce principale (en %)",null,null,null,60]
[]
[null,null,"Observations"]
[null,null,false,"Surface de la pièce principale inférieure à 9m²",null,null,null,false,"Pas d'alimentation en eau potable"]
[null,null,false,"Logement très sombre la journée",null,null,null,false,"Installation électrique dangereuse/défectueuse"]
[null,null,false,"Présence d'insectes ou rongeurs",null,null,null,false,"Absence de chauffage"]
[null,null,false,"Peinture écaillée à l'ancienne",null,null,null,false,"Absence de WC dans le logement"]
[null,null,false,"Fortes odeurs d'humidité",null,null,null,null,"Absence de salle d'eau"]
[null,null,false,"Fortes odeurs de canalisation",null,null,null,false,"Absence d'eau chaude"]
[null,null,false,"Fenêtre(s) cassée(s), laissant passer l'air",null,null,null,false,"Absence de fenêtres dans les pièces principales"]
[]
[null,null,null,"Le logement paraît-il insalubre?",null,null,"Non"]
[null,null,null,"Procédure d'insalubrité en cours? "]
[]
[]
[]
[]
[]
[]
[]
[]
[]
[]
[null,null,null,null,null,null,null,null,null,null,null,null,null,null,null,null,null,"Données à ne pas modifier"]
[null,null,null,null,null,null,null,null,null,null,null,null,null,null,null,null,null,"Listes déroulantes"]
[null,null,null,null,null,null,null,null,null,null,null,null,null,null,null,null,null,"Année construction","Nb Pièces","Type logement","Nb niveaux individuel","Mitoyenneté","Travaux","Forme","Position","Ancienneté travaux","nombre de lots","Confort ressenti","Niveau confort/humidité","Meteo","Type de ventilation","menuiseries","Choix 1","Choix 2"]
[null,null,null,null,null,null,null,null,null,null,null,null,null,null,null,null,null,"Inconnue",1,"Individuel",1,"Indépendante","Isolation toiture","Compact","Sous les toits","< 5 ans","< 10 lots","Trop chaud",0,"Pluvieux/ humide","Naturelle","Bon","Oui","Inconnu"]
[null,null,null,null,null,null,null,null,null,null,null,null,null,null,null,null,null,"<1949",2,"Collectif",1.5,"1 petit côté","Isolation murs","Allongé","Etage intermédiaire","Entre 5 et 10 ans","10 - 50 lots","Trop froid",1,"Temps sec","VMC ","Moyen","Non","Oui"]
[null,null,null,null,null,null,null,null,null,null,null,null,null,null,null,null,null,"1950-1974",3,null,2,"2 petits côtés","Isolation plancher","Autre","Rez-de-chaussée","Entre 11 et 20 ans","> 50 lots","Normal",2,null,"Inconnu","Dégradées",null,"Non"]
[null,null,null,null,null,null,null,null,null,null,null,null,null,null,null,null,null,"1975-1981",4,null,2.5,"1 grand côté","Changement fenêtres",null,null,"> de 20 ans",null,"Non pertinent (hors saison de chauffe)",3,null,null,"Très dégradées"]
[null,null,null,null,null,null,null,null,null,null,null,null,null,null,null,null,null,"1982-1989",5,null,3,"1 grand côté + 1 petit côté","Changement chaudière",null,null,null,null,null,4]
[null,null,null,null,null,null,null,null,null,null,null,null,null,null,null,null,null,"1990-1999",6,null,null,"2 grands côtés","Ravalement de façade",null,null,null,null,null,5]
[null,null,null,null,null,null,null,null,null,null,null,null,null,null,null,null,null,"2000-2005",7]
[null,null,null,null,null,null,null,null,null,null,null,null,null,null,null,null,null,">2005"]
[]
[]
[]
[null,null,null,null,null,null,null,null,null,null,null,null,null,null,null,null,null,"Eléments de calcul"]
[null,null,null,null,null,null,null,null,null,null,null,null,null,null,null,null,null,"Calcul des apports de chaleur internes et externes"]
[]
[null,null,null,null,null,null,null,null,null,null,null,null,null,null,null,null,null,"Apports solaire/ appareils électriques, éclairage, cuisine","Date construction","Taux apports selon âge","Collectif - Coef G selon date construction","Individuel - Coef G selon date construction","Travaux réalisés","Individuel","Collectif","Nb occupants","Apport"]
[null,null,null,null,null,null,null,null,null,null,null,null,null,null,null,null,null,0.25,"Inconnue",0.18,1.4,1.6,"Isolation toiture",{"$f":"IF(OR($J$16=W89,$J$17=W89,$J$18=W89,$N$16=W89,$N$17=W89,$N$18=W89),0.17,0)","v":0},{"$f":"IF(AND($E$17=$T$75,$M$11<>Y74),X89/2,X89)","v":0},1,1.4999999999999999E-2]
[null,null,null,null,null,null,null,null,null,null,null,null,null,null,null,null,null,null,"<1949",0.03,2.2000000000000002,2.5,"Isolation murs",{"$f":"IF(OR($J$16=W90,$J$17=W90,$J$18=W90,$N$16=W90,$N$17=W90,$N$18=W90),0.11,0)","v":0.11},{"$f":"IF(AND(OR($J$16=W90,$J$17=W90,$J$18=W90,$N$16=W90,$N$17=W90,$N$18=W90),M11=Y75),0.16,IF(OR($J$16=W90,$J$17=W90,$J$18=W90,$N$16=W90,$N$17=W90,$N$18=W90),0.12,0))","v":0.12},2,{"$f":"AA89+0.025","v":0.04}]
[null,null,null,null,null,null,null,null,null,null,null,null,null,null,null,null,null,null,"1950-1974",6.5000000000000002E-2,1.8,2,"Isolation plancher",{"$f":"IF(OR($J$16=W91,$J$17=W91,$J$18=W91,$N$16=W91,$N$17=W91,$N$18=W91),0.09,0)","v":0},{"$f":"IF(AND($E$17=$T$75,$M$11<>Y76),X91/2,X91)","v":0},3,{"$f":"AA90+0.025","v":6.5000000000000002E-2}]
[null,null,null,null,null,null,null,null,null,null,null,null,null,null,null,null,null,null,"1975-1981",0.17,1.4,1.5,"Changement fenêtres",{"$f":"IF(OR($J$16=W92,$J$17=W92,$J$18=W92,$N$16=W92,$N$17=W92,$N$18=W92),0.06,0)","v":0.06},{"$f":"X92","v":0.06},4,0.09]
[null,null,null,null,null,null,null,null,null,null,null,null,null,null,null,null,null,null,"1982-1989",0.28000000000000003,1,1.1000000000000001,"Changement chaudière",null,null,5,0.11499999999999999]
[null,null,null,null,null,null,null,null,null,null,null,null,null,null,null,null,null,null,"1990-1999",0.33,0.8,0.85,"Ravalement de façade",null,null,6,0.13999999999999999]
[null,null,null,null,null,null,null,null,null,null,null,null,null,null,null,null,null,null,"2000-2005",0.37,0.75,0.75,null,null,null,7,0.16499999999999998]
[null,null,null,null,null,null,null,null,null,null,null,null,null,null,null,null,null,null,">2005",0.39,0.55000000000000004,0.6,null,null,null,8,0.18999999999999997]
[null,null,null,null,null,null,null,null,null,null,null,null,null,null,null,null,null,null,null,null,null,null,null,null,null,9,0.21499999999999997]
[null,null,null,null,null,null,null,null,null,null,null,null,null,null,null,null,null,null,"Tx travaux réalisés",null,null,null,null,null,null,10,0.23999999999999996]
[null,null,null,null,null,null,null,null,null,null,null,null,null,null,null,null,null,null,{"$f":"IF(E17=T74,SUM(X89:X92),SUM(Y89:Y92))","v":0.18},null,null,null,null,null,null,11,0.26499999999999996]
[null,null,null,null,null,null,null,null,null,null,null,null,null,null,null,null,null,null,"Taux d'occupation:",null,null,null,null,null,null,12,0.28999999999999998]
[null,null,null,null,null,null,null,null,null,null,null,null,null,null,null,null,null,null,{"$f":"'Données ménage'!G33/365","v":1},null,null,null,null,null,null,13,0.315]
[null,null,null,null,null,null,null,null,null,null,null,null,null,null,null,null,null,null,"Taux présence:",null,null,null,null,null,null,14,0.34]
[null,null,null,null,null,null,null,null,null,null,null,null,null,null,null,null,null,null,{"$f":"IF('Données ménage'!D32=\"Non\",0.85,1)","v":1},null,null,null,null,null,null,15,0.36500000000000005]
[null,null,null,null,null,null,null,null,null,null,null,null,null,null,null,null,null,null,"Tx récupération apports totaux"]
[null,null,null,null,null,null,null,null,null,null,null,null,null,null,null,null,null,null,{"$f":"(1-R89)-(VLOOKUP(E16,S89:T96,2,FALSE)+VLOOKUP('Données bâti'!E11,'Données bâti'!Z89:AA103,2,FALSE)+S99)","v":{"$error":"#N/A"}},{"$f":"R89+(VLOOKUP(E16,S89:T96,2,FALSE)+VLOOKUP('Données bâti'!E11,'Données bâti'!Z89:AA103,2,FALSE)+S99)","v":{"$error":"#N/A"}}]

{"sheet":"Consommation et énergies","index":2,"n_rows":159,"n_cols":57,"rows_kept":159,"cut":false,"hidden":false,"merged":[[14,22,14,26],[13,22,13,26],[9,3,9,6],[9,8,9,12],[9,13,9,16],[10,3,10,6],[10,8,10,12],[10,13,10,16],[10,18,10,21],[10,22,10,25],[11,3,11,6],[11,8,11,12],[11,13,11,16],[11,18,11,21],[11,22,11,25],[13,13,13,16],[13,18,13,21],[14,8,14,12],[14,3,14,6],[2,3,2,7],[2,8,2,13],[2,16,2,20],[3,3,3,7],[3,8,3,13],[5,1,5,27],[7,3,7,6],[7,8,7,12],[7,13,7,16],[7,18,7,21],[7,22,7,25],[8,8,8,12],[8,13,8,16],[73,13,73,17],[40,2,40,26],[44,3,44,6],[14,13,14,16],[14,18,14,21],[27,20,27,24],[27,25,27,26],[19,1,19,27],[23,2,23,26],[60,3,60,6],[29,25,29,26],[18,2,18,15],[25,3,25,6],[21,3,21,6],[27,3,27,6],[27,12,27,14],[27,15,27,18],[58,3,58,6],[58,9,58,14],[58,15,58,18],[13,3,13,6],[13,8,13,12],[16,10,16,11],[34,6,34,25],[30,20,30,24],[30,25,30,26],[33,3,33,6],[33,7,33,10],[28,15,28,18],[28,20,28,24],[28,25,28,26],[25,13,25,16],[25,23,25,26],[16,22,16,23],[28,9,28,14],[47,9,47,13],[50,23,50,25],[35,3,35,5],[36,3,36,5],[38,18,38,19],[38,20,38,21],[36,6,36,7],[36,9,36,10],[36,12,36,13],[36,15,36,16],[44,25,44,26],[42,13,42,16],[42,23,42,26],[73,8,73,12],[59,24,59,25],[63,1,63,27],[69,3,69,6],[69,9,69,14],[69,15,69,18],[70,3,70,6],[70,9,70,14],[70,15,70,18],[65,3,65,6],[65,7,65,11],[65,12,65,15],[65,22,65,25],[65,17,65,21],[67,3,67,6],[67,9,67,14],[67,15,67,18],[53,15,53,16],[45,25,45,26],[53,9,53,10],[58,24,58,25],[56,1,56,27],[53,6,53,7],[53,3,53,5],[52,3,52,5],[50,3,50,6],[50,7,50,10],[51,6,51,26],[45,9,45,13],[48,9,48,13],[46,14,46,19],[45,14,45,19],[47,14,47,19],[48,14,48,19],[46,20,46,24],[46,25,46,26],[46,9,46,13],[47,20,47,24],[47,25,47,26],[48,20,48,24],[48,25,48,26],[60,39,61,39],[60,40,61,40],[60,41,61,41],[60,38,61,38],[29,15,29,18],[29,20,29,24],[36,18,36,19],[36,21,36,22],[45,20,45,24],[44,14,44,19],[36,24,36,25],[29,9,29,14],[42,8,42,12],[31,7,31,9],[38,6,38,7],[31,3,31,6],[33,23,33,25],[42,3,42,6],[44,9,44,13],[44,20,44,24],[53,18,53,19],[53,21,53,22],[53,24,53,25],[53,12,53,13]]}
[]
[]
[null,null,null,"Nom du/ des chargé(s) de visite",null,null,null,null,{"$f":"IF('Données ménage'!D20<>\"\",'Données ménage'!D20&IF('Données ménage'!H20<>\"\",\"/ \"&'Données ménage'!H20,\"\"))","v":"Amélie LOMBARD / ROY MATHIS"},null,null,null,null,null,null,null,"Case jaune =",null,null,null,null,"à remplir"]
[null,null,null,"Nom de la famille",null,null,null,null,{"$f":"IF('Données ménage'!$D$9<>\"\",'Données ménage'!D9,\"\")","v":""}]
[]
[null,"Les énergies"]
[]
[null,null,"Energie pour le chauffage:",null,null,null,null,null,"Type de chaudière:",null,null,null,null,null,null,null,null,null,"Type de compteur:"]
[null,null,null,null,null,null,null,null,"Age de la chaudière:"]
[null,null,"Type d'émetteurs",null,null,null,null,null,"Robinets thermostatiques"]
[null,null,"Energie pour l'eau chaude:",null,null,null,null,null,"Type de production:",null,null,null,null,null,null,null,null,null,"Type de compteur:"]
[null,null,"Energie pour la cuisson:",null,null,null,null,null,null,null,null,null,null,null,null,null,null,null,"Type de compteur:"]
[]
[null,null,"Présence chauffage d'appoint:",null,null,null,null,null,"Type d'appoint:",null,null,null,null,null,null,null,null,null,"Utilisation:"]
[null,null,null,null,null,null,null,null,"Nombre d'appoint(s):",null,null,null,null,null,null,null,null,null,"Raison d'utilisation:"]
[]
[null,null,null,null,null,null,null,null,null,null,null,null,null,null,null,null,null,null,null,null,null,"Vous privez vous de chauffage l'hiver?","Non"]
[]
[]
[null,"Les consommations d'énergie"]
[]
[null,null,"Tarifs sociaux:"]
[]
[null,null,"Electricité"]
[]
[null,null,"Difficultés à payer les factures",null,null,null,null,null,"En situation d'impayé",null,null,null,null,null,null,null,null,null,"Montant de l'impayé:"]
[]
[null,null,"Factures électricité disponibles:",null,null,null,null,null,null,null,null,null,"Fournisseur:",null,null,null,null,null,null,null,"Coût kWh",null,null,null,null,{"$f":"IF(P29=\"\",AG111,IF(P29=BB110,AG111,VLOOKUP(P29,AG126:AO140,9,FALSE)))","v":0.2228}]
[null,null,null,null,null,null,null,null,null,"Type d'abonnement","Type d'abonnement:",null,null,null,null,null,null,null,null,null,"Coût abonnement",null,null,null,null,{"$f":"IF(P29=\"\",0,IF(P29=BB110,0,VLOOKUP(P29,AG126:AN140,2,FALSE)))","v":0}]
[null,null,null,null,null,null,null,null,null,"Conso annuelle (en kWh)",null,null,null,null,null,{"$f":"IF(D28<>\"Oui\",\"\",IF(X34<>\"\",X34,IF(H34=\"\",\"Indiquer une période\",IF(AND(OR(H34<>\"\",H34<>\"Autres\"),G37=\"\"),\"Renseigner les consos\",IF(H34=\"Annuel\",AVERAGE(G37:Z37),IF(H34=\"Bi-annuel\",AVERAGE(G37:Z37)*2,IF(H34=\"Tous les 2 mois\",AVERAGE(G37:Z37)*6,IF(H34=\"Mensuel\",AVERAGE(G37:Z37)*12,\"Renseigner les cases jaunes\"))))))))","v":""},null,null,null,null,"Coût annuel",null,null,null,null,{"$f":"IF(OR(D28=\"\",D28=\"Non\"),0,IF(OR(P30=\"Indiquer une période\",P30=\"Renseigner les consos\",P30=\"Renseigner les cases jaunes\"),0,IF(OR(P29=\"\",P29=BB110),Z28*P30-IF(AX129=\"Oui\",AW129,0),IF(P30<>\"\",(P30*Z28)+Z29,0)-IF(AX129=\"Oui\",AW129,0))))","v":0}]
[null,null,null,null,null,null,null,null,null,null,null,null,null,null,null,null,null,null,null,null,"Adéquation abonnement",null,null,null,null,{"$f":"IF(OR(P29=\"\",P29=BB110,P30=\"Indiquer une période\",P30=\"Renseigner les consos\",P30=\"Renseigner les cases jaunes\"),\"-\",IF(AND(P29<>AR139,AR140=\"oui\"),\"non\",VLOOKUP(P29,AG126:AP140,10,FALSE)))","v":"-"}]
[null,null,null,"Répartion HP/HC connue"]
[]
[null,null,null,"Période historique",null,null,null,"Autres",null,null,null,null,"Entrer directement la conso annuelle estimée en kWh: "]
[null,null,null,null,null,null,"Historique consommations (kWh):"]
[null,null,null,"Mois",null,null,"2000-11-01","2013-01-01",null,{"$f":"IF($H$34=\"Mensuel\",EDATE(G36,1),IF($H$34=\"Tous les 2 mois\",EDATE(G36,2),IF($H$34=\"Annuel\",G36,IF($H$34=\"Bi-annuel\",EDATE(G36,6),\"\"))))","v":""},{"$f":"IF(AND(G36=$AT$106,$H$34=\"Tous les 2 mois\"),EDATE(H36,12),IF(AND(G36=$AT$105,$H$34=\"Tous les 2 mois\"),EDATE(H36,13),IF(AND(G36=$AT$106,$H$34=\"Mensuel\"),EDATE(H36,13),IF($H$34=\"Annuel\",EDATE(H36,12),IF($H$34=\"Bi-annuel\",EDATE(H36,6),IF($H$34=\"Autres\",\"\",H36))))))","v":""},null,{"$f":"IF($H$34=\"Mensuel\",EDATE(J36,1),IF($H$34=\"Tous les 2 mois\",EDATE(J36,2),IF($H$34=\"Annuel\",G36,IF($H$34=\"Bi-annuel\",EDATE(J36,6),\"\"))))","v":""},{"$f":"IF(AND(J36=AT106,H34=\"Tous les 2 mois\"),EDATE(K36,12),IF(AND(J36=AT105,H34=\"Tous les 2 mois\"),EDATE(K36,13),IF(AND(J36=AT106,H34=\"Mensuel\"),EDATE(K36,13),IF(H34=\"Annuel\",EDATE(K36,12),IF(H34=\"Bi-annuel\",EDATE(K36,6),IF(H34=\"Autres\",\"\",K36))))))","v":""},null,{"$f":"IF($H$34=\"Mensuel\",EDATE(M36,1),IF($H$34=\"Tous les 2 mois\",EDATE(M36,2),IF($H$34=\"Annuel\",G36,IF($H$34=\"Bi-annuel\",EDATE(M36,6),\"\"))))","v":""},{"$f":"IF(AND(M36=AT106,H34=\"Tous les 2 mois\"),EDATE(N36,12),IF(AND(M36=AT105,H34=\"Tous les 2 mois\"),EDATE(N36,13),IF(AND(M36=AT106,H34=\"Mensuel\"),EDATE(N36,13),IF(H34=\"Annuel\",EDATE(N36,12),IF(H34=\"Bi-annuel\",EDATE(N36,6),IF(H34=\"Autres\",\"\",N36))))))","v":""},null,{"$f":"IF($H$34=\"Mensuel\",EDATE(P36,1),IF($H$34=\"Tous les 2 mois\",EDATE(P36,2),IF($H$34=\"Annuel\",G36,IF($H$34=\"Bi-annuel\",EDATE(P36,6),\"\"))))","v":""},{"$f":"IF(AND(P36=AT106,H34=\"Tous les 2 mois\"),EDATE(Q36,12),IF(AND(P36=AT105,H34=\"Tous les 2 mois\"),EDATE(Q36,13),IF(AND(P36=AT106,H34=\"Mensuel\"),EDATE(Q36,13),IF(H34=\"Annuel\",EDATE(Q36,12),IF(H34=\"Bi-annuel\",EDATE(Q36,6),IF(H34=\"Autres\",\"\",Q36))))))","v":""},null,{"$f":"IF($H$34=\"Mensuel\",EDATE(S36,1),IF($H$34=\"Tous les 2 mois\",EDATE(S36,2),IF($H$34=\"Annuel\",G36,IF($H$34=\"Bi-annuel\",EDATE(S36,6),\"\"))))","v":""},{"$f":"IF(AND(S36=AT106,H34=\"Tous les 2 mois\"),EDATE(T36,12),IF(AND(S36=AT105,H34=\"Tous les 2 mois\"),EDATE(T36,13),IF(AND(S36=AT106,H34=\"Mensuel\"),EDATE(T36,13),IF(H34=\"Annuel\",EDATE(T36,12),IF(H34=\"Bi-annuel\",EDATE(T36,6),IF(H34=\"Autres\",\"\",T36))))))","v":""},null,{"$f":"IF($H$34=\"Mensuel\",EDATE(V36,1),IF($H$34=\"Tous les 2 mois\",EDATE(V36,2),IF($H$34=\"Annuel\",G36,IF($H$34=\"Bi-annuel\",EDATE(V36,6),\"\"))))","v":""},{"$f":"IF(AND(V36=AT106,H34=\"Tous les 2 mois\"),EDATE(W36,12),IF(AND(V36=AT105,H34=\"Tous les 2 mois\"),EDATE(W36,13),IF(AND(V36=AT106,H34=\"Mensuel\"),EDATE(W36,13),IF(H34=\"Annuel\",EDATE(W36,12),IF(H34=\"Bi-annuel\",EDATE(W36,6),IF(H34=\"Autres\",\"\",W36))))))","v":""}]
[null,null,null,"Consommation"]
[]
[null,null,null,"% conso Heures Pleines",null,null,null,null,null,null,null,null,null,"% conso Heures creuses",null,null,null,null,{"$f":"1-G39","v":1}]
[]
[null,null,"Autre facture d'énergie"]
[]
[null,null,"Autres factures disponibles:",null,null,null,null,null,"En situation d'impayé",null,null,null,null,null,null,null,null,null,"Montant de l'impayé:"]
[]
[null,null,"Difficultés à payer les factures",null,null,null,null,null,null,"Energie:",null,null,null,null,null,null,null,null,null,null,"Coût kWh",null,null,null,null,{"$f":"IF(O45=BD102,AL116,IF(O45=\"\",\"-\",IF(O45<>BD95,VLOOKUP(O45,AF111:AG121,2,FALSE),IF(AND(O45=BD95,O48=\"\"),AG112,IF(O48=BE99,AG112,IF(O45=BD95,VLOOKUP(O48,AF148:AH151,3,FALSE)))))))","v":"-"}]
[null,null,null,null,null,null,null,null,null,"Fournisseur",null,null,null,null,null,null,null,null,null,null,"Coût abonnement",null,null,null,null,{"$f":"IF(O48=\"\",0,IF(O48=BE99,\"-\",IF(O48<>\"\",VLOOKUP(O48,AF148:AH151,2,FALSE),\"-\")))","v":0}]
[null,null,null,null,null,null,null,null,null,"Type de besoins",null,null,null,null,null,null,null,null,null,null,"Coût annuel:",null,null,null,null,{"$f":"IF(OR(D43=\"\",D43=\"Non\"),0,IF(OR(O49=\"Indiquer une période\",O49=\"Renseigner les consos\",O49=\"Renseigner les cases jaunes\"),0,IF(OR(O48=\"\",O48=BE99),Z45*O49-IF(AP152=\"Oui\",AO152,0),IF(O49<>\"\",(Z45*O49)+Z46,\"\")-IF(AP152=\"Oui\",AO152,0))))","v":0}]
[null,null,null,null,null,null,null,null,null,"Type d'abonnement",null,null,null,null,null,null,null,null,null,null,"Adéquation abonnement",null,null,null,null,{"$f":"IF(OR(O48=BE99,O48=\"\"),\"-\",IF(AND(OR(O47=AS96,O47=AS97,O47=AS98,O47=AS95),OR(O48=BE97,O48=BE98)),\"Oui\",IF(AND(OR(O47=AS100,O47=AS101,O47=AS95),O48=BE96),\"Oui\",IF(AND(O47=AS99,O48=BE95),\"Oui\",\"Non\"))))","v":"-"}]
[null,null,null,null,null,null,null,null,null,"Conso annuelle (en kWh)",null,null,null,null,{"$f":"IF(D43<>\"Oui\",\"\",IF(H51=\"\",\"Indiquer une période\",IF(AND(H51=\"Autres\",X51<>\"\"),X51,IF(AND(H51=\"Autres\",X51=\"\"),\"Renseigner les consos\",IF(AND(OR(H51<>\"\",H51<>\"Autres\"),G54=\"\"),\"Renseigner les consos\",IF(H51=\"Annuel\",AVERAGE(G54:Z54),IF(H51=\"Bi-annuel\",AVERAGE(G54:Z54)*2,IF(H51=\"Tous les 2 mois\",AVERAGE(G54:Z54)*6,IF(H51=\"Mensuel\",AVERAGE(G54:Z54)*12,\"Renseigner les cases jaunes\")))))))))","v":""}]
[]
[null,null,null,"Période historique",null,null,null,null,null,null,null,null,"Entrer directement la conso annuelle estimée en kWh",null,null,null,null,null,null,null,null,null,null,10000]
[]
[null,null,null,"Mois",null,null,"2000-11-01","2017-01-01",null,{"$f":"IF($H$51=\"Mensuel\",EDATE(G53,1),IF($H$51=\"Tous les 2 mois\",EDATE(G53,2),IF($H$51=\"Annuel\",G53,IF($H$51=\"Bi-annuel\",EDATE(G53,6),\"\"))))","v":""},{"$f":"IF(AND(G53=$AT$106,$H$51=\"Tous les 2 mois\"),EDATE(H53,12),IF(AND(G53=$AT$105,$H$51=\"Tous les 2 mois\"),EDATE(H53,13),IF(AND(G53=$AT$106,$H$51=\"Mensuel\"),EDATE(H53,13),IF($H$51=\"Annuel\",EDATE(H53,12),IF($H$51=\"Bi-annuel\",EDATE(H53,6),IF($H$51=\"Autres\",\"\",H53))))))","v":"2017-01-01"},null,{"$f":"IF($H$51=\"Mensuel\",EDATE(J53,1),IF($H$51=\"Tous les 2 mois\",EDATE(J53,2),IF($H$51=\"Annuel\",J53,IF($H$51=\"Bi-annuel\",EDATE(J53,6),\"\"))))","v":""},{"$f":"IF(AND(J53=$AT$106,$H$51=\"Tous les 2 mois\"),EDATE(K53,12),IF(AND(J53=$AT$105,$H$51=\"Tous les 2 mois\"),EDATE(K53,13),IF(AND(J53=$AT$106,$H$51=\"Mensuel\"),EDATE(K53,13),IF($H$51=\"Annuel\",EDATE(K53,12),IF($H$51=\"Bi-annuel\",EDATE(K53,6),IF($H$51=\"Autres\",\"\",K53))))))","v":"2017-01-01"},null,{"$f":"IF($H$51=\"Mensuel\",EDATE(M53,1),IF($H$51=\"Tous les 2 mois\",EDATE(M53,2),IF($H$51=\"Annuel\",M53,IF($H$51=\"Bi-annuel\",EDATE(M53,6),\"\"))))","v":""},{"$f":"IF(AND(M53=$AT$106,$H$51=\"Tous les 2 mois\"),EDATE(N53,12),IF(AND(M53=$AT$105,$H$51=\"Tous les 2 mois\"),EDATE(N53,13),IF(AND(M53=$AT$106,$H$51=\"Mensuel\"),EDATE(N53,13),IF($H$51=\"Annuel\",EDATE(N53,12),IF($H$51=\"Bi-annuel\",EDATE(N53,6),IF($H$51=\"Autres\",\"\",N53))))))","v":"2017-01-01"},null,{"$f":"IF($H$51=\"Mensuel\",EDATE(P53,1),IF($H$51=\"Tous les 2 mois\",EDATE(P53,2),IF($H$51=\"Annuel\",P53,IF($H$51=\"Bi-annuel\",EDATE(P53,6),\"\"))))","v":""},{"$f":"IF(AND(P53=$AT$106,$H$51=\"Tous les 2 mois\"),EDATE(Q53,12),IF(AND(P53=$AT$105,$H$51=\"Tous les 2 mois\"),EDATE(Q53,13),IF(AND(P53=$AT$106,$H$51=\"Mensuel\"),EDATE(Q53,13),IF($H$51=\"Annuel\",EDATE(Q53,12),IF($H$51=\"Bi-annuel\",EDATE(Q53,6),IF($H$51=\"Autres\",\"\",Q53))))))","v":"2017-01-01"},null,{"$f":"IF($H$51=\"Mensuel\",EDATE(S53,1),IF($H$51=\"Tous les 2 mois\",EDATE(S53,2),IF($H$51=\"Annuel\",S53,IF($H$51=\"Bi-annuel\",EDATE(S53,6),\"\"))))","v":""},{"$f":"IF(AND(S53=$AT$106,$H$51=\"Tous les 2 mois\"),EDATE(T53,12),IF(AND(S53=$AT$105,$H$51=\"Tous les 2 mois\"),EDATE(T53,13),IF(AND(S53=$AT$106,$H$51=\"Mensuel\"),EDATE(T53,13),IF($H$51=\"Annuel\",EDATE(T53,12),IF($H$51=\"Bi-annuel\",EDATE(T53,6),IF($H$51=\"Autres\",\"\",T53))))))","v":"2017-01-01"},null,{"$f":"IF($H$51=\"Mensuel\",EDATE(V53,1),IF($H$51=\"Tous les 2 mois\",EDATE(V53,2),IF($H$51=\"Annuel\",V53,IF($H$51=\"Bi-annuel\",EDATE(V53,6),\"\"))))","v":""},{"$f":"IF(AND(V53=$AT$106,$H$51=\"Tous les 2 mois\"),EDATE(W53,12),IF(AND(V53=$AT$105,$H$51=\"Tous les 2 mois\"),EDATE(W53,13),IF(AND(V53=$AT$106,$H$51=\"Mensuel\"),EDATE(W53,13),IF($H$51=\"Annuel\",EDATE(W53,12),IF($H$51=\"Bi-annuel\",EDATE(W53,6),IF($H$51=\"Autres\",\"\",W53))))))","v":"2017-01-01"}]
[null,null,null,"Consommation"]
[]
[]
[null,"Les consommations d'eau"]
[]
[null,null,"Consommation d'eau disponible:",null,null,null,null,null,null,"Conso annuelle m³:",null,null,null,null,null,null,null,null,null,null,"Prix m³:",null,null,null,{"$f":"'MAJ Données'!C113","v":4}]
[null,null,null,null,null,null,null,null,null,null,null,null,null,null,null,null,null,null,null,null,"Coût annuel:",null,null,null,{"$f":"IF(P59<>\"\",P59*Y59,\"-\")","v":"-"}]
[null,null,"Type de compteur eau froide","Individuel"]
[]
[]
[null,"Les relevés de compteurs"]
[]
[null,null,"Accès compteur électrique","Non",null,null,null,"Relevé Heures Pleines:",null,null,null,null,null,null,null,null,null,"Relevé Heures creuses:"]
[]
[null,null,"Accès compteur chauffage:","Non",null,null,null,null,null,"Relevé compteur:"]
[]
[null,null,"Accès au compteur eau chaude:","Non",null,null,null,null,null,"Relevé compteur:"]
[null,null,"Accès au compteur eau froide:","Non",null,null,null,null,null,"Relevé compteur:"]
[]
[]
[null,null,null,null,null,null,null,null,"Type d'abonnement"]
[]
[]
[]
[]
[]
[]
[]
[]
[]
[]
[]
[]
[]
[]
[]
[]
[null,null,null,null,null,null,null,null,null,null,null,null,null,null,null,null,null,null,null,null,null,null,null,null,null,null,null,null,null,null,null,"Données à na pas modifier"]
[null,null,null,null,null,null,null,null,null,null,null,null,null,null,null,null,null,null,null,null,null,null,null,null,null,null,null,null,null,null,null,"Listes déroulantes:"]
[]
[null,null,null,null,null,null,null,null,null,null,null,null,null,null,null,null,null,null,null,null,null,null,null,null,null,null,null,null,null,null,null,"Energie chauffage/ECS","Energie cuisson","Type chaudière","Type compteur","Emetteurs","Age chaudière","Type ECS","Choix","Type appoint","utilisation appoint","Raison utilisation","Nb Appoints","commutateur jour/nuit","Type besoin fac. Chauffage","Mois facture","Année facture","Historique facture","Tarifs sociaux","Fournisseur facture","Type abonnement électrique","Difficultés factures","Types besoins facture électricité","Type abonnement élec","% HP/HC","Type énergie (facture)","Type abonnement gaz"]
[null,null,null,null,null,null,null,null,null,null,null,null,null,null,null,null,null,null,null,null,null,null,null,null,null,null,null,null,null,null,null,"Electricité","Electricité","Individuelle","Individuel","Radiateurs haute température","A condensation","Individuel instantanné","Oui","Convecteur électrique mobile","Unique moyen de chauffage","Système de chauffage insuffisant",1,"Non présent","Chauffage uniquement","2000-01-01","2007-01-01","Mensuel","TPN (électricité)","EDF","Base","Jamais","Electricité spécifique + chauffage + ECS","3 kVa (Base)",0.1,"Gaz naturel","GN base < 1000kWh"]
[null,null,null,null,null,null,null,null,null,null,null,null,null,null,null,null,null,null,null,null,null,null,null,null,null,null,null,null,null,null,null,"Gaz naturel","Gaz naturel","Collective","Collectif","Radiateurs basse température","Basse température","Individuel accumulation","Non","Poêle à pétrole","Fréquente","Pour une meilleure maîtrise des coûts",2,"Présent marche forcé","Chauffage + ECS + Cuisson","2000-02-01","2008-01-01","Tous les 2 mois","TSS (gaz)","GDF","Simple tarif","Parfois","Electricité spécifique + chauffage","6 kVa (Base)",0.15,"Gaz propane en citerne","B0 zone 1"]
[null,null,null,null,null,null,null,null,null,null,null,null,null,null,null,null,null,null,null,null,null,null,null,null,null,null,null,null,null,null,null,"Gaz propane en citerne","Gaz bouteille",null,"Inconnu","Convecteurs < 20ans","< 5 ans","Collectif",null,"Poêle à gaz","Occasionnelle","Chauffage insuffisant ET maîtrise des coûts",3,"Présent marche auto","Chauffage + ECS","2000-03-01","2009-01-01","Annuel","Les 2","Autre","Double tarif HP/HC","Souvent","Electricité spécifique + ECS","9 kVa (Base)",0.2,"Gaz bouteille","B1 zone 1"]
[null,null,null,null,null,null,null,null,null,null,null,null,null,null,null,null,null,null,null,null,null,null,null,null,null,null,null,null,null,null,null,"Fioul domestique","Gaz propane en citerne",null,null,"Convecteurs > 20ans","entre 5 et 10 ans","Inconnu",null,"Radiateur bain d'huile",null,"Autre",4,null,"Chauffage + Cuisson","2000-04-01","2010-01-01","Bi-annuel","Aucun",null,"Ne sais pas",null,"Electricité spécifique","12 kVa (Base)",0.25,"Fioul domestique","B2i zone 1 "]
[null,null,null,null,null,null,null,null,null,null,null,null,null,null,null,null,null,null,null,null,null,null,null,null,null,null,null,null,null,null,null,"Réseau de chaleur","Bois",null,null,"Plancher chauffant","Entre 10 et 15 ans",null,null,"Plusieurs types dont poêle",null,null,">4",null,"Cuisson uniquement","2000-05-01","2011-01-01","Autres",null,null,null,null,null,"15 kVa (Base)",0.3,"Réseau de chaleur","Inconnu"]
[null,null,null,null,null,null,null,null,null,null,null,null,null,null,null,null,null,null,null,null,null,null,null,null,null,null,null,null,null,null,null,"Bois (granulés)","Aucune",null,null,"Autre","> 15 ans",null,null,"Plusieurs types (hors poêle)",null,null,null,null,"Cuisson + ECS","2000-06-01","2012-01-01",null,null,null,null,null,null,"6 kVa (HP/HC)",0.35,"Bois (granulés)"]
[null,null,null,null,null,null,null,null,null,null,null,null,null,null,null,null,null,null,null,null,null,null,null,null,null,null,null,null,null,null,null,"Bois (bûches)","Autre",null,null,null,"Inconnu",null,null,"Autre",null,null,null,null,"ECS uniquement","2000-07-01","2013-01-01",null,null,null,null,null,null,"9 kVa (HP/HC)",0.4,"Bois (bûches)"]
[null,null,null,null,null,null,null,null,null,null,null,null,null,null,null,null,null,null,null,null,null,null,null,null,null,null,null,null,null,null,null,"Aucune","Inconnue",null,null,null,null,null,null,"Inconnu",null,null,null,null,null,"2000-08-01","2014-01-01",null,null,null,null,null,null,"12 kVa (HP/HC)",0.45,"Chauffage d'appoint"]
[null,null,null,null,null,null,null,null,null,null,null,null,null,null,null,null,null,null,null,null,null,null,null,null,null,null,null,null,null,null,null,"Autre",null,null,null,null,null,null,null,null,null,null,null,null,null,"2000-09-01","2015-01-01",null,null,null,null,null,null,"15 kVa (HP/HC)",0.5,"Autre"]
[null,null,null,null,null,null,null,null,null,null,null,null,null,null,null,null,null,null,null,null,null,null,null,null,null,null,null,null,null,null,null,"Inconnue",null,null,null,null,null,null,null,null,null,null,null,null,null,"2000-10-01","2015-01-01",null,null,null,null,null,null,"18 kVa (HP/HC)",0.55000000000000004]
[null,null,null,null,null,null,null,null,null,null,null,null,null,null,null,null,null,null,null,null,null,null,null,null,null,null,null,null,null,null,null,"Chauffage d'appoint uniquement",null,null,null,null,null,null,null,null,null,null,null,null,null,"2000-11-01","2015-01-01",null,null,null,null,null,null,"24 kVa (HP/HC)",0.6]
[null,null,null,null,null,null,null,null,null,null,null,null,null,null,null,null,null,null,null,null,null,null,null,null,null,null,null,null,null,null,null,null,null,null,null,null,null,null,null,null,null,null,null,null,null,"2000-12-01","2017-01-01",null,null,null,null,null,null,"9 kVa (Tempo)",0.65]
[null,null,null,null,null,null,null,null,null,null,null,null,null,null,null,null,null,null,null,null,null,null,null,null,null,null,null,null,null,null,null,null,null,null,null,null,null,null,null,null,null,null,null,null,null,null,"2018-01-01",null,null,null,null,null,null,"12 kVa (Tempo)",0.7]
[null,null,null,null,null,null,null,null,null,null,null,null,null,null,null,null,null,null,null,null,null,null,null,null,null,null,null,null,null,null,null,"Eléments de calcul",null,null,null,null,null,null,null,null,null,null,null,null,null,null,"2019-01-01",null,null,null,null,null,null,"30 kVa (Tempo)",0.75]
[null,null,null,null,null,null,null,null,null,null,null,null,null,null,null,null,null,null,null,null,null,null,null,null,null,null,null,null,null,null,null,null,null,null,null,null,null,null,null,"Calcul Ich",null,null,null,null,null,null,null,null,null,null,null,null,null,"36 kVa (Tempo)",0.8]
[null,null,null,null,null,null,null,null,null,null,null,null,null,null,null,null,null,null,null,null,null,null,null,null,null,null,null,null,null,null,null,"Coût moyen kWh 2013 par type d'énergie",null,null,"Chauffage appoint","Prix kWh chauffage d'appoint","Ich chauffage appoint",null,null,"Energie","Ich",null,null,null,null,null,null,null,null,null,null,null,null,"Inconnu",0.85]
[null,null,null,null,null,null,null,null,null,null,null,null,null,null,null,null,null,null,null,null,null,null,null,null,null,null,null,null,null,null,null,"Electricité",{"$f":"'MAJ Données'!C101","v":0.2228},null,"Convecteur électrique mobile",{"$f":"AG111","v":0.2228},1.1000000000000001,null,null,"Electricité",{"$f":"IF(D10=AJ98,1.2,1.1)","v":1.1000000000000001},null,null,null,null,null,null,null,null,null,null,null,null,null,0.9]
[null,null,null,null,null,null,null,null,null,null,null,null,null,null,null,null,null,null,null,null,null,null,null,null,null,null,null,null,null,null,null,"Gaz naturel",{"$f":"'MAJ Données'!C102","v":0.1043},null,"Poêle à pétrole",{"$f":"AG118","v":0.19700000000000001},1.6,null,null,"Gaz naturel",{"$f":"(IF(N9=AK95,1.35,IF(N9=AK96,1.4,IF(N9=AK97,1.45,IF(N9=AK98,1.55,IF(N9=AK99,1.7,IF(N9=AK100,1.85,1.74)-IF(N10=AM95,0.05,0)))))))","v":1.74},null,null,null,null,null,null,null,null,null,null,null,null,null,0.95]
[null,null,null,null,null,null,null,null,null,null,null,null,null,null,null,null,null,null,null,null,null,null,null,null,null,null,null,null,null,null,null,"Gaz propane en citerne",{"$f":"'MAJ Données'!C103","v":0.14649999999999999},null,"Poêle à gaz",{"$f":"AG118","v":0.19700000000000001},1.6,null,null,"Gaz propane en citerne",{"$f":"(IF(N9=AK95,1.35,IF(N9=AK96,1.4,IF(N9=AK97,1.45,IF(N9=AK98,1.55,IF(N9=AK99,1.7,IF(N9=AK100,1.85,1.74)-IF(N10=AM95,0.05,0)))))))","v":1.74},null,null,null,null,null,null,null,null,null,null,null,null,null,1]
[null,null,null,null,null,null,null,null,null,null,null,null,null,null,null,null,null,null,null,null,null,null,null,null,null,null,null,null,null,null,null,"Fioul domestique",{"$f":"'MAJ Données'!C104","v":1.2569999999999999},null,"Radiateur bain d'huile",{"$f":"AJ111","v":0.2228},1.06,null,null,"Fioul domestique",{"$f":"(IF(N9=AK95,1.5,IF(N9=AK96,1.6,IF(N9=AK97,1.7,IF(N9=AK98,1.8,IF(N9=AK99,1.9,IF(N9=AK100,2,1.9)-IF(N10=AM95,0.05,0)))))))","v":1.9}]
[null,null,null,null,null,null,null,null,null,null,null,null,null,null,null,null,null,null,null,null,null,null,null,null,null,null,null,null,null,null,null,"Réseau de chaleur",{"$f":"'MAJ Données'!C105","v":8.6254999999999998E-2},null,"Plusieurs types dont poêle",{"$f":"AG118","v":0.19700000000000001},1.5,"Prix kWh ménage",null,"Réseau de chaleur",1.6]
[null,null,null,null,null,null,null,null,null,null,null,null,null,null,null,null,null,null,null,null,null,null,null,null,null,null,null,null,null,null,null,"Bois (granulés)",{"$f":"'MAJ Données'!C106","v":5.6750000000000002E-2},null,"Plusieurs types (hors poêle)",{"$f":"AG111","v":0.2228},1.1000000000000001,{"$f":"IF(N14=\"\",0,IF(OR(N14=AN95,N14=AN98,N14=AN100,N14=AN101,N14=AN102),AJ111,AJ112))","v":0},null,"Bois (granulés)",1.7]
[null,null,null,null,null,null,null,null,null,null,null,null,null,null,null,null,null,null,null,null,null,null,null,null,null,null,null,null,null,null,null,"Bois (bûches)",{"$f":"'MAJ Données'!C107","v":0.04},null,"Autre",{"$f":"AJ114","v":0.2228},1.1000000000000001,null,null,"Bois (bûches)",2.2999999999999998]
[null,null,null,null,null,null,null,null,null,null,null,null,null,null,null,null,null,null,null,null,null,null,null,null,null,null,null,null,null,null,null,"Gaz bouteille",{"$f":"'MAJ Données'!C108","v":0.19700000000000001},null,"Inconnu",{"$f":"AJ117","v":0.2228},1.1000000000000001,null,null,"Aucune",0]
[null,null,null,null,null,null,null,null,null,null,null,null,null,null,null,null,null,null,null,null,null,null,null,null,null,null,null,null,null,null,null,"Aucune",{"$f":"'MAJ Données'!C109","v":0},null,null,null,null,null,null,"Autre",1.5]
[null,null,null,null,null,null,null,null,null,null,null,null,null,null,null,null,null,null,null,null,null,null,null,null,null,null,null,null,null,null,null,"Autre",{"$f":"'MAJ Données'!C110","v":0.1},null,null,null,null,null,null,"Inconnue",1.5]
[null,null,null,null,null,null,null,null,null,null,null,null,null,null,null,null,null,null,null,null,null,null,null,null,null,null,null,null,null,null,null,"Inconnue",{"$f":"'MAJ Données'!C111","v":0.1},null,null,null,null,null,null,"Chauffage d'appoint uniquement",{"$f":"IF(N14<>\"\",VLOOKUP(N14,AI111:AK118,3,FALSE),0)","v":0}]
[]
[]
[null,null,null,null,null,null,null,null,null,null,null,null,null,null,null,null,null,null,null,null,null,null,null,null,null,null,null,null,null,null,null,null,"Abonnement électricité"]
[null,null,null,null,null,null,null,null,null,null,null,null,null,null,null,null,null,null,null,null,null,null,null,null,null,null,null,null,null,null,null,"Prix selon abonnement","Puissance souscrite (kVA)","Abonnement annuel TTC (euros)","Prix du kWh TTC (euros) Heures Pleines","Prix du kWh TTC (euros) Heures Creuses","Blanc HP","Blanc HC","Rouge HP","Rouge HC","Tarif moyen kWh","Adéquation abonnement",null,"Calcul TPN"]
[null,null,null,null,null,null,null,null,null,null,null,null,null,null,null,null,null,null,null,null,null,null,null,null,null,null,null,null,null,null,null,{"$f":"IF(OR($D$28=\"\",$D$28=\"Non\"),0,IF(OR($P$30=\"Indiquer une période\",$P$30=\"Renseigner les consos\",$P$30=\"Renseigner les cases jaunes\"),0,IF(OR($P$29=\"\",$P$29=$BB$110),0,IF($P$30<>\"\",($P$30*AO126)+AH126,0)-IF($AX$129=\"Oui\",$AW$129,0))))","v":0},"3 kVa (Base)",{"$f":"'MAJ Données'!C70","v":104.89},{"$f":"'MAJ Données'!D70","v":0.15579999999999999},{"$f":"AI126","v":0.15579999999999999},{"$f":"'MAJ Données'!F70","v":0},{"$f":"'MAJ Données'!G70","v":0},{"$f":"'MAJ Données'!H70","v":0},{"$f":"'MAJ Données'!I70","v":0},{"$f":"AI126","v":0.15579999999999999},{"$f":"IF(AND(AF155=AR135,AF156=\"cuisson non incluse\"),\"oui\",\"non\")","v":"non"},null,"Déduction forfaitaire en fonction de l’UC (en euros TTC/an)","3 kVA","6 kVA","9 kVA et plus"]
[null,null,null,null,null,null,null,null,null,null,null,null,null,null,null,null,null,null,null,null,null,null,null,null,null,null,null,null,null,null,null,0,"6 kVa (Base)",{"$f":"'MAJ Données'!C71","v":143.87},{"$f":"'MAJ Données'!D71","v":0.20619999999999999},{"$f":"AI127","v":0.20619999999999999},{"$f":"'MAJ Données'!F71","v":0},{"$f":"'MAJ Données'!G71","v":0},{"$f":"'MAJ Données'!H71","v":0},{"$f":"'MAJ Données'!I71","v":0},{"$f":"AI127","v":0.20619999999999999},{"$f":"IF($AF$155=$AR$135,\"oui\",\"non\")","v":"oui"},null,"UC = 1",{"$f":"'MAJ Données'!C46","v":71},{"$f":"'MAJ Données'!D46","v":87},{"$f":"'MAJ Données'!E46","v":94}]
[null,null,null,null,null,null,null,null,null,null,null,null,null,null,null,null,null,null,null,null,null,null,null,null,null,null,null,null,null,null,null,0,"9 kVa (Base)",{"$f":"'MAJ Données'!C72","v":171.28},{"$f":"'MAJ Données'!D72","v":0.1605},0.1605,{"$f":"'MAJ Données'!F72","v":0},{"$f":"'MAJ Données'!G72","v":0},{"$f":"'MAJ Données'!H72","v":0},{"$f":"'MAJ Données'!I72","v":0},0.1605,{"$f":"IF($AF$155=$AR$135,\"oui\",\"non\")","v":"oui"},null,"1 < UC < 2",{"$f":"'MAJ Données'!C58","v":30},{"$f":"'MAJ Données'!D58","v":95},{"$f":"'MAJ Données'!E58","v":153},"Nombre UC ménage","Déduction ménage","TPN?"]
[null,null,null,null,null,null,null,null,null,null,null,null,null,null,null,null,null,null,null,null,null,null,null,null,null,null,null,null,null,null,null,0,"12 kVa (Base)",{"$f":"'MAJ Données'!C73","v":205.42},{"$f":"'MAJ Données'!D73","v":0.1605},0.1605,{"$f":"'MAJ Données'!F73","v":0},{"$f":"'MAJ Données'!G73","v":0},{"$f":"'MAJ Données'!H73","v":0},{"$f":"'MAJ Données'!I73","v":0},0.1605,{"$f":"IF($AF$155=$AR$135,\"oui\",\"non\")","v":"oui"},null,"UC >=2",{"$f":"'MAJ Données'!C50","v":106},{"$f":"'MAJ Données'!D50","v":131},{"$f":"'MAJ Données'!E50","v":140},{"$f":"IF('Données ménage'!D27=1,'Consommation et énergies'!AR127,IF('Données ménage'!H27='Données ménage'!X63,'Consommation et énergies'!AR127,IF(AND('Données ménage'!H27='Données ménage'!X64,'Données ménage'!D27>3),'Consommation et énergies'!AR129,'Consommation et énergies'!AR128)))","v":"1 < UC < 2"},{"$f":"IF(AND(P29<>\"\",P29=BB95),VLOOKUP(AV129,AR127:AU129,2,FALSE),IF(AND(P29<>\"\",OR(P29=BB96,P29=BB100,P29=BB110)),VLOOKUP(AV129,AR127:AU129,3,FALSE),IF(P29<>\"\",VLOOKUP(AV129,AR127:AU129,4,FALSE),VLOOKUP(AV129,AR127:AU129,3,FALSE))))","v":95},{"$f":"IF(OR(D22=AW95,D22=AW97),\"Oui\",\"Non\")","v":"Non"}]
[null,null,null,null,null,null,null,null,null,null,null,null,null,null,null,null,null,null,null,null,null,null,null,null,null,null,null,null,null,null,null,0,"15 kVa (Base)",{"$f":"'MAJ Données'!C74","v":237.67},{"$f":"'MAJ Données'!D74","v":0.1605},0.1605,{"$f":"'MAJ Données'!F74","v":0},{"$f":"'MAJ Données'!G74","v":0},{"$f":"'MAJ Données'!H74","v":0},{"$f":"'MAJ Données'!I74","v":0},0.1605,{"$f":"IF(OR($AF$155=$AR$134,$AF$155=$AR$133),\"oui\",\"non\")","v":"non"}]
[null,null,null,null,null,null,null,null,null,null,null,null,null,null,null,null,null,null,null,null,null,null,null,null,null,null,null,null,null,null,null,0,"6 kVa (HP/HC)",{"$f":"'MAJ Données'!C75","v":151.63999999999999},{"$f":"'MAJ Données'!D75","v":0.2228},{"$f":"'MAJ Données'!E75","v":0.1615},{"$f":"'MAJ Données'!F75","v":0},{"$f":"'MAJ Données'!G75","v":0},{"$f":"'MAJ Données'!H75","v":0},{"$f":"'MAJ Données'!I75","v":0},{"$f":"IF($G$39<>\"\",AI131*$G$39+AJ131*$S$39,AI131*60%+AJ131*40%)","v":0.19828000000000001},{"$f":"IF(OR($AF$155=$AR$134,$AF$155=$AR$133),\"oui\",\"non\")","v":"non"},null,"Part chauffage abo électrique"]
[null,null,null,null,null,null,null,null,null,null,null,null,null,null,null,null,null,null,null,null,null,null,null,null,null,null,null,null,null,null,null,0,"9 kVa (HP/HC)",{"$f":"'MAJ Données'!C76","v":185.03},{"$f":"'MAJ Données'!D76","v":0.18210000000000001},{"$f":"'MAJ Données'!E76","v":0.13600000000000001},{"$f":"'MAJ Données'!F76","v":0},{"$f":"'MAJ Données'!G76","v":0},{"$f":"'MAJ Données'!H76","v":0},{"$f":"'MAJ Données'!I76","v":0},{"$f":"IF($G$39<>\"\",AI132*$G$39+AJ132*$S$39,AI132*60%+AJ132*40%)","v":0.16366000000000003},{"$f":"IF(OR($AF$155=$AR$134,$AF$155=$AR$133,$AF$155=$AR$132),\"oui\",\"non\")","v":"non"},null,"Electricité spécifique + chauffage + ECS"]
[null,null,null,null,null,null,null,null,null,null,null,null,null,null,null,null,null,null,null,null,null,null,null,null,null,null,null,null,null,null,null,0,"12 kVa (HP/HC)",{"$f":"'MAJ Données'!C77","v":223.21},{"$f":"'MAJ Données'!D77","v":0.18210000000000001},{"$f":"'MAJ Données'!E77","v":0.13600000000000001},{"$f":"'MAJ Données'!F77","v":0},{"$f":"'MAJ Données'!G77","v":0},{"$f":"'MAJ Données'!H77","v":0},{"$f":"'MAJ Données'!I77","v":0},0.16366000000000003,{"$f":"IF(OR($AF$155=$AR$134,$AF$155=$AR$133,$AF$155=$AR$132),\"oui\",\"non\")","v":"non"},null,"Electricité spécifique + chauffage"]
[null,null,null,null,null,null,null,null,null,null,null,null,null,null,null,null,null,null,null,null,null,null,null,null,null,null,null,null,null,null,null,0,"15 kVa (HP/HC)",{"$f":"'MAJ Données'!C78","v":260.37},{"$f":"'MAJ Données'!D78","v":0.18210000000000001},{"$f":"'MAJ Données'!E78","v":0.13600000000000001},{"$f":"'MAJ Données'!F78","v":0},{"$f":"'MAJ Données'!G78","v":0},{"$f":"'MAJ Données'!H78","v":0},{"$f":"'MAJ Données'!I78","v":0},0.16366000000000003,{"$f":"IF(OR($AF$155=$AR$133,$AF$155=$AR$132),\"oui\",\"non\")","v":"non"},null,"Electricité spécifique + ECS"]
[null,null,null,null,null,null,null,null,null,null,null,null,null,null,null,null,null,null,null,null,null,null,null,null,null,null,null,null,null,null,null,0,"18 kVa (HP/HC)",{"$f":"'MAJ Données'!C79","v":295.64},{"$f":"'MAJ Données'!D79","v":0.18210000000000001},{"$f":"'MAJ Données'!E79","v":0.13600000000000001},{"$f":"'MAJ Données'!F79","v":0},{"$f":"'MAJ Données'!G79","v":0},{"$f":"'MAJ Données'!H79","v":0},{"$f":"'MAJ Données'!I79","v":0},0.16366000000000003,{"$f":"IF(OR($AF$155=$AR$133,$AF$155=$AR$132),\"oui\",\"non\")","v":"non"},null,"Electricité spécifique"]
[null,null,null,null,null,null,null,null,null,null,null,null,null,null,null,null,null,null,null,null,null,null,null,null,null,null,null,null,null,null,null,0,"24 kVa (HP/HC)",{"$f":"'MAJ Données'!C80","v":362.01},{"$f":"'MAJ Données'!D80","v":0.18210000000000001},{"$f":"'MAJ Données'!E80","v":0.13600000000000001},{"$f":"'MAJ Données'!F80","v":0},{"$f":"'MAJ Données'!G80","v":0},{"$f":"'MAJ Données'!H80","v":0},{"$f":"'MAJ Données'!I80","v":0},0.16366000000000003,{"$f":"IF(OR($AF$155=$AR$133,$AF$155=$AR$132),\"oui\",\"non\")","v":"non"}]
[null,null,null,null,null,null,null,null,null,null,null,null,null,null,null,null,null,null,null,null,null,null,null,null,null,null,null,null,null,null,null,0,"9 kVa (Tempo)",{"$f":"'MAJ Données'!C81","v":121.494},{"$f":"'MAJ Données'!D81","v":0.100314},{"$f":"'MAJ Données'!E81","v":8.3993999999999999E-2},{"$f":"'MAJ Données'!F81","v":0.14003399999999999},{"$f":"'MAJ Données'!G81","v":0.117474},{"$f":"'MAJ Données'!H81","v":0.55931399999999998},{"$f":"'MAJ Données'!I81","v":0.214194},{"$f":"AI137*35%+AJ137*30%+AK137*14%+AL137*13%+AM137*5%+AN137*3%","v":0.129576},{"$f":"IF(OR($AF$155=$AR$134,$AF$155=$AR$133,$AF$155=$AR$132),\"oui\",\"non\")","v":"non"}]
[null,null,null,null,null,null,null,null,null,null,null,null,null,null,null,null,null,null,null,null,null,null,null,null,null,null,null,null,null,null,null,0,"12 kVa (Tempo)",{"$f":"'MAJ Données'!C82","v":198.715},{"$f":"'MAJ Données'!D82","v":0.100314},{"$f":"'MAJ Données'!E82","v":8.3993999999999999E-2},{"$f":"'MAJ Données'!F82","v":0.14003399999999999},{"$f":"'MAJ Données'!G82","v":0.117474},{"$f":"'MAJ Données'!H82","v":0.55931399999999998},{"$f":"'MAJ Données'!I82","v":0.214194},{"$f":"AI138*35%+AJ138*30%+AK138*14%+AL138*13%+AM138*5%+AN138*3%","v":0.129576},{"$f":"IF(OR($AF$155=$AR$134,$AF$155=$AR$133,$AF$155=$AR$132),\"oui\",\"non\")","v":"non"},"Meilleur prix abonnement",{"$f":"MIN(AF126:AF136)","v":0}]
[null,null,null,null,null,null,null,null,null,null,null,null,null,null,null,null,null,null,null,null,null,null,null,null,null,null,null,null,null,null,null,0,"30 kVa (Tempo)",{"$f":"'MAJ Données'!C83","v":408.4},{"$f":"'MAJ Données'!D83","v":0.1605},{"$f":"'MAJ Données'!E83","v":8.3993999999999999E-2},{"$f":"'MAJ Données'!F83","v":0.14003399999999999},{"$f":"'MAJ Données'!G83","v":0.117474},{"$f":"'MAJ Données'!H83","v":0.55931399999999998},{"$f":"'MAJ Données'!I83","v":0.214194},0.1506411,{"$f":"IF(OR($AF$155=$AR$133,$AF$155=$AR$132),\"oui\",\"non\")","v":"non"},"Abonnement correspondant",{"$f":"VLOOKUP(AR138,AF126:AG136,2,FALSE)","v":"3 kVa (Base)"}]
[null,null,null,null,null,null,null,null,null,null,null,null,null,null,null,null,null,null,null,null,null,null,null,null,null,null,null,null,null,null,null,0,"36 kVa (Tempo)",{"$f":"'MAJ Données'!C84","v":477.7},{"$f":"'MAJ Données'!D84","v":0.1605},{"$f":"'MAJ Données'!E84","v":8.3993999999999999E-2},{"$f":"'MAJ Données'!F84","v":0.14003399999999999},{"$f":"'MAJ Données'!G84","v":0.117474},{"$f":"'MAJ Données'!H84","v":0.55931399999999998},{"$f":"'MAJ Données'!I84","v":0.214194},0.1506411,{"$f":"IF(OR($AF$155=$AR$133,$AF$155=$AR$132),\"oui\",\"non\")","v":"non"},"Cohérence puissance:",{"$f":"VLOOKUP(AR138,AF126:AP140,11,FALSE)","v":"non"}]
[]
[]
[]
[]
[]
[null,null,null,null,null,null,null,null,null,null,null,null,null,null,null,null,null,null,null,null,null,null,null,null,null,null,null,null,null,null,null,"Abonnement Gaz"]
[null,null,null,null,null,null,null,null,null,null,null,null,null,null,null,null,null,null,null,null,null,null,null,null,null,null,null,null,null,null,null,"Type d'abonnement","Abonnement annuel TTC (euros)","Prix du kWh TTC (euros)",null,"Calcul TSS"]
[null,null,null,null,null,null,null,null,null,null,null,null,null,null,null,null,null,null,null,null,null,null,null,null,null,null,null,null,null,null,null,"GN base < 1000kWh",{"$f":"'MAJ Données'!C91","v":102.12},{"$f":"'MAJ Données'!D91","v":0.12839999999999999},null,"Déduction ou versement forfaitaire en fonction de la composition du foyer en €TTC/an","Individuel",null,null,"Collectif"]
[null,null,null,null,null,null,null,null,null,null,null,null,null,null,null,null,null,null,null,null,null,null,null,null,null,null,null,null,null,null,null,"B0 zone 1",{"$f":"'MAJ Données'!C92","v":102.12},{"$f":"'MAJ Données'!D92","v":0.12839999999999999},null,null,"0-1000 kWh/an [cuisson]","1000-6000 kWh/an [eau chaude]","> 6000 kWh/an [chauffage]","[chauffage]"]
[null,null,null,null,null,null,null,null,null,null,null,null,null,null,null,null,null,null,null,null,null,null,null,null,null,null,null,null,null,null,null,"B1 zone 1",{"$f":"'MAJ Données'!C93","v":249.84},{"$f":"'MAJ Données'!D93","v":0.1043},null,"UC = 1",{"$f":"'MAJ Données'!C57","v":23},{"$f":"'MAJ Données'!D57","v":72},{"$f":"'MAJ Données'!E57","v":123},{"$f":"'MAJ Données'!F57","v":100}]
[null,null,null,null,null,null,null,null,null,null,null,null,null,null,null,null,null,null,null,null,null,null,null,null,null,null,null,null,null,null,null,"B2i zone 1 ",{"$f":"'MAJ Données'!C94","v":249.84},{"$f":"'MAJ Données'!D94","v":0.1043},null,"1 < UC < 2",{"$f":"'MAJ Données'!C58","v":30},{"$f":"'MAJ Données'!D58","v":95},{"$f":"'MAJ Données'!E58","v":153},{"$f":"'MAJ Données'!F58","v":123},"Déduction ménage","TSS?"]
[null,null,null,null,null,null,null,null,null,null,null,null,null,null,null,null,null,null,null,null,null,null,null,null,null,null,null,null,null,null,null,null,null,null,null,"UC >=2",{"$f":"'MAJ Données'!C61","v":38},{"$f":"'MAJ Données'!D61","v":117},{"$f":"'MAJ Données'!E61","v":185},{"$f":"'MAJ Données'!F61","v":147},{"$f":"IF(AND(N8=AH95,O48=BE95),VLOOKUP(AV129,AJ150:AN152,2,FALSE),IF(AND(N8=AH95,OR(O48=BE96,O48=BE99,O48=\"\")),VLOOKUP(AV129,AJ150:AN152,3,FALSE),IF(AND(N8=AH95,OR(O48=BE97,O48=BE98)),VLOOKUP(AV129,AJ150:AN152,4,FALSE),IF(AND(D8=AF96,N8=AH96),VLOOKUP(AV129,AJ150:AN152,5,FALSE),IF(AND(D8=AF96,N8=AH95),VLOOKUP(AV129,AJ150:AN152,3,FALSE),0)))))","v":0},{"$f":"IF(OR(D22=AW96,D22=AW97),\"Oui\",\"Non\")","v":"Non"}]
[]
[null,null,null,null,null,null,null,null,null,null,null,null,null,null,null,null,null,null,null,null,null,null,null,null,null,null,null,null,null,null,null,"Type de besoin électrique","Energie chauff/ECS/cuisson",null,null,"Chauffage inclus facture","ECS inclus facture"]
[null,null,null,null,null,null,null,null,null,null,null,null,null,null,null,null,null,null,null,null,null,null,null,null,null,null,null,null,null,null,null,{"$f":"(IF(AND(D8=AF95,D11=AF95),\"Electricité spécifique + chauffage + ECS\",IF(AND(D8=AF95,D11<>AF95),\"Electricité spécifique + chauffage\",IF(AND(D8<>AF95,D11=AF95),\"Electricité spécifique + ECS\",\"Electricité spécifique\"))))","v":"Electricité spécifique"},"chauff=ECS",{"$f":"IF(D8=D11,\"oui\",\"non\")","v":"oui"},"Autres factures",{"$f":"IF(AND(Z47>0,OR('Consommation et énergies'!O47='Consommation et énergies'!AS95,'Consommation et énergies'!O47='Consommation et énergies'!AS96,'Consommation et énergies'!O47='Consommation et énergies'!AS97,'Consommation et énergies'!O47='Consommation et énergies'!AS98)),\"oui\",\"-\")","v":"-"},{"$f":"IF(AND(Z47>0,OR(O47=AS96,O47=AS97,O47=AS100,O47=AS101)),\"oui\",\"-\")","v":"-"}]
[null,null,null,null,null,null,null,null,null,null,null,null,null,null,null,null,null,null,null,null,null,null,null,null,null,null,null,null,null,null,null,{"$f":"IF(D12=\"\",\"-\",IF(D12=AF95,\"cuisson incluse\",\"cuisson non incluse\"))","v":"-"},"Chauff=Cuisson",{"$f":"IF(D8=D12,\"oui\",\"non\")","v":"oui"},"Facture électricité",{"$f":"IF(AND(D8=AF95,Z30>0),\"oui\",\"non\")","v":"non"},{"$f":"IF(AND(D11=AF95,Z30>0),\"oui\",\"non\")","v":"non"}]
[]
[null,null,null,null,null,null,null,null,null,null,null,null,null,null,null,null,null,null,null,null,null,null,null,null,null,null,null,null,null,null,null,"Coût kWh chauffage"]
[null,null,null,null,null,null,null,null,null,null,null,null,null,null,null,null,null,null,null,null,null,null,null,null,null,null,null,null,null,null,null,{"$f":"IF(D8=\"\",0,IF(AND(D8=AF95,D28=\"Oui\"),Z28,IF(AND(D43=\"oui\",O45<>\"\",OR(O47=AS95,O47=AS96,O47=AS97,O47=AS98)),Z45,VLOOKUP(D8,AF111:AG121,2,FALSE))))","v":0}]

{"sheet":"Chauffage ventilation","index":3,"n_rows":139,"n_cols":33,"rows_kept":139,"cut":false,"hidden":false,"merged":[[19,11,19,12],[26,2,26,4],[93,7,93,8],[94,7,94,8],[94,2,94,5],[92,7,92,8],[95,2,95,5],[93,2,93,5],[92,2,92,6],[92,9,92,10],[87,5,87,6],[88,5,88,6],[80,2,80,13],[82,2,83,4],[94,9,94,10],[93,9,93,10],[68,2,69,4],[62,5,62,6],[93,11,95,11],[95,9,95,10],[95,7,95,8],[90,2,90,13],[64,2,64,13],[77,2,77,3],[5,1,5,14],[13,5,13,6],[16,1,16,14],[18,8,18,10],[8,3,8,4],[8,5,8,6],[13,3,13,4],[18,11,18,13],[7,2,11,2],[42,5,42,6],[40,5,40,6],[60,5,60,6],[57,2,57,4],[45,2,45,4],[20,11,21,12],[24,2,25,4],[24,5,25,5],[30,1,30,14],[50,5,50,6],[59,5,59,6],[22,5,23,5],[27,11,27,12],[27,6,27,7],[26,6,26,7],[26,11,26,12],[34,2,34,4],[36,2,36,4],[54,2,54,13],[20,13,21,13],[24,13,25,13],[1,6,1,7],[2,6,2,7],[29,7,29,13],[7,3,7,4],[7,5,7,6],[22,13,23,13],[9,3,9,4],[9,5,9,6],[11,5,11,6],[11,3,11,4],[10,5,10,6],[19,6,19,7],[22,6,23,7],[24,6,25,7],[22,11,23,12],[24,11,25,12],[20,8,27,8],[20,9,27,9],[20,10,27,10],[20,5,21,5],[28,9,28,10],[27,2,27,4],[1,3,1,5],[2,3,2,5],[82,5,83,5],[85,5,85,6],[86,5,86,6],[51,5,51,6],[66,2,66,4],[68,5,69,5],[61,5,61,6],[10,3,10,4],[20,6,21,7],[22,2,23,4],[20,2,21,4],[19,2,19,4],[78,2,78,3],[79,2,79,3],[77,5,79,5],[53,2,53,13],[41,5,41,6],[49,5,49,6],[72,5,72,6],[73,5,73,6],[75,5,75,6],[74,5,74,6],[48,5,48,6],[32,2,32,13]]}
[]
[null,null,null,"Nom du/ des chargé(s) de visite",null,null,{"$f":"IF('Données ménage'!D20<>\"\",'Données ménage'!D20&IF('Données ménage'!H20<>\"\",\"/ \"&'Données ménage'!H20,\"\"))","v":"Amélie LOMBARD / ROY MATHIS"},null,null,"Case jaune =","à remplir"]
[null,null,null,"Nom de la famille",null,null,{"$f":"IF('Données ménage'!$D$9<>\"\",'Données ménage'!D9,\"\")","v":""}]
[null,null,null,null,null,null,"Chauffage et ventilation"]
[]
[null,"Description du logement"]
[]
[null,null,"Système","Type d'énergie",null,{"$f":"'Consommation et énergies'!$D$8","v":0}]
[null,null,null,"Type de chaudière",null,{"$f":"IF('Consommation et énergies'!N8<>\"\",'Consommation et énergies'!N8,\"-\")","v":"-"}]
[null,null,null,"Type de compteur",null,{"$f":"IF(F8=\"Electricité\",\"-\",IF('Consommation et énergies'!W8<>\"\",'Consommation et énergies'!W8,\"-\"))","v":"-"}]
[null,null,null,"Type d'émetteurs",null,{"$f":"IF('Consommation et énergies'!D10<>\"\",'Consommation et énergies'!D10,\"\")","v":""}]
[null,null,null,"Type de ventilation",null,{"$f":"IF('Données bâti'!G43<>\"\",'Données bâti'!G43,\"\")","v":""}]
[]
[null,null,null,"Factures à l'appui",null,{"$f":"IF(OR('Consommation et énergies'!AJ155=\"oui\",'Consommation et énergies'!AJ156=\"oui\"),\"oui\",\"non\")","v":"non"}]
[]
[]
[null,"Comportements"]
[]
[null,null,null,null,null,null,null,null,"Etat initial (valeur fiche \"état des lieux\")",null,null,"Etat final"]
[null,null,"Gestes mis en œuvre",null,null,"Réponse","Actions possibles?",null,"Conso réelle (facture) en kWh/an","coefficient G","Conso théorique chauffage en kWh/an","Geste(s) cible",null,"Economie  réalisable en kWh/an"]
[null,null,"La température en hiver est-elle adaptée?\n(pull et non tee-shirt par exemple)",null,null,null,null,null,{"$f":"IF(F14<>\"Oui\",\"\",IF(F8=\"Electricité\",'Consommation et énergies'!$P$30*V132,'Consommation et énergies'!O49*VLOOKUP(T132,$U$132:$V$137,2,FALSE)))","v":""},{"$f":"IF('Données bâti'!E17=\"Collectif\",VLOOKUP('Données bâti'!E16,'Données bâti'!S89:U96,3,FALSE),VLOOKUP('Données bâti'!E16,'Données bâti'!S89:V96,4,FALSE))","v":{"$error":"#N/A"}},{"$f":"IF(OR('Données bâti'!E14=\"\",'Données bâti'!E15=\"\",'Données bâti'!E16=\"\"),\"INDIQUER LA SURFACE DU LOGEMENT, LA HAUTEUR SOUS PLAFOND ET L'ANNEE DE CONSTRUCTION DANS L'ONGLET 'Données bâti'\",IF(OR(F14=\"non\",F14=0,F14=\"\"),AG133,\"\"))","v":"INDIQUER LA SURFACE DU LOGEMENT, LA HAUTEUR SOUS PLAFOND ET L'ANNEE DE CONSTRUCTION DANS L'ONGLET 'Données bâti'"},{"$f":"IF(G21=U104,V104,\"\")","v":""},null,{"$f":"IF(AND(F$14=\"oui\",L21=V104),(I$21*0.07),IF(AND(F$14=\"non\",L21=V104),(K21*0.07),0))","v":0}]
[]
[null,null,"Abaissez-vous la température du logement pendant les absences de plus de 2h ?",null,null,null,null,null,null,null,null,{"$f":"IF(G23=U104,V105,\"\")","v":""},null,{"$f":"IF(AND(F$14=\"oui\",L23=\"Abaisser la température à 14°C pendant les absences\"),(I$21*0.12),IF(L23=\"Abaisser la température à 14°C pendant les absences\",(K$21*0.12),0))","v":0}]
[]
[null,null,"Aérez-vous votre logement tous les jours au moins 5 minutes?",null,null,null,null,null,null,null,null,{"$f":"IF(G25=U104,V106,\"\")","v":""},null,"Non mesurable"]
[]
[null,null,"Les radiateurs sont-ils bien dégagés de manière à permettre la diffusion de la chaleur (pas de meubles/rideaux)?",null,null,null,null,null,null,null,null,{"$f":"IF(G27=U104,V107,\"\")","v":""},null,"Non mesurable"]
[null,null,"Les grilles d'aération sont-elles dégagées?",null,null,null,null,null,null,null,null,{"$f":"IF(G28=U104,V108,\"\")","v":""},null,"Non mesurable"]
[null,null,null,null,null,null,null,null,"kWh/m²/an:",{"$f":"IF(ISERROR(Indicateurs!EP2),0,Indicateurs!EP2)","v":"-"}]
[]
[null,"Equipements économes à installer"]
[]
[null,null,"Fenêtres"]
[]
[null,null,"Nombre total de fenêtres"]
[]
[null,null,"Présence de fenêtres en simple vitrage",null,null,"Non",null,"Nombre de fenêtres en simple vitrage"]
[null,null,null,null,null,null,null,"Surface moyenne par fenêtre en simple vitrage (en m²)"]
[]
[null,null,"Equipement préconisé: ",null,null,"Film de survitrage"]
[null,null,"Economie estimée en kWh",null,null,{"$f":"IF(AND(L37<>\"\",F35=\"\"),\"INDIQUER NB FENETRES\",IF(L37=\"\",0,IF($F$14=\"oui\",($I$21*AC132*L37/F35),$K$21*AC132*L37/F35)))","v":0}]
[null,null,"Economie estimée en €",null,null,{"$f":"F41*'Consommation et énergies'!AF159","v":0}]
[null,null,"Coût investissement estimé",null,null,{"$f":"IF(L38<>\"\",Y132*L38*L37,Y132*L37*3)","v":0}]
[]
[]
[null,null,"Infiltration air par les encadrants fenêtres",null,null,null,null,"Nombre de fenêtres avec infiltration d'air"]
[null,null,null,null,null,null,null,"Métrage moyen par fenêtre avec infiltration (en m)"]
[]
[null,null,"Equipement préconisé: ",null,null,"Joints de fenêtre"]
[null,null,"Economie estimée en kWh",null,null,{"$f":"IF(AND(L46<>\"\",F35=\"\"),\"INDIQUER NB FENETRES\",IF(L46=\"\",0,IF($F$14=\"oui\",($I$21*AC133*L46/F35),$K$21*AC133*L46/F35)))","v":0}]
[null,null,"Economie estimée en €",null,null,{"$f":"F50*'Consommation et énergies'!AF159","v":0}]
[null,null,"Coût investissement estimé",null,null,{"$f":"IF(L47<>\"\",L46*L47*Y133,Y133*L46*7)","v":0}]
[]
[]
[null,null,"Portes"]
[]
[]
[null,null,"Infiltration d'air froid par les portes",null,null,null,null,"Nombre de portes avec infiltration d'air"]
[]
[null,null,"Equipement préconisé: ",null,null,"Bas de porte"]
[null,null,"Economie estimée en kWh",null,null,{"$f":"IF(K58=\"\",0,IF($F$14=\"oui\",($I$21*AC134*K58),$K$21*AC134*K58))","v":0}]
[null,null,"Economie estimée en €",null,null,{"$f":"F61*'Consommation et énergies'!AF159","v":0}]
[null,null,"Coût investissement estimé",null,null,{"$f":"Y134*K58","v":0}]
[]
[null,null,"Radiateurs"]
[]
[null,null,"Nombre total de radiateurs"]
[]
[null,null,"Radiateurs devant des fenêtres simple vitrage ou des murs mal isolés (froids)?",null,null,"Non"]
[null,null,null,null,null,null,null,"Nombre de radiateurs concernés"]
[null,null,null,null,null,null,null,"Surface moyenne par radiateur concerné (en m²)"]
[]
[null,null,"Equipement préconisé: ",null,null,"Film/panneau réfléchissant"]
[null,null,"Economie estimée en kWh",null,null,{"$f":"IF(AND(L70<>\"\",F67=\"\"),\"INDIQUER NB RADIATEURS\",IF(L70=\"\",0,IF($F$14=\"oui\",($I$21*AC135*L70/F67),$K$21*AC135*L70/F67)))","v":0}]
[null,null,"Economie estimée en €",null,null,{"$f":"F74*'Consommation et énergies'!$AF$159","v":0}]
[null,null,"Coût investissement estimé",null,null,{"$f":"IF(L71<>\"\",Y135*L70*L71,Y135*L70*1.2)","v":0}]
[]
[null,null,"Consommation initiale ",null,{"$f":"IF(F14=\"oui\",I21,IF(F14=\"non\",K21,0))","v":"INDIQUER LA SURFACE DU LOGEMENT, LA HAUTEUR SOUS PLAFOND ET L'ANNEE DE CONSTRUCTION DANS L'ONGLET 'Données bâti'"},"kWh/an"]
[null,null,"Total économie* ",null,{"$f":"SUM(N21:N24)","v":0}]
[null,null,"Total consommation future",null,{"$f":"E78-E79","v":{"$error":"#VALUE!"}}]
[null,null,"Canalisations"]
[]
[null,null,"Canalisation chauffage dans des lieux non isolés?",null,null,"Non"]
[null,null,null,null,null,null,null,"Métrage total de la tuyauterie à isoler"]
[]
[null,null,"Equipement préconisé: ",null,null,"Manchons isolants"]
[null,null,"Economie estimée en kWh",null,null,{"$f":"IF(OR(F83=\"Non\",F83=\"\",K84=\"\"),0,IF(AND(F83=\"Oui\",I21<>\"\"),I21*AC136,IF(F83=\"Oui\",AC136*K21)))","v":0}]
[null,null,"Economie estimée en €",null,null,{"$f":"F87*'Consommation et énergies'!$AF$159","v":0}]
[null,null,"Coût investissement estimé",null,null,{"$f":"IF(K84<>\"\",Y136*K84,0)","v":0}]
[]
[null,null,"Economie par la maîtrise de l'humidité et des températures"]
[]
[null,null,"Constatation",null,null,null,null,"Pièce(s) concernée(s)",null,"Equipement préconisé",null,"Economie réalisable","Couts investissement estimé"]
[null,null,"Présence de moisissures ou traces d'humidité",null,null,null,"Non",null,null,"Thermomètre hygromètre",null,"Non mesurable",{"$f":"Y137","v":15}]
[null,null,"Absence de système de régulation/programmation",null,null,null,"Non",null,null,"Thermomètre simple",null,null,{"$f":"Y138","v":4}]
[null,null,"Présence d'un chauffage mobile électrique",null,null,null,"Non",null,null,"Prise programmable",null,null,{"$f":"Y139","v":10}]
[]
[]
[]
[]
[null,null,null,null,null,null,null,null,null,null,null,null,null,null,null,null,null,null,null,"Données à ne pas modifier"]
[null,null,null,null,null,null,null,null,null,null,null,null,null,null,null,null,null,null,null,"Liste déroulantes"]
[null,null,null,null,null,null,null,null,null,null,null,null,null,null,null,null,null,null,null,"Choix","Possibilité mise en œuvre","Gestes cibles","Nombre fenêtres/radiateurs","Vitrage/porte","Radiateurs","Pièces humides","Chauffage mobile","Surface/métrage vitrage"]
[null,null,null,null,null,null,null,null,null,null,null,null,null,null,null,null,null,null,null,"Oui","Oui, je peux","Abaisser la température intérieure de 1°C",0,"Oui, en partie","Oui, tous","Salle de bain uniquement","Salon",1]
[null,null,null,null,null,null,null,null,null,null,null,null,null,null,null,null,null,null,null,"Non","Non, je ne peux pas","Abaisser la température à 14°C pendant les absences",1,"Oui, toutes","Oui, en partie","Autre que salle de bain","Chambre",2]
[null,null,null,null,null,null,null,null,null,null,null,null,null,null,null,null,null,null,null,null,null,"Penser à aérer 5 min tous les jours pour renouveler l'air et évacuer l'excès d'humidité",2,"Non","Non","Plusieurs pièces du logement","Cuisine",3]
[null,null,null,null,null,null,null,null,null,null,null,null,null,null,null,null,null,null,null,null,null,"Dégager les radiateurs pour permettre à la chaleur de se diffuser",3,null,null,null,"Salle de bain",4]
[null,null,null,null,null,null,null,null,null,null,null,null,null,null,null,null,null,null,null,null,null,"Dégager les grilles d'aération pour permettre le renouvellement d'air",4,null,null,null,"WC",5]
[null,null,null,null,null,null,null,null,null,null,null,null,null,null,null,null,null,null,null,null,null,null,5,null,null,null,"Hall",6]
[null,null,null,null,null,null,null,null,null,null,null,null,null,null,null,null,null,null,null,null,null,null,6,null,null,null,"Autre",7]
[null,null,null,null,null,null,null,null,null,null,null,null,null,null,null,null,null,null,null,null,null,null,7,null,null,null,null,8]
[null,null,null,null,null,null,null,null,null,null,null,null,null,null,null,null,null,null,null,null,null,null,8,null,null,null,null,9]
[null,null,null,null,null,null,null,null,null,null,null,null,null,null,null,null,null,null,null,null,null,null,9,null,null,null,null,10]
[null,null,null,null,null,null,null,null,null,null,null,null,null,null,null,null,null,null,null,null,null,null,10,null,null,null,null,11]
[null,null,null,null,null,null,null,null,null,null,null,null,null,null,null,null,null,null,null,null,null,null,11,null,null,null,null,12]
[null,null,null,null,null,null,null,null,null,null,null,null,null,null,null,null,null,null,null,null,null,null,12,null,null,null,null,13]
[null,null,null,null,null,null,null,null,null,null,null,null,null,null,null,null,null,null,null,null,null,null,null,null,null,null,null,14]
[null,null,null,null,null,null,null,null,null,null,null,null,null,null,null,null,null,null,null,null,null,null,null,null,null,null,null,15]
[null,null,null,null,null,null,null,null,null,null,null,null,null,null,null,null,null,null,null,null,null,null,null,null,null,null,null,16]
[null,null,null,null,null,null,null,null,null,null,null,null,null,null,null,null,null,null,null,null,null,null,null,null,null,null,null,17]
[null,null,null,null,null,null,null,null,null,null,null,null,null,null,null,null,null,null,null,null,null,null,null,null,null,null,null,18]
[null,null,null,null,null,null,null,null,null,null,null,null,null,null,null,null,null,null,null,null,null,null,null,null,null,null,null,19]
[null,null,null,null,null,null,null,null,null,null,null,null,null,null,null,null,null,null,null,null,null,null,null,null,null,null,null,20]
[null,null,null,null,null,null,null,null,null,null,null,null,null,null,null,null,null,null,null,null,null,null,null,null,null,null,null,21]
[null,null,null,null,null,null,null,null,null,null,null,null,null,null,null,null,null,null,null,null,null,null,null,null,null,null,null,22]
[null,null,null,null,null,null,null,null,null,null,null,null,null,null,null,null,null,null,null,null,null,null,null,null,null,null,null,23]
[null,null,null,null,null,null,null,null,null,null,null,null,null,null,null,null,null,null,null,null,null,null,null,null,null,null,null,24]
[null,null,null,null,null,null,null,null,null,null,null,null,null,null,null,null,null,null,null,null,null,null,null,null,null,null,null,25]
[]
[null,null,null,null,null,null,null,null,null,null,null,null,null,null,null,null,null,null,null,"Eléments de calcul"]
[null,null,null,null,null,null,null,null,null,null,null,null,null,null,null,null,null,null,null,"Besoins hors élec:","Part chauffage:",null,null,"Matériel","Prix unitaire","Unité",null,"Equipement","Taux d'économie sur les consommations de chauffage:",null,null,"Conso moyenne théorique"]
[null,null,null,null,null,null,null,null,null,null,null,null,null,null,null,null,null,null,null,{"$f":"'Consommation et énergies'!O47","v":0},"Electricité",{"$f":"IF(AND('Consommation et énergies'!AF155=\"Electricité spécifique + chauffage\",'Consommation et énergies'!AF156=\"cuisson non incluse\"),0.78,IF(AND('Consommation et énergies'!AF155=\"Electricité spécifique + chauffage\",'Consommation et énergies'!AF156=\"cuisson incluse\"),0.72,IF(AND('Consommation et énergies'!AF155=\"Electricité spécifique + chauffage + ECS\",'Consommation et énergies'!AF156=\"cuisson non incluse\"),0.63,IF(AND('Consommation et énergies'!AF155=\"Electricité spécifique + chauffage + ECS\",'Consommation et énergies'!AF156=\"cuisson incluse\"),0.57,0.63))))","v":0.63},null,"Film de survitrage",{"$f":"'MAJ Données'!F138","v":6.5},"m²",null,"Film de survitrage",{"$f":"'MAJ Données'!C138","v":0.05},null,null,"Besoins nets chauffage","Conso finale"]
[null,null,null,null,null,null,null,null,null,null,null,null,null,null,null,null,null,null,null,null,"Autre Energie",null,null,"Joints de calfeutrage",{"$f":"'MAJ Données'!F139","v":1.3},"m",null,"Joints de fenêtre",{"$f":"'MAJ Données'!C139","v":0.04},null,null,{"$f":"((J21*'Données bâti'!E14*'Données bâti'!E15*((IF('Données ménage'!H12=\"\",'Données ménage'!W101,VLOOKUP('Données ménage'!H12,'Données ménage'!V79:W101,2,FALSE))*'Données bâti'!S103)/1000))*'Données bâti'!S101*'Données bâti'!S105)","v":{"$error":"#N/A"}},{"$f":"AF133*VLOOKUP('Consommation et énergies'!D8,'Consommation et énergies'!AN111:AO121,2,FALSE)","v":{"$error":"#N/A"}}]
[null,null,null,null,null,null,null,null,null,null,null,null,null,null,null,null,null,null,null,null,"Chauffage uniquement",1,null,"Bas de porte",{"$f":"'MAJ Données'!F140","v":8},null,null,"Bas de porte",{"$f":"'MAJ Données'!C140","v":0.01}]
[null,null,null,null,null,null,null,null,null,null,null,null,null,null,null,null,null,null,null,null,"Chauffage + ECS + Cuisson",0.8,null,"Film isolant radiateurs",{"$f":"'MAJ Données'!F141","v":8},"m²",null,"Film/panneau réfléchissant",{"$f":"'MAJ Données'!C141","v":0.05}]
[null,null,null,null,null,null,null,null,null,null,null,null,null,null,null,null,null,null,null,null,"Chauffage + ECS",0.84,null,"Manchon isolant",{"$f":"'MAJ Données'!F142","v":1.5},"m",null,"Manchon isolant",{"$f":"'MAJ Données'!C142","v":0.04}]
[null,null,null,null,null,null,null,null,null,null,null,null,null,null,null,null,null,null,null,null,"Chauffage + Cuisson",0.95,null,"Thermo-hygromètre",{"$f":"'MAJ Données'!F143","v":15}]
[null,null,null,null,null,null,null,null,null,null,null,null,null,null,null,null,null,null,null,null,null,null,null,"Thermomètre simple",{"$f":"'MAJ Données'!F144","v":4}]
[null,null,null,null,null,null,null,null,null,null,null,null,null,null,null,null,null,null,null,null,null,null,null,"Prise programmable",{"$f":"'MAJ Données'!F145","v":10}]

{"sheet":"Eau","index":4,"n_rows":173,"n_cols":43,"rows_kept":173,"cut":false,"hidden":false,"merged":[[59,11,59,12],[55,2,56,2],[42,11,42,12],[43,11,43,12],[49,2,49,3],[50,2,50,3],[55,3,56,3],[55,4,56,4],[53,7,54,12],[55,11,56,12],[55,10,56,10],[55,9,56,9],[55,8,56,8],[55,7,56,7],[35,7,36,12],[37,11,38,12],[39,11,39,12],[40,11,40,12],[41,11,41,12],[37,7,38,7],[37,8,38,8],[37,9,38,9],[37,10,38,10],[2,6,2,7],[3,6,3,7],[6,1,6,14],[8,7,11,7],[8,8,8,10],[9,2,9,3],[9,8,9,10],[10,2,10,3],[11,2,11,3],[10,8,10,10],[11,8,11,10],[12,2,12,3],[15,1,15,14],[21,6,21,8],[21,9,21,13],[18,2,18,4],[18,6,18,11],[33,1,33,14],[22,2,22,3],[22,9,22,10],[23,2,23,3],[23,9,23,10],[28,2,28,3],[28,9,28,10],[24,2,24,3],[24,9,24,10],[25,2,25,3],[25,9,25,10],[26,2,26,3],[27,2,27,3],[27,9,27,10],[26,6,27,6],[26,9,26,10],[37,2,38,2],[37,3,38,3],[37,4,38,4],[37,5,38,5],[47,8,48,8],[37,6,38,6],[45,7,46,10],[47,10,48,10],[47,9,48,9],[47,7,48,7],[47,4,48,4],[47,5,48,5],[47,6,48,6],[65,3,65,4],[55,5,56,5],[55,6,56,6],[61,2,61,4],[58,15,58,16],[63,2,64,2],[63,3,64,4],[63,5,64,5],[63,6,64,6],[61,7,62,10],[63,7,64,7],[63,8,64,8],[63,9,64,9],[63,10,64,10],[57,11,57,12],[58,11,58,12],[72,6,78,6],[72,8,78,8],[73,3,73,4],[74,3,74,4],[78,3,78,4],[72,3,72,4],[75,2,77,2],[75,3,75,4],[76,3,76,4],[77,3,77,4],[66,3,66,4],[67,3,67,4]]}
[]
[]
[null,null,null,null,"Nom du/ des chargé(s) de visite",null,{"$f":"IF('Données ménage'!D20<>\"\",'Données ménage'!D20&IF('Données ménage'!H20<>\"\",\"/ \"&'Données ménage'!H20,\"\"))","v":"Amélie LOMBARD / ROY MATHIS"},null,null,"Case jaune =","à remplir"]
[null,null,null,null,"Nom de la famille",null,{"$f":"IF('Données ménage'!$D$9<>\"\",'Données ménage'!D9,\"\")","v":""}]
[]
[]
[null,"Description du logement"]
[]
[null,null,"Nbre de pers. dans le logement",null,{"$f":"IF('Données ménage'!D27<>\"\",'Données ménage'!D27,\"\")","v":""},null,null,null,"Prix du mètre cube eau froide",null,null,{"$f":"'Consommation et énergies'!$Y$59","v":4}]
[null,null,"Jours de présence par an",null,{"$f":"'Données ménage'!G33","v":365},null,null,null,"Prix énergie pour 1m3 d'eau chaude",null,null,{"$f":"IF('Consommation et énergies'!D11='Consommation et énergies'!AF95,Eau!AA117,Eau!AA118)","v":3.6440320000000002}]
[null,null,"Type de chaudière",null,{"$f":"IF('Consommation et énergies'!N8<>\"\",'Consommation et énergies'!N8,\"-\")","v":"-"},null,null,null,"Energie eau chaude",null,null,{"$f":"IF('Consommation et énergies'!D11<>\"\",'Consommation et énergies'!D11,\"-\")","v":"-"}]
[null,null,"Type de production",null,{"$f":"IF('Consommation et énergies'!N11<>\"\",'Consommation et énergies'!N11,\"-\")","v":"-"},null,null,null,"Présence d'un commutateur jour/nuit (si électrique)"]
[null,null,"Volume du ballon"]
[]
[]
[null,"Les comportements"]
[]
[null,null,"Le robinet de la douche est-il un mitigeur?",null,null,null,"  Equipement conseillé: variateur de débit douche/stop douche pour permettre des économies d'eau"]
[null,null,"Le robinet de la cuisine est-il un mitigeur?",null,null,null,"  Privilégier un économiseur d'eau évier avec position stop !"]
[]
[]
[null,null,null,null,null,null,"Etat initial ",null,null,"Etat final"]
[null,null,"Gestes mis en œuvre",null,"Réponse","Actions possibles ?","Usage","Nb personnes concernées","Conso par an en m3","Geste(s) cible",null,"Economie  réalisable en m3/an","Economie en € par an","Economie en kWh/an"]
[null,null,"Coupez-vous l'eau lors du brossage de dents?",null,null,null,null,null,{"$f":"IF(E24=\"Non\",((G24*H24*E10*W125)/1000),IF(E24=\"Oui\",((G24*H24*E10*W124)/1000),0))","v":0},{"$f":"IF(AND(F24=$X$86,H24<>\"\",G24<>\"\"),AA87,\"\")","v":""},null,{"$f":"IF(I24=0,0,IF(J24=AA87,((I24-(G24*H24*E10*W124)/1000)),0))","v":0},{"$f":"L24*($L$9*60%)","v":0}]
[null,null,"Coupez-vous l'eau pendant la vaisselle à la main?",null,null,null,null,null,{"$f":"IF(E25=\"Non\",((G25*E10*W129)/1000),IF(E25=\"Oui\",((G25*E10*W128)/1000),0))","v":0},{"$f":"IF(AND(F25=$X$86,G25<>\"\"),AA88,\"\")","v":""},null,{"$f":"IF(I25=0,0,IF(J25=AA88,((I25-(G25*E10*W128)/1000)),0))","v":0},{"$f":"(L25*$L$9*60%)+(L25*$L$10*X161)","v":0},{"$f":"IF(AND($E$11=\"Collective\",$E$12='Consommation et énergies'!$AL$96),L25*X161*$X$119,IF(AND($E$11=\"Collective\",$E$12='Consommation et énergies'!$AL$97),L25*X161*$X$119,IF(AND($E$11=\"Individuelle\",$E$12='Consommation et énergies'!$AL$96),L25*X161*$X$120,IF(AND($E$11=\"Individuelle\",$E$12='Consommation et énergies'!$AL$95),L25*X161*$X$120,L25*X161*$X$118))))","v":0}]
[null,null,"Coupez-vous l'eau pendant le rasage?",null,null,null,null,null,{"$f":"IF(E26=\"Non\",((G26*H26*E10*W131)/1000),IF(E26=\"Oui\",((G26*H26*E10*W130)/1000),0))","v":0},{"$f":"IF(AND(F26=$X$86,H26<>\"\",G26<>\"\"),AA89,\"\")","v":""},null,{"$f":"IF(I26=0,0,IF(J26=AA89,((I26-(G26*H26*E10*W130)/1000)),0))","v":0},{"$f":"(L26*$L$9*60%)+(L26*$L$10*40%)","v":0},{"$f":"IF(AND($E$11=\"Collective\",$E$12='Consommation et énergies'!$AL$96),L26*40%*$X$119,IF(AND($E$11=\"Collective\",$E$12='Consommation et énergies'!$AL$97),L26*40%*$X$119,IF(AND($E$11=\"Individuelle\",$E$12='Consommation et énergies'!$AL$96),L26*40%*$X$120,IF(AND($E$11=\"Individuelle\",$E$12='Consommation et énergies'!$AL$95),L26*40%*$X$120,L26*40%*$X$118))))","v":0}]
[null,null,"Combien de temps passez-vous en moyenne sous la douche?",null,null,null,null,null,{"$f":"IF(OR(E27=\"\",E9=\"\"),0,E27*0.75*G27*E10*E9*W132/1000)","v":0},{"$f":"IF(AND(F27=$X$86,G27<>\"\"),AA92,\"\")","v":""},null,{"$f":"IF(AND(J27=AA92,I27>0),(I27-(G27*E9*W132*E10*5*0.75)/1000),0)","v":0},{"$f":"(L27*$L$9*60%)+(L27*$L$10*X159)","v":0},{"$f":"IF(AND($E$11=\"Collective\",$E$12='Consommation et énergies'!$AL$96),L27*X159*$X$119,IF(AND($E$11=\"Collective\",$E$12='Consommation et énergies'!$AL$97),L27*X159*$X$119,IF(AND($E$11=\"Individuelle\",$E$12='Consommation et énergies'!$AL$96),L27*X159*$X$120,IF(AND($E$11=\"Individuelle\",$E$12='Consommation et énergies'!$AL$95),L27*X159*$X$120,L27*X159*$X$118))))","v":0}]
[null,null,"Coupez-vous l'eau pendant la douche?",null,null,null,null,null,{"$f":"IF(E28=\"non\",(G27*H28*W133*E10)/1000,0)","v":0},{"$f":"IF(AND(F28=$X$86,H28<>\"\",G27<>\"\"),AA91,\"\")","v":""},null,{"$f":"IF(AND(J28<>\"\",F18=\"Non\"),I28-((W134*G27*H28*E10)/1000),IF(J28<>\"\",I28,0))","v":0},{"$f":"(L28*$L$9*60%)+(L28*$L$10*X159)","v":0},{"$f":"IF(AND($E$11=\"Collective\",$E$12='Consommation et énergies'!$AL$96),L28*X159*$X$119,IF(AND($E$11=\"Collective\",$E$12='Consommation et énergies'!$AL$97),L28*X159*$X$119,IF(AND($E$11=\"Individuelle\",$E$12='Consommation et énergies'!$AL$96),L28*X159*$X$120,IF(AND($E$11=\"Individuelle\",$E$12='Consommation et énergies'!$AL$95),L28*X159*$X$120,L28*X159*$X$118))))","v":0}]
[null,null,"Vous arrive-t-il de prendre des bains?",null,null,null,null,null,{"$f":"IF(E29=\"Non\",0,IF(F29=X86,((G29*H29*E10*W136)/1000),0))","v":0},{"$f":"IF(AND(F29=$X$86,H29<>\"\",G29<>\"\"),AA90,\"\")","v":""},null,{"$f":"IF(J29=AA90,((I29-(G29*H29*E10*W132)/1000)),0)","v":0},{"$f":"(L29*$L$9*60%)+(L29*$L$10*X159)","v":0},{"$f":"IF(AND($E$11=\"Collective\",$E$12='Consommation et énergies'!$AL$96),L29*X159*$X$119,IF(AND($E$11=\"Collective\",$E$12='Consommation et énergies'!$AL$97),L29*X159*$X$119,IF(AND($E$11=\"Individuelle\",$E$12='Consommation et énergies'!$AL$96),L29*X159*$X$120,IF(AND($E$11=\"Individuelle\",$E$12='Consommation et énergies'!$AL$95),L29*X159*$X$120,L29*X159*$X$118))))","v":0}]
[]
[]
[]
[]
[null,"Les équipements économes à installer"]
[]
[null,null,"Robinets: présence d'équipements économes",null,null,null,null,"Equipement préconisé: Mousseur lavabo ou évier"]
[null,null,"Economiseur robinet (pertinent si débit supérieur à l'équipement préconisé):"]
[null,null,"Pièce","Equipement concerné","Débit mesuré avant: litres/ minute","Nb minutes d'utilisation par jour ","Conso par an en m3 mesuré","Conso par an en m3 si installation équipement","Economies m³/an potentielle","Economie en € par an potentielle","Economie en kWh/an potentielle","OPTIONNEL: Saisie manuelle du débit d'eau (en l/minute) après installation de l'équipement économe:"]
[]
[null,null,null,null,null,null,{"$f":"IF(D40<>\"\",E40*F40*VLOOKUP(D40,$W$108:$Y$110,3,FALSE)*$E$10/1000,0)","v":0},{"$f":"IF(AND(D40<>\"\",L40<>\"\"),F40*VLOOKUP(D40,$W$108:$Y$110,3,FALSE)*L40*$E$10/1000,IF(D40<>\"\",F40*VLOOKUP(D40,$W$108:$Y$110,3,FALSE)*(VLOOKUP(D40,$W$108:$Z$110,2,FALSE))*$E$10/1000,0))","v":0},{"$f":"IF(D40<>\"\",G40-H40,0)","v":0},{"$f":"(I40*$L$9*60%)+((I40*10%)*$L$10)","v":0},{"$f":"IF(AND($E$11=\"Collective\",$E$12='Consommation et énergies'!$AL$96),I40*10%*$X$119,IF(AND($E$11=\"Collective\",$E$12='Consommation et énergies'!$AL$97),I40*10%*$X$119,IF(AND($E$11=\"Individuelle\",$E$12='Consommation et énergies'!$AL$96),I40*10%*$X$120,IF(AND($E$11=\"Individuelle\",$E$12='Consommation et énergies'!$AL$95),I40*10%*$X$120,I40*10%*$X$118))))","v":0}]
[null,null,null,null,null,null,{"$f":"IF(D41<>\"\",E41*F41*VLOOKUP(D41,$W$108:$Y$110,3,FALSE)*$E$10/1000,0)","v":0},{"$f":"IF(AND(D41<>\"\",L41<>\"\"),F41*VLOOKUP(D41,$W$108:$Y$110,3,FALSE)*L41*$E$10/1000,IF(D41<>\"\",F41*VLOOKUP(D41,$W$108:$Y$110,3,FALSE)*(VLOOKUP(D41,$W$108:$Z$110,2,FALSE))*$E$10/1000,0))","v":0},{"$f":"IF(D41<>\"\",G41-H41,0)","v":0},{"$f":"(I41*$L$9*60%)+((I41*10%)*$L$10)","v":0},{"$f":"IF(AND($E$11=\"Collective\",$E$12='Consommation et énergies'!$AL$96),I41*10%*$X$119,IF(AND($E$11=\"Collective\",$E$12='Consommation et énergies'!$AL$97),I41*10%*$X$119,IF(AND($E$11=\"Individuelle\",$E$12='Consommation et énergies'!$AL$96),I41*10%*$X$120,IF(AND($E$11=\"Individuelle\",$E$12='Consommation et énergies'!$AL$95),I41*10%*$X$120,I41*10%*$X$118))))","v":0}]
[null,null,null,null,null,null,0,{"$f":"IF(AND(D42<>\"\",L42<>\"\"),F42*VLOOKUP(D42,$W$108:$Y$110,3,FALSE)*L42*$E$10/1000,IF(D42<>\"\",F42*VLOOKUP(D42,$W$108:$Y$110,3,FALSE)*(VLOOKUP(D42,$W$108:$Z$110,2,FALSE))*$E$10/1000,0))","v":0},{"$f":"IF(D42<>\"\",G42-H42,0)","v":0},0,{"$f":"IF(AND($E$11=\"Collective\",$E$12='Consommation et énergies'!$AL$96),I42*10%*$X$119,IF(AND($E$11=\"Collective\",$E$12='Consommation et énergies'!$AL$97),I42*10%*$X$119,IF(AND($E$11=\"Individuelle\",$E$12='Consommation et énergies'!$AL$96),I42*10%*$X$120,IF(AND($E$11=\"Individuelle\",$E$12='Consommation et énergies'!$AL$95),I42*10%*$X$120,I42*10%*$X$118))))","v":0}]
[null,null,null,null,null,null,0,{"$f":"IF(AND(D43<>\"\",L43<>\"\"),F43*VLOOKUP(D43,$W$108:$Y$110,3,FALSE)*L43*$E$10/1000,IF(D43<>\"\",F43*VLOOKUP(D43,$W$108:$Y$110,3,FALSE)*(VLOOKUP(D43,$W$108:$Z$110,2,FALSE))*$E$10/1000,0))","v":0},{"$f":"IF(D43<>\"\",G43-H43,0)","v":0},0,{"$f":"IF(AND($E$11=\"Collective\",$E$12='Consommation et énergies'!$AL$96),I43*10%*$X$119,IF(AND($E$11=\"Collective\",$E$12='Consommation et énergies'!$AL$97),I43*10%*$X$119,IF(AND($E$11=\"Individuelle\",$E$12='Consommation et énergies'!$AL$96),I43*10%*$X$120,IF(AND($E$11=\"Individuelle\",$E$12='Consommation et énergies'!$AL$95),I43*10%*$X$120,I43*10%*$X$118))))","v":0}]
[null,null,"Total",null,null,null,null,{"$f":"SUM(H40:H43)","v":0},{"$f":"SUM(I40:I43)","v":0},{"$f":"SUM(J40:J43)","v":0},{"$f":"SUM(K40:K43)","v":0}]
[]
[null,null,"Toilettes: présence d'équipements économes",null,null,null,null,"Equipement préconisé: Système éco-WC"]
[null,null,"Toilettes:"]
[" ",null,"Pièce concernée",null,"Débit avant par usage","Usage par jour et par personne","Conso par an en m3","Conso par an en m3 après ","Economies m³/an","Economie en € par an","Economie en kWh/an"]
[]
[null,null,null,null,9,null,{"$f":"IF(F50<>\"\",E50*F50*$E$9*$E$10/1000,0)","v":0},{"$f":"IF(F50<>\"\",(F50*$X$111*$E$9*$E$10/1000),0)","v":0},{"$f":"IF(F50<>\"\",G50-H50,0)","v":0},{"$f":"I50*$L$9*60%","v":0},"-"]
[null,null,null,null,9,null,{"$f":"IF(F51<>\"\",E51*F51*$E$9*$E$10/1000,0)","v":0},{"$f":"IF(F51<>\"\",(F51*$X$111*$E$9*$E$10/1000),0)","v":0},{"$f":"IF(F51<>\"\",G51-H51,0)","v":0},{"$f":"I51*$L$9*60%","v":0},"-"]
[null,null,"Total",null,null,null,null,{"$f":"SUM(H50:H51)","v":0},{"$f":"SUM(I50:I51)","v":0},{"$f":"SUM(J50:J51)","v":0},{"$f":"SUM(K50:K51)","v":0}]
[]
[null,null,"Douche: présence d'une douchette économe",null,null,null,null,"Equipement préconisé: Douchette économe"]
[null,null,"Douche (pertinent si débit supérieur à l'équipement préconisé):"]
[" ",null,"Pièce concernée","Débit mesuré avant: litres/ minute","Nb de personnes concernées par l'équipement","Temps passé sous la douche","Conso par an en m3","Conso par an en m3 après","Economies m³/an","Economie en € par an","Economie en kWh/an","OPTIONNEL: Saisie manuelle du débit d'eau (en l/minute) après installation de l'équipement économe:"]
[]
[null,null,null,null,null,{"$f":"IF(D58=\"\",0,IF($J$27=$AA$92,5,IF($E$27<>\"\",$E$27,\"Indiquer le tps dans le 1er tableau\")))","v":0},{"$f":"IF(E58<>\"\",(D58*E58*$G$27*0.75*$E$10*F58)/1000,0)","v":0},{"$f":"IF(AND(D58<>\"\",L58<>\"\"),E58*F58*L58*0.75*$G$27*$E$10/1000,IF(E58<>\"\",E58*F58*$X$112*0.75*$G$27*$E$10/1000,0))","v":0},{"$f":"IF(E58<>\"\",G58-H58,0)","v":0},{"$f":"(I58*$L$9*60%)+((I58*$X$159)*$L$10)","v":0},{"$f":"IF(AND($E$11=\"Collective\",$E$12='Consommation et énergies'!$AL$96),I58*$X$159*$X$119,IF(AND($E$11=\"Collective\",$E$12='Consommation et énergies'!$AL$97),I58*$X$159*$X$119,IF(AND($E$11=\"Individuelle\",$E$12='Consommation et énergies'!$AL$96),I58*$X$159*$X$120,IF(AND($E$11=\"Individuelle\",$E$12='Consommation et énergies'!$AL$95),I58*$X$159*$X$120,I58*$X$159*$X$118))))","v":0}]
[null,null,null,null,null,{"$f":"IF(D59=\"\",0,IF($J$27=$AA$92,5,IF($E$27<>\"\",$E$27,\"Indiquer le tps dans le 1er tableau\")))","v":0},{"$f":"IF(E59<>\"\",(D59*E59*$G$27*0.75*$E$10*F59)/1000,0)","v":0},{"$f":"IF(AND(D59<>\"\",L59<>\"\"),E59*F59*L59*0.75*$G$27*$E$10/1000,IF(E59<>\"\",E59*F59*$X$112*0.75*$G$27*$E$10/1000,0))","v":0},{"$f":"IF(E59<>\"\",G59-H59,0)","v":0},{"$f":"(I59*$L$9*60%)+((I59*$X$159)*$L$10)","v":0},{"$f":"IF(AND($E$11=\"Collective\",$E$12='Consommation et énergies'!$AL$96),I59*$X$159*$X$119,IF(AND($E$11=\"Collective\",$E$12='Consommation et énergies'!$AL$97),I59*$X$159*$X$119,IF(AND($E$11=\"Individuelle\",$E$12='Consommation et énergies'!$AL$96),I59*$X$159*$X$120,IF(AND($E$11=\"Individuelle\",$E$12='Consommation et énergies'!$AL$95),I59*$X$159*$X$120,I59*$X$159*$X$118))))","v":0}]
[null,null,"Total",null,null,null,null,{"$f":"SUM(H58:H59)","v":0},{"$f":"SUM(I58:I59)","v":0},{"$f":"SUM(J58:J59)","v":0},{"$f":"SUM(K58:K59)","v":0}]
[null,null,"Attention, le nombre de personnes concernées par les équipements ne peut pas excéder le nombre total de personnes présentes dans le logement!"]
[null,null,"Fuites: présence de fuites d'eau",null,null,"Non",null,"Equipement préconisé: Joints de robinetterie"]
[null,null,"Fuites"]
[null,null,"Pièce concernée","Type de fuite",null,"Durée de la fuite en nb de jours","Conso par an en m3","Conso par an en m3 après","Economies m³/an","Economie en € par an","Economie en kWh/an"]
[]
[null,null,null,null,null,null,{"$f":"IF(D66=$Y$124,(F66*$Z$124*24)/1000,IF(D66=$Y$125,(F66*$Z$125*24)/1000,IF(D66=$Y$126,(F66*$Z$126*24)/1000,IF(D66=$Y$127,((F66*$Z$127*24)/1000),IF(D66=$Y$128,(F66*$Z$128*24)/1000,0)))))","v":0},{"$f":"IF(F66<>\"\",0,G66)","v":0},{"$f":"IF(D66<>\"\",G66-H66,0)","v":0},{"$f":"I66*$L$9*60%","v":0},"-"]
[null,null,null,null,null,null,{"$f":"IF(D67=$Y$124,(F67*$Z$124*24)/1000,IF(D67=$Y$125,(F67*$Z$125*24)/1000,IF(D67=$Y$126,(F67*$Z$126*24)/1000,IF(D67=$Y$127,((F67*$Z$127*24)/1000),IF(D67=$Y$128,(F67*$Z$128)/1000,0)))))","v":0},{"$f":"IF(F67<>\"\",0,G67)","v":0},{"$f":"IF(D67<>\"\",G67-H67,0)","v":0},{"$f":"I67*$L$9*60%","v":0},"-"]
[null,null,null,null,null,null,0,{"$f":"IF(F68<>\"\",0,G68)","v":0},0,{"$f":"I68*$L$9*60%","v":0},"-"]
[null,null,"Total",null,null,null,null,{"$f":"SUM(H66:H68)","v":0},{"$f":"SUM(I66:I68)","v":0},{"$f":"SUM(J66:J68)","v":0},{"$f":"SUM(K66:K68)","v":0}]
[]
[]
[]
[null,null,null,"Consommation initiale ",null,{"$f":"SUM(I24:I29,G50:G51,G66:G68)*110%","v":0},"m3/an",{"$f":"SUM(S124:S128)*110%","v":0},"kWh/an"]
[null,null,null,"Economie",null,{"$f":"SUM(L24:L29,I44,I52,I60,I69)","v":0},null,{"$f":"SUM(N27:N29,K44,K52,K60,K69)","v":0}]
[null,null,null,"Consommation future",null,{"$f":"F73-F74","v":0},null,{"$f":"H73-H74","v":0}]
[null,null,"En incluant Lave-linge et lave-vaisselle","Consommation initiale ",null,5.64]
[null,null,null,"Economie",null,0]
[null,null,null,"Consommation future",null,{"$f":"F76-F77","v":5.64}]
[null,null,null,"Total consommation future",null,{"$f":"F75+F78","v":5.64},null,{"$f":"H75","v":0}]
[]
[]
[null,null,null,null,null,null,null,null,null,null,null,null,null,null,null,null,null,null,null,null,null,"Données à ne pas modifier"]
[null,null,null,null,null,null,null,null,null,null,null,null,null,null,null,null,null,null,null,null,null,"Listes déroulantes"]
[]
[null,null,null,null,null,null,null,null,null,null,null,null,null,null,null,null,null,null,null,null,null,"Choix","Volume ballon","Possibilité mise en œuvre","Nb usage par jour","Tps utilisation par jour","Gestes cibles","Commutateur","Nb pers","Presence equipement","Pièce concernée","Equipement concerné","Type fuite","Temps douche"]
[null,null,null,null,null,null,null,null,null,null,null,null,null,null,null,null,null,null,null,null,null,"Oui","<50 litres","Oui, je peux",0.14000000000000001,1,"Couper l'eau lors du lavage des mains","Non présent",0,"Oui, tous","Toilette","Evier","Robinet qui goutte",1]
[null,null,null,null,null,null,null,null,null,null,null,null,null,null,null,null,null,null,null,null,null,"Non","Entre 50 et 150 litres","Non, je ne peux pas",0.28999999999999998,2,"Couper l'eau lors du brossage de dents","Présent marche forcé",1,"Non","Salle de bain","Lavabo","Robinet qui fuit (filet d'eau)",2]
[null,null,null,null,null,null,null,null,null,null,null,null,null,null,null,null,null,null,null,null,null,null,"> 150 litres",null,0.43,3,"Couper l'eau lors de la vaisselle (ou utiliser des bacs)","Présent marche auto",2,null,"Cuisine","Autre","Fuite légère chasse d'eau",3]
[null,null,null,null,null,null,null,null,null,null,null,null,null,null,null,null,null,null,null,null,null,null,null,null,0.56999999999999995,4,"Couper l'eau lors du rasage",null,3,null,"Autre pièce",null,"Fuite importante chasse d'eau",4]
[null,null,null,null,null,null,null,null,null,null,null,null,null,null,null,null,null,null,null,null,null,null,null,null,0.71,5,"Remplacer les bains par des douches",null,4,null,null,null,"Fuite groupe de sécurité",5]
[null,null,null,null,null,null,null,null,null,null,null,null,null,null,null,null,null,null,null,null,null,null,null,null,1,6,"Couper l'eau pendant la douche lorsqu'elle coule inutilement",null,5,null,null,null,null,6]
[null,null,null,null,null,null,null,null,null,null,null,null,null,null,null,null,null,null,null,null,null,null,null,null,2,7,"Réduire le temps passé sous la douche à 5 minutes maximum",null,6,null,null,null,null,7]
[null,null,null,null,null,null,null,null,null,null,null,null,null,null,null,null,null,null,null,null,null,null,null,null,3,8,null,null,7,null,null,null,null,8]
[null,null,null,null,null,null,null,null,null,null,null,null,null,null,null,null,null,null,null,null,null,null,null,null,4,9,null,null,8,null,null,null,null,9]
[null,null,null,null,null,null,null,null,null,null,null,null,null,null,null,null,null,null,null,null,null,null,null,null,5,10,null,null,9,null,null,null,null,10]
[null,null,null,null,null,null,null,null,null,null,null,null,null,null,null,null,null,null,null,null,null,null,null,null,6,11,null,null,10,null,null,null,null,11]
[null,null,null,null,null,null,null,null,null,null,null,null,null,null,null,null,null,null,null,null,null,null,null,null,null,12,null,null,11,null,null,null,null,12]
[null,null,null,null,null,null,null,null,null,null,null,null,null,null,null,null,null,null,null,null,null,null,null,null,null,null,null,null,12,null,null,null,null,13]
[null,null,null,null,null,null,null,null,null,null,null,null,null,null,null,null,null,null,null,null,null,null,null,null,null,null,null,null,13,null,null,null,null,14]
[null,null,null,null,null,null,null,null,null,null,null,null,null,null,null,null,null,null,null,null,null,null,null,null,null,null,null,null,14,null,null,null,null,15]
[null,null,null,null,null,null,null,null,null,null,null,null,null,null,null,null,null,null,null,null,null,null,null,null,null,null,null,null,15,null,null,null,null,16]
[null,null,null,null,null,null,null,null,null,null,null,null,null,null,null,null,null,null,null,null,null,null,null,null,null,null,null,null,null,null,null,null,null,17]
[null,null,null,null,null,null,null,null,null,null,null,null,null,null,null,null,null,null,null,null,null,null,null,null,null,null,null,null,null,null,null,null,null,18]
[null,null,null,null,null,null,null,null,null,null,null,null,null,null,null,null,null,null,null,null,null,"Elements de calcul"]
[]
[null,null,null,null,null,null,null,null,null,null,null,null,null,null,null,null,null,null,null,null,null,"Economies réalisables par les équipements économes"]
[null,null,null,null,null,null,null,null,null,null,null,null,null,null,null,null,null,null,null,null,null,"Type d'équipement économe",null,"Litres/min économiseur eau","Taux d'utilisation selon l'usage"]
[null,null,null,null,null,null,null,null,null,null,null,null,null,null,null,null,null,null,null,null,null,"Mousseur","Lavabo",{"$f":"'MAJ Données'!C151","v":6},0.85]
[null,null,null,null,null,null,null,null,null,null,null,null,null,null,null,null,null,null,null,null,null,"Mousseur","Evier",{"$f":"'MAJ Données'!C150","v":8},0.75]
[null,null,null,null,null,null,null,null,null,null,null,null,null,null,null,null,null,null,null,null,null,"Mousseur","Autre",{"$f":"'MAJ Données'!C152","v":8},0.75]
[null,null,null,null,null,null,null,null,null,null,null,null,null,null,null,null,null,null,null,null,null,"Système éco-chasse d'eau",null,{"$f":"E50-'MAJ Données'!C153","v":7}]
[null,null,null,null,null,null,null,null,null,null,null,null,null,null,null,null,null,null,null,null,null,"Douchette économe",null,{"$f":"'MAJ Données'!C154","v":9}]
[]
[]
[null,null,null,null,null,null,null,null,null,null,null,null,null,null,null,null,null,null,null,null,null,"Déperditions thermiques eau chaude"]
[null,null,null,null,null,null,null,null,null,null,null,null,null,null,null,null,null,null,null,null,null,"Energie nécessaire pour chauffer 1 litre d'1°C",1.1619999999999999,null,null,"Prix kWh ECS ménage","Prix m3 eau chaude"]
[null,null,null,null,null,null,null,null,null,null,null,null,null,null,null,null,null,null,null,null,null,"1m3 d'eau chaude de 12 à 40°",{"$f":"28*W116","v":32.536000000000001},null,"Electricité",{"$f":"IF(AND('Consommation et énergies'!D11='Consommation et énergies'!AF95,'Consommation et énergies'!D28=\"Oui\",'Consommation et énergies'!P29='Consommation et énergies'!BB110,Eau!L12=Eau!AB88),'Consommation et énergies'!AJ131,IF(AND('Consommation et énergies'!D11='Consommation et énergies'!AF95,'Consommation et énergies'!D28=\"Oui\",'Consommation et énergies'!P29<>\"\",Eau!L12=Eau!AB88),VLOOKUP('Consommation et énergies'!P29,'Consommation et énergies'!AG126:AO140,4,FALSE),IF(AND('Consommation et énergies'!D11='Consommation et énergies'!AF95,Eau!L12=Eau!AB88),'Consommation et énergies'!AJ131,IF(AND('Consommation et énergies'!D11='Consommation et énergies'!AF95,'Consommation et énergies'!D28=\"Oui\",'Consommation et énergies'!P29<>\"\",Eau!L12<>Eau!AB88),'Consommation et énergies'!Z28,'Consommation et énergies'!Z28))))","v":0.2228},{"$f":"Z117*X118","v":7.6839620479999997}]
[null,null,null,null,null,null,null,null,null,null,null,null,null,null,null,null,null,null,null,null,null,"Perte avec ballon électrique",0.06,{"$f":"$W$117+($W$117*W118)","v":34.488160000000001},"Autre énergie",{"$f":"IF('Consommation et énergies'!D11=\"\",'Consommation et énergies'!AG121,IF('Consommation et énergies'!Z45=\"-\",VLOOKUP('Consommation et énergies'!D11,'Consommation et énergies'!AF111:AG121,2,FALSE),IF(AND('Consommation et énergies'!D43=\"Oui\",OR('Consommation et énergies'!O47='Consommation et énergies'!AS96,'Consommation et énergies'!O47='Consommation et énergies'!AS97,'Consommation et énergies'!O47='Consommation et énergies'!AS100,'Consommation et énergies'!O47='Consommation et énergies'!AS101)),'Consommation et énergies'!Z45,VLOOKUP('Consommation et énergies'!D11,'Consommation et énergies'!AF111:AG121,2,FALSE))))","v":0.1},{"$f":"IF('Consommation et énergies'!N8='Consommation et énergies'!AH95,Eau!Z118*Eau!X120,IF('Consommation et énergies'!N8='Consommation et énergies'!AH96,Eau!X119*Eau!Z118,X121*Z118))","v":3.6440320000000002}]
[null,null,null,null,null,null,null,null,null,null,null,null,null,null,null,null,null,null,null,null,null,"Perte avec chaudière collective",0.21,{"$f":"$W$117+($W$117*W119)","v":39.368560000000002}]
[null,null,null,null,null,null,null,null,null,null,null,null,null,null,null,null,null,null,null,null,null,"Perte avec chaudière individuelle",0.15,{"$f":"$W$117+($W$117*W120)","v":37.416400000000003}]
[null,null,null,null,null,null,null,null,null,null,null,null,null,null,null,null,null,null,null,null,null,"Autre/Inconnu",0.12,{"$f":"$W$117+($W$117*W121)","v":36.44032},null,null,null,null,null,null,null,null,null,null,null,null,null,null,null,null,null,null,{"$f":"IF('Consommation et énergies'!D8=\"Electricité\",11%,40%)","v":0.4}]
[null,null,null,null,null,null,null,null,null,null,null,null,null,null,null,null,null,null,null,null,null,null,null,null,null,"Débit en l/heure",null,null,null,null,null,null,null,null,null,null,null,null,null,null,null,null,{"$f":"IF(AND('Consommation et énergies'!O47<>\"\",'Consommation et énergies'!O47='Consommation et énergies'!AS96),20%,IF(AND('Consommation et énergies'!O47<>\"\",'Consommation et énergies'!O47='Consommation et énergies'!AS97),23%,0%))","v":0}]
[null,null,null,null,null,null,null,null,null,null,null,null,null,null,null,null,null,null,null,null,null,null,"Débit d'eau",null,"Fuite d'eau"]
[null,null,null,null,null,null,null,null,null,null,null,null,null,null,null,null,null,null,null,null,null,"Brossage de dent (en coupant l'eau)",{"$f":"IF($D$40=\"Lavabo\",$E$40*0.3,IF($D$41=\"Lavabo\",$E$41*0.3,IF($D$42=\"Lavabo\",$E$42*0.3,IF($D$43=\"Lavabo\",$E$43*0.3,3))))","v":3},null,"Robinet qui goutte",4]
[null,null,null,null,null,null,null,null,null,null,null,null,null,null,null,null,null,null,null,null,null,"Brossage de dent (en laissant l'eau couler)",8,null,"Robinet qui fuit (filet d'eau)",15]
[null,null,null,null,null,null,null,null,null,null,null,null,null,null,null,null,null,null,null,null,null,"Lavage de mains (en coupant l'eau)",2,null,"Fuite légère chasse d'eau",25]
[null,null,null,null,null,null,null,null,null,null,null,null,null,null,null,null,null,null,null,null,null,"Lavage de mains (en laissant l'eau)",{"$f":"IF($D$40=\"Lavabo\",$E$40*0.6,IF($D$41=\"Lavabo\",$E$41*0.6,IF($D$42=\"Lavabo\",$E$42*0.6,IF($D$43=\"Lavabo\",$E$43*0.6,5))))","v":5},null,"Fuite importante chasse d'eau",35]
[null,null,null,null,null,null,null,null,null,null,null,null,null,null,null,null,null,null,null,null,null,"Vaisselle à la main (avec 2 bacs)",{"$f":"IF($D$40=\"Evier\",$E$40*0.9,IF($D$41=\"Evier\",$E$41*0.9,IF($D$42=\"Evier\",$E$42*0.9,10)))","v":10},null,"Fuite groupe de sécurité",5]
[null,null,null,null,null,null,null,null,null,null,null,null,null,null,null,null,null,null,null,null,null,"Vaisselle à la main (en laissant l'eau couler)",25]
[null,null,null,null,null,null,null,null,null,null,null,null,null,null,null,null,null,null,null,null,null,"Rasage (en coupant l'eau)",{"$f":"IF($D$40=\"Lavabo\",$E$40*0.3,IF($D$41=\"Lavabo\",$E$41*0.3,IF($D$42=\"Lavabo\",$E$42*0.3,IF($D$43=\"Lavabo\",$E$43*0.3,3))))","v":3}]
[null,null,null,null,null,null,null,null,null,null,null,null,null,null,null,null,null,null,null,null,null,"Rasage (en laissant l'eau)",{"$f":"IF($D$40=\"Lavabo\",$E$40*1,IF($D$41=\"Lavabo\",$E$41*1,IF($D$42=\"Lavabo\",$E$42*1,IF($D$43=\"Lavabo\",$E$43*1,9))))","v":9}]
[null,null,null,null,null,null,null,null,null,null,null,null,null,null,null,null,null,null,null,null,null,"Douche",{"$f":"IF(D58<>\"\",D58,11)","v":11}]
[null,null,null,null,null,null,null,null,null,null,null,null,null,null,null,null,null,null,null,null,null,"Economie Douche coupée",{"$f":"W132*0.77","v":8.4700000000000006}]
[null,null,null,null,null,null,null,null,null,null,null,null,null,null,null,null,null,null,null,null,null,"Douche coupée mélangeur",{"$f":"W133/3","v":2.8233333333333337}]
[null,null,null,null,null,null,null,null,null,null,null,null,null,null,null,null,null,null,null,null,null,"Douche coupée mitigeur",0]
[null,null,null,null,null,null,null,null,null,null,null,null,null,null,null,null,null,null,null,null,null,"Bain",150]
[]
[null,null,null,null,null,null,null,null,null,null,null,null,null,null,null,null,null,null,null,null,null,"Consommations théoriques selon la classification du ménage et le nombre de personnes, en litres/jour"]
[null,null,null,null,null,null,null,null,null,null,null,null,null,null,null,null,null,null,null,null,null,"Nb pers","économe","normal","gaspi"]
[null,null,null,null,null,null,null,null,null,null,null,null,null,null,null,null,null,null,null,null,null,1,120,145,165]
[null,null,null,null,null,null,null,null,null,null,null,null,null,null,null,null,null,null,null,null,null,2,{"$f":"W140+110","v":230},{"$f":"X140+135","v":280},{"$f":"Y140+155","v":320}]
[null,null,null,null,null,null,null,null,null,null,null,null,null,null,null,null,null,null,null,null,null,3,{"$f":"W141+105","v":335},{"$f":"X141+130","v":410},{"$f":"Y141+150","v":470}]
[null,null,null,null,null,null,null,null,null,null,null,null,null,null,null,null,null,null,null,null,null,4,{"$f":"W142+100","v":435},{"$f":"X142+125","v":535},{"$f":"Y142+145","v":615}]
[null,null,null,null,null,null,null,null,null,null,null,null,null,null,null,null,null,null,null,null,null,5,{"$f":"W143+95","v":530},{"$f":"X143+120","v":655},{"$f":"Y143+140","v":755}]
[null,null,null,null,null,null,null,null,null,null,null,null,null,null,null,null,null,null,null,null,null,6,{"$f":"W144+90","v":620},{"$f":"X144+115","v":770},{"$f":"Y144+135","v":890}]
[null,null,null,null,null,null,null,null,null,null,null,null,null,null,null,null,null,null,null,null,null,7,710,885,1025]
[null,null,null,null,null,null,null,null,null,null,null,null,null,null,null,null,null,null,null,null,null,8,800,1000,1160]
[null,null,null,null,null,null,null,null,null,null,null,null,null,null,null,null,null,null,null,null,null,9,890,1115,1295]
[null,null,null,null,null,null,null,null,null,null,null,null,null,null,null,null,null,null,null,null,null,10,980,1230,1430]
[null,null,null,null,null,null,null,null,null,null,null,null,null,null,null,null,null,null,null,null,null,11,1070,1345,1565]
[null,null,null,null,null,null,null,null,null,null,null,null,null,null,null,null,null,null,null,null,null,12,1160,1460,{"$f":"Y150+125","v":1690}]
[null,null,null,null,null,null,null,null,null,null,null,null,null,null,null,null,null,null,null,null,null,13,1250,1575,{"$f":"Y151+125","v":1815}]
[null,null,null,null,null,null,null,null,null,null,null,null,null,null,null,null,null,null,null,null,null,14,1340,1690,1940]
[null,null,null,null,null,null,null,null,null,null,null,null,null,null,null,null,null,null,null,null,null,15,1430,1805,2065]
[]
[]
[null,null,null,null,null,null,null,null,null,null,null,null,null,null,null,null,null,null,null,null,null,"Part théorique eau chaude"]
[null,null,null,null,null,null,null,null,null,null,null,null,null,null,null,null,null,null,null,null,null,null,"part dans la conso totale d'eau","% eau chaude"]
[null,null,null,null,null,null,null,null,null,null,null,null,null,null,null,null,null,null,null,null,null,"Douche",0.44,0.5,{"$f":"W159*X159","v":0.22}]
[null,null,null,null,null,null,null,null,null,null,null,null,null,null,null,null,null,null,null,null,null,"WC",0.2,0,{"$f":"W160*X160","v":0}]
[null,null,null,null,null,null,null,null,null,null,null,null,null,null,null,null,null,null,null,null,null,"Vaisselle",0.12,0.47,{"$f":"W161*X161","v":5.6399999999999992E-2}]
[null,null,null,null,null,null,null,null,null,null,null,null,null,null,null,null,null,null,null,null,null,"Cuisine",0.06,0.2,{"$f":"W162*X162","v":1.2E-2}]
[null,null,null,null,null,null,null,null,null,null,null,null,null,null,null,null,null,null,null,null,null,"Autre",0.06,0.12,{"$f":"W163*X163","v":7.1999999999999998E-3}]
[null,null,null,null,null,null,null,null,null,null,null,null,null,null,null,null,null,null,null,null,null,"Lessive",0.12]
[null,null,null,null,null,null,null,null,null,null,null,null,null,null,null,null,null,null,null,null,null,"Totale consommation eau",{"$f":"SUM(W159:W164)","v":1},"Totale consommation eau chaude",{"$f":"SUM(Y159:Y163)","v":0.29559999999999997}]
[]
[]
[null,null,null,null,null,null,null,null,null,null,null,null,null,null,null,null,null,null,null,null,null,"Calcul conso moyenne","Théorique","Cas présent"]
[null,null,null,null,null,null,null,null,null,null,null,null,null,null,null,null,null,null,null,null,null,"Type de conso","normal",{"$f":"IF(E27<6,\"économe\",IF(AND(G27>0.71,E27>8),\"gaspi\",\"normal\"))","v":"économe"}]
[null,null,null,null,null,null,null,null,null,null,null,null,null,null,null,null,null,null,null,null,null,"L/jour",{"$f":"VLOOKUP(E9,V140:Y154,3,FALSE)","v":{"$error":"#N/A"}},{"$f":"IF(X169=\"économe\",VLOOKUP(E9,V140:Y154,2,FALSE),IF(X169=\"normal\",VLOOKUP(E9,V140:Y154,3,FALSE),IF(X169=\"gaspi\",VLOOKUP(E9,V140:Y154,4,FALSE))))","v":{"$error":"#N/A"}}]
[null,null,null,null,null,null,null,null,null,null,null,null,null,null,null,null,null,null,null,null,null,"m3/an",{"$f":"(W170*330)/1000","v":{"$error":"#N/A"}},{"$f":"(X170*E10)/1000","v":{"$error":"#N/A"}}]
[null,null,null,null,null,null,null,null,null,null,null,null,null,null,null,null,null,null,null,null,null,"m3 ECS/an",{"$f":"W171*Y165","v":{"$error":"#N/A"}},{"$f":"X171*Y165","v":{"$error":"#N/A"}}]
[null,null,null,null,null,null,null,null,null,null,null,null,null,null,null,null,null,null,null,null,null,"kWh/an",{"$f":"IF(AND($E$11=\"Collective\",$E$12='Consommation et énergies'!$AL$96),W172*$X$119,IF(AND($E$11=\"Collective\",$E$12='Consommation et énergies'!$AL$97),W172*$X$119,IF(AND($E$11=\"Individuelle\",$E$12='Consommation et énergies'!$AL$96),W172*$X$120,IF(AND($E$11=\"Individuelle\",$E$12='Consommation et énergies'!$AL$95),W172*$X$120,IF('Consommation et énergies'!D11='Consommation et énergies'!AF95,Eau!W172*Eau!X118,$W$172*$X$121)))))","v":{"$error":"#N/A"}},{"$f":"IF(AND($E$11=\"Collective\",$E$12='Consommation et énergies'!$AL$96),X172*$X$119,IF(AND($E$11=\"Collective\",$E$12='Consommation et énergies'!$AL$97),X172*$X$119,IF(AND($E$11=\"Individuelle\",$E$12='Consommation et énergies'!$AL$96),X172*$X$120,IF(AND($E$11=\"Individuelle\",$E$12='Consommation et énergies'!$AL$95),X172*$X$120,X172*$X$118))))","v":{"$error":"#N/A"}}]

{"sheet":"Froid","index":5,"n_rows":119,"n_cols":34,"rows_kept":119,"cut":false,"hidden":false,"merged":[[8,3,8,4],[33,3,33,4],[1,6,1,8],[2,6,2,8],[7,3,7,4],[5,2,5,15],[10,6,10,12],[8,7,8,10],[8,12,8,13],[32,7,32,10],[27,8,27,9],[33,7,33,10],[33,12,33,13],[25,8,25,9],[7,12,7,13],[2,10,2,11],[77,8,77,9],[77,11,77,12],[73,8,73,9],[74,8,74,9],[75,8,75,9],[75,11,75,12],[76,8,76,9],[76,11,76,12],[50,13,50,14],[66,6,66,14],[72,4,72,6],[52,8,52,9],[62,6,65,6],[62,7,65,7],[62,8,65,8],[62,9,65,9],[62,10,65,10],[62,11,65,11],[62,12,65,12],[57,12,57,13],[60,6,60,12],[55,2,55,15],[57,3,57,4],[50,11,50,12],[57,7,57,10],[58,7,58,10],[58,12,58,13],[58,3,58,4],[51,11,51,12],[51,13,51,14],[23,8,23,9],[24,8,24,9],[49,11,49,12],[49,13,49,14],[30,2,30,15],[37,12,40,12],[32,3,32,4],[37,7,40,7],[37,8,40,8],[37,9,40,9],[37,10,40,10],[37,11,40,11],[12,11,15,11],[12,12,15,12],[41,6,41,14],[47,4,47,8],[48,11,48,14],[37,6,40,6],[12,6,15,6],[12,7,15,7],[12,8,15,8],[12,9,15,9],[12,10,15,10],[32,12,32,13],[26,8,26,9],[35,6,35,12],[16,6,16,14],[22,4,22,6]]}
[]
[null,null,null,null,"Nom du/ des chargé(s) de visite",null,{"$f":"IF('Données ménage'!D20<>\"\",'Données ménage'!D20&IF('Données ménage'!H20<>\"\",\"/ \"&'Données ménage'!H20,\"\"))","v":"Amélie LOMBARD / ROY MATHIS"}]
[null,null,null,null,"Nom de la famille",null,{"$f":"IF('Données ménage'!$D$9<>\"\",'Données ménage'!$D$9,\"\")","v":""},null,null,null,"Case jaune =",null,"à remplir"]
[null,null,null,null,null,null,null,null,"FROID"]
[]
[null,null,"Réfrigérateur"]
[]
[null,null,null,"Appareil présent dans le ménage?"]
[null,null,null,"Température mesurée du réfrigérateur"]
[]
[null,null,null,null,null,null,"Etat initial",null,null,null,null,null,null,"Etat final"]
[null,null,null,"Gestes mis en œuvre","Réponse","Actions possibles?","Age de l'appareil","Volume / taille","Température intérieure en °C","givrage","Emplacement","Etanchéité","Source de chaleur externe","Geste(s) cible","Economie électrique réalisable* en kWh/an"]
[null,null,null,"L'appareil est-il récent (moins de 5 ans)?",null,null,null,null,null,null,null,null,null,null,{"$f":"IF(OR(F13=\"\",N13=\"\",H13=\"\",G13=\"\"),0,E18-(U103*V103*W103*X103*Y103*HLOOKUP($H$13,$E$24:$G$27,MATCH($N$13,$D$24:$D$27,0),FALSE)))","v":0}]
[null,null,null,"Absence de source de chaleur à proximité?",null,null,null,null,null,null,null,null,null,{"$f":"IF(F14=$Y$91,\"Pas de source de chaleur externe\",\"\")","v":""},{"$f":"IF(OR(G13=\"\",H13=\"\"),0,IF(F14=\"oui, je peux déplacer l'appareil\",E18-(U102*V102*W102*X102*Y103*HLOOKUP($H$13,$E$24:$G$27,MATCH($G$13,$D$24:$D$27,0),FALSE)),0))","v":0}]
[null,null,null,"La température de stockage est-elle adéquate (5°C)?",null,null,null,null,null,null,null,null,null,{"$f":"IF(F15=$Z$91,$AF$91,\"\")","v":""},{"$f":"IF(OR(G13=\"\",H13=\"\",N15=\"\"),0,IF(F9=\"\",0,IF(F9>5,0,IF(F15=\"oui, je peux changer la température\",E18-(U102*Z103*W102*X102*Y102*HLOOKUP($H$13,$E$24:$G$27,MATCH($G$13,$D$24:$D$27,0),FALSE)),0))))","v":0}]
[null,null,null,"Etanche / dégagé/ dégivré?",null,null,null,null,null,null,null,null,null,{"$f":"IF(F16=$AA$91,$AG$91,\"\")","v":""},{"$f":"IF(OR(G13=\"\",H13=\"\"),0,IF(F16=\"oui, je peux remédier à ces problèmes\",E18-(U103*V102*W103*X103*Y102*HLOOKUP($H$13,$E$24:$G$27,MATCH($G$13,$D$24:$D$27,0),FALSE)),0))","v":0}]
[null,null,null,"Consommation théorique du réfrigérateur",{"$f":"IF(ISERROR(HLOOKUP($H$13,$E$24:$G$27,MATCH($G$13,$D$24:$D$27,0),FALSE)),0,HLOOKUP($H$13,$E$24:$G$27,MATCH($G$13,$D$24:$D$27,0),FALSE))","v":0},"kWh/an","*L'économie réalisable grâce au changement d'équipement est indépendante des autres économies présentées"]
[null,null,null,"Consommation initiale",{"$f":"IF(ISERROR(U102*V102*W102*X102*Y102*HLOOKUP($H$13,$E$24:$G$27,MATCH($G$13,$D$24:$D$27,0),FALSE)),0,U102*V102*W102*X102*Y102*HLOOKUP($H$13,$E$24:$G$27,MATCH($G$13,$D$24:$D$27,0),FALSE))","v":0},"kWh/an"]
[null,null,null,"Total économie*",{"$f":"IF(O13>0,O13,SUM(O14:O16))","v":0},"kWh/an"]
[null,null,null,"Total consommation future",{"$f":"E18-E19","v":0},"kWh/an"]
[]
[]
[null,null,null,null,"Consommation électrique (kWh par an)",null,null,null,null,null,null,"Ratios utiles"]
[null,null,null,"Données source (REMODECE, TopTen, Caritas, Geres):","Table top h. 90cm","1 porte (petit freezer int.) h. 1m50","2 portes (freezer ext.) h. 1m70",null,"Surconsommation",null,"%","Source: Topten.fr (2011)"]
[null,null,null,"Performant A++",130,160,200,null,"Défaut d'étanchéité",null,20,"A++",null,"Energivore"]
[null,null,null,"récent (classe A ou B)",160,310,400,null,"Encastré / empoussiéré",null,10,"Table top : 120 à 140 kWh/an",null,"160 kWh"]
[null,null,null,"ancien (6 et plus)",220,490,600,null,"givré",null,15,"1 porte : 150 à 170 kWh/an",null,"310 kWh"]
[null,null,null,null,null,null,null,null,"1° d'augmentation ",null,6,"2 portes : 180 à 220 kWh/an",null,"400 kWh"]
[]
[]
[null,null,"Congélateur"]
[]
[null,null,null,"Appareil présent dans le ménage?"]
[null,null,null,"Température mesurée du congélateur"]
[]
[null,null,null,null,null,null,"Etat initial",null,null,null,null,null,null,"Etat final"]
[null,null,null,"Gestes mis en œuvre","Réponse","Actions possibles?","Age de l'appareil","Volume / taille","Température intérieure en °C","givrage","Emplacement","Etanchéité","Source de chaleur externe","Geste(s) cible","Economie électrique réalisable* en kWh/an"]
[null,null,null,"L'appareil est-il récent (moins de 5 ans)?",null,null,null,null,null,null,null,null,null,null,{"$f":"IF(OR(G38=\"\",H38=\"\",F38=\"\",N38=\"\"),0,(U107*V107*W107*X107*Y107*HLOOKUP(H38,$E$49:$I$52,MATCH(G38,D49:D52,0),FALSE))-(U108*V108*W108*X108*Y108*HLOOKUP(H38,D49:I52,MATCH(N38,D49:D52,0),FALSE)))","v":0}]
[null,null,null,"Absence de source de chaleur à proximité?",null,null,null,null,null,null,null,null,null,{"$f":"IF(F39=$Y$91,\"Pas de source de chaleur externe\",\"\")","v":""},{"$f":"IF(OR(G38=\"\",H38=\"\"),0,IF(OR(G38=\"\",H38=\"\"),0,IF(F39=\"oui, je peux déplacer l'appareil\",E43-(U107*V107*W107*X107*Y108*HLOOKUP($H$38,$E$49:$I$52,MATCH($G$38,$D$49:$D$52,0),FALSE)),0)))","v":0}]
[null,null,null,"La température de stockage est-elle adéquate (-18°C)?",null,null,null,null,null,null,null,null,null,{"$f":"IF(F40=$Z$91,AH91,\"\")","v":""},{"$f":"IF(OR(G38=\"\",H38=\"\"),0,IF(F34=\"\",0,IF(F34>-18,0,IF(F40=\"oui, je peux changer la température\",E43-(U107*Z108*W107*X107*Y107*HLOOKUP($H$38,$E$49:$I$52,MATCH($G$38,$D$49:$D$52,0),FALSE)),0))))","v":0}]
[null,null,null,"Etanche / dégagé/ dégivré?",null,null,null,null,null,null,null,null,null,{"$f":"IF(F41=$AA$91,$AG$91,\"\")","v":""},{"$f":"IF(OR(G38=\"\",H38=\"\"),0,IF(F41=\"oui, je peux remédier à ces problèmes\",E43-(U108*V107*W108*X108*Y107*HLOOKUP($H$38,$E$49:$I$52,MATCH($G$38,$D$49:$D$52,0),FALSE)),0))","v":0}]
[null,null,null,"Consommation théorique du congélateur",{"$f":"IF(ISERROR(HLOOKUP($H$38,$E$49:$I$52,MATCH($G$38,$D$49:$D$52,0),FALSE)),0,HLOOKUP($H$38,$E$49:$I$52,MATCH($G$38,$D$49:$D$52,0),FALSE))","v":0},"kWh/an","*L'économie réalisable grâce au changement d'équipement est indépendante des autres économies présentées"]
[null,null,null,"Consommation initiale",{"$f":"IF(ISERROR(U107*V107*W107*X107*Y107*HLOOKUP($H$38,$E$49:$I$52,MATCH($G$38,$D$49:$D$52,0),FALSE)),0,U107*V107*W107*X107*Y107*HLOOKUP($H$38,$E$49:$I$52,MATCH($G$38,$D$49:$D$52,0),FALSE))","v":0},"kWh/an"]
[null,null,null,"Total économie*",{"$f":"IF(O38>0,O38,SUM(O39:O41))","v":0},"kWh/an"]
[null,null,null,"Total consommation future",{"$f":"E43-E44","v":0},"kWh/an"]
[]
[]
[null,null,null,null,"Consommation électrique (kWh par an)",null,null,null,null,null,null,"Ratios utiles"]
[null,null,null,"Données source (REMODECE, TopTen, Caritas, Geres):","Armoire table top h. 90cm","Armoires < 250 litres h. 1m50","Armoires >250 litres h. 1m50","Coffres < 260 litres","Coffres > 260 litres","Surconsommation","%","Source: Topten.fr (2011)\n\n           A++                                     Energivore"]
[null,null,null,"Neuf et performant (A++)",160,200,250,180,210,"Défaut d'étanchéité",20,"\nArmoires Table Top : 130 à 200 kWh/an",null,"\n190 kWh"]
[null,null,null,"1 à 5 an (A ou B)",220,260,310,220,300,"Encastré / empoussiéré",10,"Armoires < 250 litres : 150 à 250 kWh/an\n> 250 litres : 180 à 310",null,"320 kWh\n\n390 kWh"]
[null,null,null,"6 et plus (C à G)",290,320,390,260,400,"givré",15,"Coffres < 260 litres : 160 à 200 kWh/an\n> 260 litres : 190 à 240",null,"260 kWh\n\n400 kWh"]
[null,null,null,null,null,null,null,null,"1° d'augmentation ",null,6,"2 portes : 180 et 220 kWh/an",null,"400 kWh"]
[]
[]
[null,null,"Combiné"]
[]
[null,null,null,"Appareil présent dans le ménage?"]
[null,null,null,"Température mesurée du réfrigérateur"]
[]
[null,null,null,null,null,null,"Etat initial",null,null,null,null,null,null,"Etat final"]
[null,null,null,"Gestes mis en œuvre","Réponse","Actions possibles?","Age de l'appareil","Volume / taille","Température intérieure en °C","givrage","Emplacement","Etanchéité","Source de chaleur externe","Geste(s) cible","Economie électrique réalisable* en kWh/an"]
[null,null,null,"L'appareil est-il récent (moins de 5 ans)?",null,null,null,null,null,null,null,null,null,null,{"$f":"IF(OR(G63=\"\",H63=\"\",F63=\"\",N63=\"\"),0,(U112*V112*W112*X112*Y112*HLOOKUP(H63,E74:G77,MATCH(G63,D74:D77,0),FALSE))-(U113*V113*W113*X113*Y113*HLOOKUP(H63,E74:G77,MATCH(N63,D74:D77,0),FALSE)))","v":0}]
[null,null,null,"Absence de source de chaleur à proximité?",null,null,null,null,null,null,null,null,null,{"$f":"IF(F64=$Y$91,\"Pas de source de chaleur externe\",\"\")","v":""},{"$f":"IF(OR(G63=\"\",H63=\"\",N64=\"\"),0,IF(F64=\"oui, je peux déplacer l'appareil\",E68-(U112*V112*W112*X112*Y113*HLOOKUP($H$63,$E$74:$G$77,MATCH($G$63,$D$74:$D$77,0),FALSE)),0))","v":0}]
[null,null,null,"La température de stockage est-elle adéquate (5°C)?",null,null,null,null,null,null,null,null,null,{"$f":"IF(F65=$Z$91,$AF$91,\"\")","v":""},{"$f":"IF(F59=\"\",0,IF(F59>5,0,IF(F65=\"oui, je peux changer la température\",E68-(U112*Z113*W112*X112*Y112*HLOOKUP($H$63,$E$74:$G$77,MATCH($G$63,$D$74:$D$77,0),FALSE)),0)))","v":0}]
[null,null,null,"Etanche / dégagé/ dégivré?",null,null,null,null,null,null,null,null,null,{"$f":"IF(F66=$AA$91,$AG$91,\"\")","v":""},{"$f":"IF(OR(G63=\"\",H63=\"\",N66=\"\"),0,IF(F66=\"oui, je peux remédier à ces problèmes\",E68-(U113*V112*W113*X113*Y112*HLOOKUP($H$63,$E$74:$G$77,MATCH($G$63,$D$74:$D$77,0),FALSE)),0))","v":0}]
[null,null,null,"Consommation théorique du combiné",{"$f":"IF(ISERROR(HLOOKUP($H$63,$E$74:$G$77,MATCH($G$63,$D$74:$D$77,0),FALSE)),0,HLOOKUP($H$63,$E$74:$G$77,MATCH($G$63,$D$74:$D$77,0),FALSE))","v":0},"kWh/an","*L'économie réalisable grâce au changement d'équipement est indépendante des autres économies présentées"]
[null,null,null,"Consommation initiale",{"$f":"IF(ISERROR(U112*V112*W112*X112*Y112*HLOOKUP($H$63,$E$74:$G$77,MATCH($G$63,$D$74:$D$77,0),FALSE)),0,U112*V112*W112*X112*Y112*HLOOKUP($H$63,$E$74:$G$77,MATCH($G$63,$D$74:$D$77,0),FALSE))","v":0},"kWh/an"]
[null,null,null,"Total économie*",{"$f":"IF(O63>0,O63,SUM(O64:O66))","v":0},"kWh/an"]
[null,null,null,"Total consommation future",{"$f":"E68-E69","v":0},"kWh/an"]
[]
[]
[null,null,null,null,"Consommation électrique (kWh par an)",null,null,null,null,null,null,"Ratios utiles"]
[null,null,null,"Données source (REMODECE, TopTen, Caritas, Geres):","Combiné < 310 litres","Combiné > 310 litres","Type Américain",null,"Surconsommation",null,"%","Source: Topten.fr (2011)"]
[null,null,null,"Neuf et performant (A++)",190,200,380,null,"Défaut d'étanchéité",null,20,"A++",null,"Energivore"]
[null,null,null,"1 à 5 an (A ou B)",280,300,610,null,"Encastré / empoussiéré",null,10,"Combiné < 310 litres : 150 à 230 kWh/an",null,"370 kWh"]
[null,null,null,"6 et plus (C à G)",370,400,1500,null,"givré",null,15,"Combiné > 310 litres : 160 à 250 kWh/an",null,"400 kWh"]
[null,null,null,null,null,null,null,null,"1° d'augmentation ",null,6,"Type américain : 250 à 460 kWh/an",null,"1500 kWh"]
[]
[]
[]
[]
[]
[]
[]
[]
[]
[null,null,null,null,null,null,null,null,null,null,null,null,null,null,null,null,null,null,null,"Données à ne pas modifier"]
[null,null,null,null,null,null,null,null,null,null,null,null,null,null,null,null,null,null,null,"Listes déroulantes"]
[null,null,null,null,null,null,null,null,null,null,null,null,null,null,null,null,null,null,null,"Givrage","T° lavage","T° congélateur","T° réfrigérateur","Possibilité 1","Possibilité 2","Possibilité 3","Possibilité 4","Emplacement","Etanchéité","Source chaleur","Choix","Geste cible T° réfrigérateur","Geste cible etancheite","Geste cible T° congélateur"]
[null,null,null,null,null,null,null,null,null,null,null,null,null,null,null,null,null,null,null,"3 cm",15,-25,1,"oui, je souhaite le remplacer par un appareil performant","oui, je peux déplacer l'appareil","oui, je peux changer la température","oui, je peux remédier à ces problèmes","Encastré","joint de porte détérioré","Chaleur ambiante > 21°C","oui","Adapter la température (5°C)","étanche, dégagé et non givré","Adapter la température (-18°C)"]
[null,null,null,null,null,null,null,null,null,null,null,null,null,null,null,null,null,null,null,"1 cm",30,-22,2,"non je ne peux pas","non je ne peux pas","non je ne peux pas","non je ne peux pas","Dégagé","étanche","Exposé aux rayons solaires (> 2h)","non"]
[null,null,null,null,null,null,null,null,null,null,null,null,null,null,null,null,null,null,null,"occasionnel",60,-20,3,null,null,null,null,null,null,"Proximité du four (utilisation quotidienne)"]
[null,null,null,null,null,null,null,null,null,null,null,null,null,null,null,null,null,null,null,"jamais",90,-18,4,null,null,null,null,null,null,"Pas de source de chaleur externe"]
[null,null,null,null,null,null,null,null,null,null,null,null,null,null,null,null,null,null,null,"Type no frost",null,-17,5]
[null,null,null,null,null,null,null,null,null,null,null,null,null,null,null,null,null,null,null,null,null,-16,6]
[null,null,null,null,null,null,null,null,null,null,null,null,null,null,null,null,null,null,null,null,null,-15,7]
[]
[null,null,null,null,null,null,null,null,null,null,null,null,null,null,null,null,null,null,null,"Eléments de calcul"]
[null,null,null,null,null,null,null,null,null,null,null,null,null,null,null,null,null,null,null,"Réfrigérateur"]
[null,null,null,null,null,null,null,null,null,null,null,null,null,null,null,null,null,null,null,null,"givrage","T° int","emplacement","étanchéité","T° ext"]
[null,null,null,null,null,null,null,null,null,null,null,null,null,null,null,null,null,null,null,"initial",{"$f":"IF(J13=T91,1.15,IF(J13=T92,1.08,IF(J13=T93,1.03,IF(J13=T94,1,IF(J13=T95,1.2,1)))))","v":1},{"$f":"IF(F9=1,1.24,IF(F9=2,1.18,IF(F9=3,1.12,IF(F9=4,1.06,IF(F9=5,1,IF(F9=6,0.94,IF(F9=7,0.88,1)))))))","v":1},{"$f":"IF(K13=AB91,1.1,IF(K13=AB92,1,1))","v":1},{"$f":"IF(L13=AC91,1.2,IF(L13=AC92,1,1))","v":1},{"$f":"IF(M13=AD91,1.15,IF(M13=AD92,1.1,IF(M13=AD93,1.15,IF(M13=AD94,1,1))))","v":1},null,"remplacement seul:",{"$f":"IF(N13<>\"\",(U102*V102*W102*X102*Y102*HLOOKUP($H$13,$E$24:$G$27,MATCH($G$13,$D$24:$D$27,0),FALSE))-(U102*V102*W102*X102*Y102*HLOOKUP($H$13,$E$24:$G$27,MATCH($N$13,$D$24:$D$27,0),FALSE)),0)","v":0}]
[null,null,null,null,null,null,null,null,null,null,null,null,null,null,null,null,null,null,null,"final",{"$f":"IF(OR(N16=AG91,E16=\"Oui\"),1,U102)","v":1},{"$f":"IF(OR(F9>4,N15=AF91),1,V102)","v":1},{"$f":"IF(OR(N16=AG91,E16=\"Oui\"),1,W102)","v":1},{"$f":"IF(OR(N16=AG91,E16=\"Oui\"),1,X102)","v":1},{"$f":"IF(N14=AD94,1,Y102)","v":1},1]
[]
[null,null,null,null,null,null,null,null,null,null,null,null,null,null,null,null,null,null,null,"Congélateur"]
[null,null,null,null,null,null,null,null,null,null,null,null,null,null,null,null,null,null,null,null,"givrage","T° int","emplacement","étanchéité","T° ext"]
[null,null,null,null,null,null,null,null,null,null,null,null,null,null,null,null,null,null,null,"initial",{"$f":"IF(J38=T91,1.15,IF(J38=T92,1.08,IF(J38=T93,1.03,IF(J38=T94,1,IF(J38=T95,1.2,1)))))","v":1},{"$f":"IF(F34=V91,1.24,IF(F34=V92,1.24,IF(F34=V93,1.12,IF(F34=V94,1,IF(F34=V95,0.94,IF(F34=V96,0.88,IF(F34=V97,0.82,1)))))))","v":1},{"$f":"IF(K38=AB91,1.1,IF(K38=AB92,1,1))","v":1},{"$f":"IF(L38=AC91,1.2,IF(L38=AC92,1,1))","v":1},{"$f":"IF(M38=AD91,1.15,IF(M38=AD92,1.1,IF(M38=AD93,1.15,IF(M38=AD94,1,1))))","v":1}]
[null,null,null,null,null,null,null,null,null,null,null,null,null,null,null,null,null,null,null,"final",{"$f":"IF(OR(N41=AG91,E41=\"Oui\"),1,U107)","v":1},{"$f":"IF(OR(F34>-18,N40=AH91),1,V107)","v":1},{"$f":"IF(OR(N41=AG91,E41=\"Oui\"),1,W107)","v":1},{"$f":"IF(OR(N41=AG91,E41=\"Oui\"),1,X107)","v":1},{"$f":"IF(N39=AD94,1,Y107)","v":1},1,"remplacement seul:",{"$f":"IF(N38=\"\",0,(U107*V107*W107*X107*Y107*HLOOKUP($H$38,$E$49:$I$52,MATCH($G$38,$D$49:$D$52,0),FALSE))-(U107*V107*W107*X107*Y107*HLOOKUP($H$38,$E$49:$I$52,MATCH($N$38,$D$49:$D$52,0),FALSE)))","v":0}]
[]
[null,null,null,null,null,null,null,null,null,null,null,null,null,null,null,null,null,null,null,"Combiné"]
[null,null,null,null,null,null,null,null,null,null,null,null,null,null,null,null,null,null,null,null,"givrage","T° int","emplacement","étanchéité","T° ext"]
[null,null,null,null,null,null,null,null,null,null,null,null,null,null,null,null,null,null,null,"initial",{"$f":"IF(J63=T91,1.15,IF(J63=T92,1.08,IF(J63=T93,1.03,IF(J63=T94,1,IF(J63=T95,1.2,1)))))","v":1},{"$f":"IF(F59=1,1.24,IF(F59=2,1.18,IF(F59=3,1.12,IF(F59=4,1.06,IF(F59=5,1,IF(F59=6,0.94,IF(F59=7,0.88,1)))))))","v":1},{"$f":"IF(K63=AB91,1.1,IF(K63=AB92,1,1))","v":1},{"$f":"IF(L63=AC91,1.2,IF(L63=AC92,1,1))","v":1},{"$f":"IF(M63=AD91,1.15,IF(M63=AD92,1.1,IF(M63=AD93,1.15,IF(M63=AD94,1,1))))","v":1}]
[null,null,null,null,null,null,null,null,null,null,null,null,null,null,null,null,null,null,null,"final",{"$f":"IF(OR(N66=AG91,E66=\"Oui\"),1,U112)","v":1},{"$f":"IF(OR(F59>4,N65=AH91),1,V112)","v":1},{"$f":"IF(OR(N66=AG91,E66=\"Oui\"),1,W112)","v":1},{"$f":"IF(OR(N66=AG91,E66=\"Oui\"),1,X112)","v":1},{"$f":"IF(N64=AD94,1,Y112)","v":1},1,"remplacement seul:",{"$f":"IF(N63<>0,(U112*V112*W112*X112*Y112*HLOOKUP($H$63,$E$74:$G$77,MATCH($G$63,$D$74:$D$77,0),FALSE))-(U112*V112*W112*X112*Y112*HLOOKUP($H$63,$E$74:$G$77,MATCH($N$63,$D$74:$D$77,0),FALSE)),0)","v":0}]
[]
[null,null,null,null,null,null,null,null,null,null,null,null,null,null,null,null,null,null,null,"Conso appareils de froid du ménage"]
[null,null,null,null,null,null,null,null,null,null,null,null,null,null,null,null,null,null,null,"frigo",{"$f":"IF(OR(F8=\"\",F8=\"non\"),0,IF(E18<>0,E18,IF(AND(F8=\"oui\",E13=\"oui\"),230,IF(AND(F8=\"oui\",E13=\"non\"),400,350))))","v":0}]
[null,null,null,null,null,null,null,null,null,null,null,null,null,null,null,null,null,null,null,"Congélo",{"$f":"IF(OR(F33=\"\",F33=\"non\"),0,IF(E43<>0,E43,IF(AND(F33=\"oui\",E38=\"oui\"),230,IF(AND(F33=\"oui\",E38=\"non\"),300,260))))","v":0}]
[null,null,null,null,null,null,null,null,null,null,null,null,null,null,null,null,null,null,null,"Combi",{"$f":"IF(OR(F58=\"\",F58=\"non\"),0,IF(E68<>0,E68,IF(AND(F58=\"oui\",E63=\"oui\"),230,IF(AND(F58=\"oui\",E63=\"non\"),400,350))))","v":0}]
[null,null,null,null,null,null,null,null,null,null,null,null,null,null,null,null,null,null,null,"Total",{"$f":"SUM(U116:U118)","v":0}]

{"sheet":"Lavage  sechage","index":6,"n_rows":129,"n_cols":28,"rows_kept":129,"cut":false,"hidden":false,"merged":[[70,8,70,9],[70,10,70,11],[71,8,71,9],[71,10,71,11],[72,8,72,9],[72,10,72,11],[73,8,73,11],[74,8,74,9],[74,10,74,11],[75,8,75,9],[75,10,75,11],[68,8,68,11],[69,3,69,6],[69,8,69,11],[54,1,54,12],[56,2,56,3],[58,5,58,7],[58,8,58,9],[60,5,62,5],[60,6,62,6],[60,7,62,7],[50,8,50,11],[51,2,51,5],[51,8,51,9],[51,10,51,11],[63,5,63,11],[48,5,48,6],[48,8,48,9],[48,10,48,11],[49,5,49,6],[49,8,49,9],[49,10,49,11],[46,5,46,6],[46,8,46,11],[47,5,47,6],[47,8,47,9],[47,10,47,11],[41,5,41,11],[42,5,42,11],[45,3,45,4],[45,5,45,6],[45,8,45,11],[38,5,40,5],[38,6,40,6],[38,7,40,7],[36,8,36,9],[36,5,36,7],[15,5,15,11],[22,8,22,11],[23,3,23,7],[23,8,23,11],[34,2,34,3],[32,1,32,12],[24,8,24,9],[24,10,24,11],[25,8,25,9],[25,10,25,11],[26,8,26,9],[26,10,26,11],[27,8,27,11],[28,8,28,9],[28,10,28,11],[34,5,34,9],[12,6,14,6],[12,7,14,7],[6,1,6,12],[8,2,8,3],[1,5,1,7],[2,5,2,7],[10,5,10,7],[10,8,10,9],[12,5,14,5]]}
[]
[null,null,null,"Nom du/ des chargé(s) de visite",null,{"$f":"IF('Données ménage'!D20<>\"\",'Données ménage'!D20&IF('Données ménage'!H20<>\"\",\"/ \"&'Données ménage'!H20,\"\"))","v":"Amélie LOMBARD / ROY MATHIS"},null,null,null,"Case jaune =","à remplir"]
[null,null,null,"Nom de la famille",null,{"$f":"IF('Données ménage'!$D$9<>\"\",'Données ménage'!$D$9,\"\")","v":""}]
[]
[null,null,null,null,null,"LAVAGE / SECHAGE"]
[]
[null,"Lave-linge"]
[]
[null,null,"Appareil présent dans le ménage?"]
[]
[null,null,null,null,null,"Etat initial",null,null,"Etat final"]
[null,null,"Gestes mis en œuvre","Réponse","Actions possibles?","Age de l'appareil","nombre cycle/sem","Température majoritaire de lavage","Informations additionnelles","Geste(s) cible","Economie électrique réalisable* en kWh/an","Economie d'eau réalisable* en m3/an"]
[null,null,"L'appareil est-il récent (moins de 5 ans)?",null,null,null,null,null,"Age du nouvel appareil?",null,{"$f":"IF(OR(F13=\"\",G13=\"\",H13=\"\"),0,R112)","v":0},{"$f":"IF(OR(F13=\"\",G13=\"\",H13=\"\"),0,S112)","v":0}]
[null,null,"Remplissez-vous le tambour à son maximum à chaque utilisation?",null,null,null,null,null,"Nouveau nombre de cycles?",null,{"$f":"IF(OR(F13=\"\",H13=\"\",G13=\"\",J14=\"\"),0,D16-(D30*J14*HLOOKUP(H13,$D$25:$G$29,MATCH($F$13,$C$25:$C$29,0),FALSE)))","v":0},{"$f":"IF(ISERROR((D30*(G13-J14)*(VLOOKUP(F13,C25:H29,6,FALSE)))/1000),0,IF(E14=\"oui, je remplirai et diminuerai mes cycles de lavage\",D30*(G13-J14)*(VLOOKUP(F13,C25:H29,6,FALSE)))/1000)","v":0}]
[null,null,"Choisissez-vous la touche éco ou cycle à plus faible température?",null,null,null,null,null,"Nouvelle température?",null,{"$f":"IF(OR(F13=\"\",H13=\"\",G13=\"\",J15=\"\"),0,IF(AND(E15=V91,J14<>\"\"),(D30*J14*HLOOKUP(H13,$D$25:$G$29,MATCH($F$13,$C$25:$C$29,0),FALSE))-(D30*J14*HLOOKUP(J15,$D$25:$G$29,MATCH($F$13,$C$25:$C$29,0),FALSE)),IF(E15=V91,D16-(D30*G13*HLOOKUP(J15,$D$25:$G$29,MATCH($F$13,$C$25:$C$29,0),FALSE)),0)))","v":0},"-"]
[null,null,"Consommation initiale (élec)",{"$f":"IF(ISERROR(D30*G13*HLOOKUP($H$13,$D$25:$G$29,MATCH($F$13,$C$25:$C$29,0),FALSE)),0,D30*G13*HLOOKUP($H$13,$D$25:$G$29,MATCH($F$13,$C$25:$C$29,0),FALSE))","v":0},"kWh/an","*L'économie réalisable grâce au changement d'équipement est indépendante des autres économies présentées"]
[null,null,"Total économie* (élec)",{"$f":"IF(K13>0,K13,SUM(K14:K15))","v":0},"kWh/an"]
[null,null,"Total consommation future",{"$f":"D16-D17","v":0},"kWh/an"]
[null,null,"Consommation initiale (eau)",{"$f":"IF(ISERROR(D30*G13*(VLOOKUP(F13,C25:H29,6,FALSE))/1000),0,D30*G13*(VLOOKUP(F13,C25:H29,6,FALSE))/1000)","v":0},"m3/an"]
[null,null,"Total économie* (eau)",{"$f":"IF(L13>0,L13,L14)","v":0},"m3/an"]
[null,null,"Total consommation future (eau)",{"$f":"D19-D20","v":0},"m3/an"]
[]
[null,null,null,null,null,null,null,null,"Ratios utiles"]
[null,null,null,"Consommation électrique (kWh) et eau (litre) par cycle",null,null,null,null,"Source: UFC que choisir (2010)"]
["essorage** en tr/min",null,"Données source (REMODECE, TopTen, Caritas, Geres):","15 °C","30°C/ 40°C","60 °C","90 °C","litres d'eau","elec",null,"eau"]
[1600,null,"Neuf et performant (A++)",0.16,{"$f":"0.28","v":0.28000000000000003},{"$f":"0.7","v":0.7},1,35,"0,07 à 0,16 kWh/kg",null,"coton : 6 à 13l/kg"]
[1400,null,"1à 5 ans (A,A+)",0.18,0.36,0.95,1.4,45,"énergivore : 0,26 kWh/kg",null,"synthétique: 11 à 23l/kg"]
[800,null,"6 à 10 ans (B,C)",0.25,0.45,1.1000000000000001,1.6,57,"Source: Topten.fr (2011)"]
[500,null,"Plus de 10 ans (D à G)",0.27,0.6,1.5,2.1,70,"0,17 kWh/kg",null,"11 l/kg"]
[null,null,"nombre de semaine d'utilisation par an",{"$f":"52-'Données ménage'!D33","v":52}]
[]
[]
[null,"Séche-linge"]
[]
[null,null,"Appareil présent dans le ménage?",null,null,"ATTENTION ! Le sèche-linge dépend des valeurs du lave-linge"]
[]
[null,null,null,null,null,"Etat initial",null,null,"Etat final"]
[null,null,"Gestes mis en œuvre","Réponse","Actions possibles?","Age de l'appareil","nombre cycle/sem","Essorage** du linge tour/min.","Informations additionnelles","Geste(s) cible","Economie électrique réalisable* en kWh/an","Economie d'eau réalisable* en m3/an"]
[null,null,"L'appareil est-il récent (moins de 5 ans)?",null,null,null,null,null,"Age du nouvel appareil?",null,{"$f":"IF(OR(E39<>T91,F39=\"\",G39=\"\",H39=\"\",J39=\"\"),0,D42-(Q104*R104*S104))","v":0},"-"]
[null,null,"Favorisez-vous le séchage naturel?",null,null,null,null,null,"Nouvelle utilisation annuelle?",null,{"$f":"IF(OR(E40<>W91,F39=\"\",G39=\"\",H39=\"\",J40=\"\"),0,(Q103*R104*S103)-(Q103*R104*S104))","v":0},"-"]
[null,null,"Utilisez-vous l'essorage maximum du lave-linge?",null,null,null,null,null,"Nouvelle vitesse d'essorage?",null,{"$f":"IF(OR(E41<>X91,F39=\"\",G39=\"\",H39=\"\",J41=\"\"),0,(Q103*R103*S104)-(Q103*R104*S104))","v":0},"-"]
[null,null,"Consommation initiale (élec)",{"$f":"IF(ISERROR(Q103*R103*S103),0,Q103*R103*S103)","v":0},"kWh/an","*L'économie réalisable grâce au changement d'équipement est indépendante des autres économies présentées"]
[null,null,"Total économie* (élec)",{"$f":"IF(K39<>0,K39,SUM(K40:K41))","v":0},"kWh/an","** un meilleur essorage en amont permettra de réduire de 30 à 50% la consommation du séche-linge (source www.ecoloecono.com)"]
[null,null,"Total consommation future",{"$f":"D42-D43","v":0},"kWh/an"]
[]
[null,null,null,"Consommation électrique kWh par cycle Condensation",null,"Consommation électrique kWh par cycle Evacuation",null,null,"Ratios utiles"]
[null,null,"Données source (REMODECE):","PAC","classique","classique",null,null,"Source: UFC que choisir (2011)"]
[null,null,"moyenne séche-linge récent classe A (800tr/mn, 7 kg)",2.5,4.13,4.5,null,null,"condensation",null,"evacuation"]
[null,null,"moyenne séche-linge semi-récent classe B (800tr/mn,7 kg)","-",5.2,5.5,null,null,"0,3 kWh/kg (modèle PAC)",null,"0,6 kWh/kg (modèle classique)"]
[null,null,"moyenne séche-linge ancien classe C (800tr/mn, 7 kg)","-",6.3,7,null,null,"0,6 kWh/kg (modèle classique)"]
[null,null,"nombre de semaine d'utilisation par an",{"$f":"52-'Données ménage'!D33","v":52},null,null,null,null,"Source: Topten.eu (2011)"]
[null,null,"* un meilleur essorage en amont permettra de réduire de 30 à 50% la consommation du séche-linge (source www.ecoloecono.com)",null,null,null,null,null,"0,23 à 0,4 kWh/kg (classe A)\n0,56 kWh/kg (classe B)",null,"non spécifié"]
[]
[]
[null,"Lave-vaisselle"]
[]
[null,null,"Appareil présent dans le ménage?"]
[]
[null,null,null,null,null,"Etat initial",null,null,"Etat final"]
[null,null,"Gestes mis en œuvre","Réponse","Actions possibles?","Age de l'appareil","nombre cycle/sem","Température majoritaire de lavage","Informations additionnelles","Geste(s) cible","Economie électrique réalisable* en kWh/an","Economie d'eau réalisable en m3/an"]
[null,null,"L'appareil est-il récent (moins de 5 ans)?",null,null,null,null,null,"Age du nouvel appareil?",null,{"$f":"IF(OR(F61=\"\",G61=\"\",H61=\"\"),0,R121)","v":0},{"$f":"IF(OR(F61=\"\",G61=\"\",H61=\"\"),0,S121)","v":0}]
[null,null,"Remplissez-vous le lave-vaisselle à son maximum à chaque utilisation?",null,null,null,null,null,"Nouveau nombre de cycle?",null,{"$f":"IF(OR(F61=\"\",G61=\"\",H61=\"\",J62=\"\"),0,D64-(D76*J62*HLOOKUP(H61,D71:F75,MATCH(F61,C71:C75,0),FALSE)))","v":0},{"$f":"IF(ISERROR(D76*(G61-J62)*(VLOOKUP(F61,$C$71:$G$75,4,FALSE))/1000),0,IF(E62=\"oui, je remplirai et diminuerai mes cycles de lavage\",D76*(G61-J62)*(VLOOKUP(F61,$C$71:$G$75,4,FALSE)))/1000)","v":0}]
[null,null,"Choisissez-vous la touche éco ou cycle à plus faible température?",null,null,null,null,null,"Nouvelle programmation?",null,{"$f":"IF(OR(F61=\"\",G61=\"\",H61=\"\",J63=\"\"),0,IF(AND(E63=Y91,J62<>\"\"),(D76*J62*HLOOKUP(H61,D71:F75,MATCH(F61,C71:C75,0),FALSE))-(D76*J62*HLOOKUP(J63,D71:F75,MATCH(F61,C71:C75,0),FALSE)),IF(E63=Y91,D64-(D76*G61*HLOOKUP(J63,D71:F75,MATCH(F61,C71:C75,0),FALSE)),0)))","v":0},"-"]
[null,null,"Consommation initiale (élec)",{"$f":"IF(ISERROR(D76*G61*HLOOKUP($H$61,$D$71:$F$75,MATCH($F$61,$C$71:$C$75,0),FALSE)),0,D76*G61*HLOOKUP($H$61,$D$71:$F$75,MATCH($F$61,$C$71:$C$75,0),FALSE))","v":0},"kWh/an","*L'économie réalisable grâce au changement d'équipement est indépendante des autres économies présentées"]
[null,null,"Total économie* (élec)",{"$f":"IF(K61>0,K61,SUM(K62:K63))","v":0},"kWh/an"]
[null,null,"Total consommation future",{"$f":"D64-D65","v":0},"kWh/an"]
[null,null,"Consommation initiale (eau)",{"$f":"IF(ISERROR(D76*G61*(VLOOKUP(F61,C71:G75,5,FALSE))/1000),0,D76*G61*(VLOOKUP(F61,C71:G75,5,FALSE))/1000)","v":0},"m3/an"]
[null,null,"Total économie (eau)",{"$f":"IF(L61>0,L61,L62)","v":0},"m3/an"]
[null,null,null,null,null,null,null,null,"Ratios utiles"]
[null,null,null,"Consommation électrique (kWh) et eau (litre) par cycle",null,null,null,null,"Source: UFC que choisir (2010)"]
[null,null,"Données source (REMODECE, TopTen, Caritas, Geres):","30 °C (lavage normal)","30 °C (lavage éco)","60 °C (lavage intensif)","litres d'eau",null,"elec",null,"eau"]
[null,null,"Neuf et performant (A++)",0.8,0.7,0.92,6.5,null,"classique 1 à 1,8 kWh/c",null,"7,7 à 22l / cycle"]
[null,null,"1à 5 ans (A,A+)",1.25,1,1.43,10,null,"éco 0,9 à 1,2 kWh/c",null,"synthétique: 7,7 à 17 l/cycle"]
[null,null,"6 à 10 ans (B,C)",1.5,1.25,1.9,13,null,"Source: Topten.fr"]
[null,null,"Plus de 10 ans (D à G)",1.7,1.45,2.4,16,null,"0,71 à 0,92 kWh/c",null,"6,5 à 10 l/c"]
[null,null,"nombre de semaine d'utilisation par an",{"$f":"D51","v":52},null,null,null,null,"énergivore 1,14 kWh/c",null,"16 l/c"]
[]
[]
[]
[]
[]
[]
[]
[]
[]
[]
[]
[null,null,null,null,null,null,null,null,null,null,null,null,null,null,null,"Données à ne pas modifier"]
[null,null,null,null,null,null,null,null,null,null,null,null,null,null,null,"Listes déroulantes"]
[null,null,null,null,null,null,null,null,null,null,null,null,null,null,null,"Choix","Age appareil","Nb cycles/sem.","T° lavage","Possibilité 1","Possibilité 2","Possibilité 3","Possibilité 4","Possibilité 5","Possibilité 6","Utilisation seche linge","Vitesse essorage","Seche linge performant"]
[null,null,null,null,null,null,null,null,null,null,null,null,null,null,null,"oui","neuf (classe A)",1,"15 °C","oui, je souhaite le remplacer par un appareil performant","oui, je remplirai et diminuerai mes cycles de lavage","oui, je diminuerai ma température de lavage","oui, j'utiliserai le fil à linge prioritairement","oui, j'utiliserai l'essorage maximum du lave-linge","oui, je diminuerai ma température de lavage et consommation d'eau","100 % - toute l'année",1400,"Neuf (PAC)"]
[null,null,null,null,null,null,null,null,null,null,null,null,null,null,null,"non","entre 5 et 10 ans (classe B)",2,"30°C/ 40°C","non je ne peux pas","non je ne peux pas","non je ne peux pas","non je ne peux pas","non je ne peux pas","non je ne peux pas","50 % - en saison hivernale",1000,"Neuf classique"]
[null,null,null,null,null,null,null,null,null,null,null,null,null,null,null,null,"supérieur à 10 ans (classe C et +)",3,"60 °C",null,null,null,null,null,null,"25 % - que les jours de pluie",500]
[null,null,null,null,null,null,null,null,null,null,null,null,null,null,null,null,null,4,"90 °C",null,null,null,null,null,null,"10 % - rarement"]
[null,null,null,null,null,null,null,null,null,null,null,null,null,null,null,null,null,5,null,null,null,null,null,null,null,"0 % - plus du tout"]
[null,null,null,null,null,null,null,null,null,null,null,null,null,null,null,null,null,6]
[null,null,null,null,null,null,null,null,null,null,null,null,null,null,null,null,null,7]
[]
[null,null,null,null,null,null,null,null,null,null,null,null,null,null,null,"Eléments de calcul"]
[]
[null,null,null,null,null,null,null,null,null,null,null,null,null,null,null,"Donnée sèche linge"]
[null,null,null,null,null,null,null,null,null,null,null,null,null,null,null,null,"kWh/cycle","coef essorage","nombre de jour d'utilisation",null,"Remplacement seul:"]
[null,null,null,null,null,null,null,null,null,null,null,null,null,null,null,"initial",{"$f":"IF(F39=Q93,E50,IF(F39=Q92,E49,IF(F39=Q91,E48,0)))","v":0},{"$f":"IF(H39=500,\"2\",IF(H39=1000,\"1,3\",IF(H39=1400,\"1\",1)))","v":1},{"$f":"IF(G39=\"100 % - toute l'année\",D30*G13,IF(G39=\"50 % - en saison hivernale\",D30*G13*0.5,IF(G39=\"25 % - que les jours de pluie\",D30*G13*0.25,IF(G39=\"10 % - rarement\",D30*G13*0.1,0))))","v":0},null,{"$f":"Q104*R103*S103","v":0},"kWh"]
[null,null,null,null,null,null,null,null,null,null,null,null,null,null,null,"Final",{"$f":"IF(J39=\"neuf (PAC)\",D48,IF(J39=\"neuf classique\",E48,0))","v":0},{"$f":"IF(J41=1000,\"1,3\",IF(J41=1400,\"1\",R103))","v":1},{"$f":"IF(J40=\"50 % - en saison hivernale\",D30*G13*0.5,IF(J40=\"25 % - que les jours de pluie\",D30*G13*0.25,IF(J40=\"10 % - rarement\",D30*G13*0.1,IF(J40=\"0 % - plus du tout\",0,S103))))","v":0}]
[]
[null,null,null,null,null,null,null,null,null,null,null,null,null,null,null,"Lave Linge: remplacement de l'équipement"]
[null,null,null,null,null,null,null,null,null,null,null,null,null,null,null,null,"Conso finale kWh","Economie realisable kWh","Economie realisable m3"]
[null,null,null,null,null,null,null,null,null,null,null,null,null,null,null,"2 changements",{"$f":"IF(ISERROR(D30*J14*HLOOKUP(J15,D25:H29,MATCH(J13,C25:C29,0),FALSE)),0,D30*J14*HLOOKUP(J15,D25:H29,MATCH(J13,C25:C29,0),FALSE))","v":0},{"$f":"IF(Q108=0,0,$D$16-Q108)","v":0}]
[null,null,null,null,null,null,null,null,null,null,null,null,null,null,null,"Changement cycles",{"$f":"IF(ISERROR(D30*J14*HLOOKUP(H13,D25:H29,MATCH(J13,C25:C29,0),FALSE)),0,D30*J14*HLOOKUP(H13,D25:H29,MATCH(J13,C25:C29,0),FALSE))","v":0},{"$f":"IF(Q109=0,0,$D$16-Q109)","v":0},{"$f":"IF(ISERROR(D19-(J14*D30*VLOOKUP(J13,C25:H29,6,FALSE)/1000)),0,D19-(J14*D30*VLOOKUP(J13,C25:H29,6,FALSE)/1000))","v":0}]
[null,null,null,null,null,null,null,null,null,null,null,null,null,null,null,"Changement T°",{"$f":"IF(ISERROR(D30*G13*HLOOKUP(J15,D25:H29,MATCH(J13,C25:C29,0),FALSE)),0,D30*G13*HLOOKUP(J15,D25:H29,MATCH(J13,C25:C29,0),FALSE))","v":0},{"$f":"IF(Q110=0,0,$D$16-Q110)","v":0}]
[null,null,null,null,null,null,null,null,null,null,null,null,null,null,null,"Aucun changement",{"$f":"IF(ISERROR(D30*G13*HLOOKUP(H13,D25:H29,MATCH(J13,C25:C29,0),FALSE)),0,D30*G13*HLOOKUP(H13,D25:H29,MATCH(J13,C25:C29,0),FALSE))","v":0},{"$f":"IF(Q111=0,0,$D$16-Q111)","v":0},{"$f":"IF(ISERROR(D30*G13*((VLOOKUP(F13,C25:H29,6,FALSE))-VLOOKUP(J13,C25:H29,6,FALSE))/1000),0,D30*G13*((VLOOKUP(F13,C25:H29,6,FALSE))-VLOOKUP(J13,C25:H29,6,FALSE))/1000)","v":0}]
[null,null,null,null,null,null,null,null,null,null,null,null,null,null,null,"Economie cas présent:",null,{"$f":"IF(AND(J14=\"\",J15=\"\"),R111,IF(AND(J14=\"\",J15<>\"\"),R110,IF(AND(J14<>\"\",J15=\"\"),R109,IF(AND(J14<>\"\",J15<>\"\"),R108,0))))","v":0},{"$f":"IF(J14=\"\",S111,S109)","v":0}]
[]
[]
[null,null,null,null,null,null,null,null,null,null,null,null,null,null,null,"Lave vaisselle: remplacement de l'équipement"]
[null,null,null,null,null,null,null,null,null,null,null,null,null,null,null,null,"Conso finale kWh","Economie realisable kWh","Economie realisable m3"]
[null,null,null,null,null,null,null,null,null,null,null,null,null,null,null,"2 changements",{"$f":"IF(ISERROR(D76*J62*HLOOKUP(J63,D71:F75,MATCH(J61,C71:C75,0),FALSE)),0,D76*J62*HLOOKUP(J63,D71:F75,MATCH(J61,C71:C75,0),FALSE))","v":0},{"$f":"IF(Q117=0,0,$D$64-Q117)","v":0}]
[null,null,null,null,null,null,null,null,null,null,null,null,null,null,null,"Changement cycles",{"$f":"IF(ISERROR(D76*J62*HLOOKUP(H61,D71:F75,MATCH(J61,C71:C75,0),FALSE)),0,(D76*J62*HLOOKUP(H61,D71:F75,MATCH(J61,C71:C75,0),FALSE)))","v":0},{"$f":"IF(Q118=0,0,$D$64-Q118)","v":0},{"$f":"IF(ISERROR(D67-(J62*D76*VLOOKUP(J61,C72:G75,5,FALSE))/1000),0,D67-(J62*D76*VLOOKUP(J61,C72:G75,5,FALSE))/1000)","v":0}]
[null,null,null,null,null,null,null,null,null,null,null,null,null,null,null,"Changement T°",{"$f":"IF(ISERROR(D76*G61*HLOOKUP(J63,D71:F75,MATCH(J61,C71:C75,0),FALSE)),0,D76*G61*HLOOKUP(J63,D71:F75,MATCH(J61,C71:C75,0),FALSE))","v":0},0]
[null,null,null,null,null,null,null,null,null,null,null,null,null,null,null,"Aucun changement",{"$f":"IF(ISERROR(D76*G61*HLOOKUP(H61,D71:F75,MATCH(J61,C71:C75,0),FALSE)),0,D76*G61*HLOOKUP(H61,D71:F75,MATCH(J61,C71:C75,0),FALSE))","v":0},0,{"$f":"IF(ISERROR(D76*G61*((VLOOKUP(F61,C72:G75,5,FALSE))-VLOOKUP(J61,C72:G75,5,FALSE))/1000),0,D76*G61*((VLOOKUP(F61,C72:G75,5,FALSE))-VLOOKUP(J61,C72:G75,5,FALSE))/1000)","v":0}]
[null,null,null,null,null,null,null,null,null,null,null,null,null,null,null,"Economie cas présent:",null,{"$f":"IF(AND(J62=\"\",J63=\"\"),R120,IF(AND(J62=\"\",J63<>\"\"),R119,IF(AND(J62<>\"\",J63=\"\"),R118,IF(AND(J62<>\"\",J63<>\"\"),R117,0))))","v":0},{"$f":"IF(J62=\"\",S120,S118)","v":0}]
[]
[]
[null,null,null,null,null,null,null,null,null,null,null,null,null,null,null,"Conso appareils lavage/séchage du ménage"]
[null,null,null,null,null,null,null,null,null,null,null,null,null,null,null,null,"kWh","m3"]
[null,null,null,null,null,null,null,null,null,null,null,null,null,null,null,"Lave-linge",{"$f":"IF(OR(E9=\"\",E9=\"non\"),0,IF(D16<>0,D16,80))","v":0},{"$f":"IF(D19<>0,D19,0)","v":0}]
[null,null,null,null,null,null,null,null,null,null,null,null,null,null,null,"Sèche-linge",{"$f":"IF(OR(E35=\"\",E35=\"non\"),0,IF(D42<>0,D42,280))","v":0}]
[null,null,null,null,null,null,null,null,null,null,null,null,null,null,null,"Lave-vaisselle",{"$f":"IF(OR(E57=\"\",E57=\"non\"),0,IF(D64<>0,D64,120))","v":0},{"$f":"D67","v":0}]
[null,null,null,null,null,null,null,null,null,null,null,null,null,null,null,"total",{"$f":"SUM(Q126:Q128)","v":0},{"$f":"SUM(R126:R128)","v":0}]

{"sheet":"Eclairage","index":7,"n_rows":63,"n_cols":30,"rows_kept":63,"cut":false,"hidden":false,"merged":[[1,6,1,9],[2,6,2,9],[5,1,5,16],[11,2,11,4],[13,2,13,3],[8,5,8,8],[13,5,13,8],[23,6,23,7],[8,14,8,15],[13,11,13,15],[8,9,8,10],[9,14,9,15],[10,14,10,15],[9,5,9,8],[10,5,10,8],[11,5,11,8],[14,10,14,15],[16,2,16,3],[17,2,17,3],[18,2,18,3],[19,2,19,3],[22,6,22,7],[77,11,77,14],[25,6,25,7],[26,6,26,7],[27,6,27,7],[16,6,16,7],[17,6,17,7],[18,6,18,7],[19,6,19,7],[20,6,20,7],[21,6,21,7],[72,5,72,7],[73,11,73,14],[74,11,74,14],[75,11,75,14],[76,11,76,14],[50,5,50,9],[51,15,51,16],[32,11,32,14],[25,2,25,3],[26,2,26,3],[27,2,27,3],[30,11,30,14],[31,11,31,14],[28,4,28,7],[24,6,24,7],[15,2,15,3],[15,4,15,5],[15,6,15,7],[8,2,8,4],[9,2,9,4],[10,2,10,4],[14,2,14,9],[9,9,9,10],[10,9,10,10],[11,9,11,10],[20,2,20,3],[21,2,21,3],[22,2,22,3],[23,2,23,3],[24,2,24,3]]}
[]
[null,null,null,null,"Nom du/ des chargé(s) de visite",null,{"$f":"IF('Données ménage'!D20<>\"\",'Données ménage'!D20&IF('Données ménage'!H20<>\"\",\"/ \"&'Données ménage'!H20,\"\"))","v":"Amélie LOMBARD / ROY MATHIS"},null,null,null,null,"Cases jaunes =","à remplir"]
[null,null,null,null,"Nom de la famille",null,{"$f":"IF('Données ménage'!$D$9<>\"\",'Données ménage'!$D$9,\"\")","v":""}]
[]
[]
[null,"Eclairage"]
[]
[]
[null,null,"Gestes mis en œuvre",null,null,"Réponse",null,null,null,"Actions possibles ?"]
[null,null,"Avez-vous remplacé vos ampoules énergivores par des économes (Fluocompacte, LED…)?"]
[null,null,"Laissez-vous parfois des lumières allumées inutilement?"]
[null,null,"Est-ce que le nombre d'éclairage pour un usage est adapté?"]
[]
[null,null,"nombre de semaine de présence par an",null,{"$f":"52-'Données ménage'!D33","v":52},"Nombre de points lumineux",null,null,null,null,null,"Equipement préconisé: LBC ou LED"]
[null,null,"Etat initial",null,null,null,null,null,null,null,"Etat final"]
[null,null,"Pièce ",null,"Ampoule\n\n \ntype                         Puissance W",null,"temps moyen d'utilisation en h/ 24 h",null,"Temps d'allumage inutile si lumières laissées inutilement (en h/24h)","Consommation initiale","Economie estimée grâce à une utilisation optimisée","Equipement préconisé","Puissance W nouvelle ampoule","Consommation finale","Economie en kWh annuelle si équipement","Economie en € annuelle si équipement"]
[null,null,null,null,null,null,null,null,null,{"$f":"$E$14*7*F17*G17/1000","v":0},{"$f":"IF(I17=\"\",0,(J17-($E$14*7*F17*(G17-I17)/1000)))","v":0},null,null,{"$f":"$E$14*7*M17*(G17-I17)/1000","v":0},{"$f":"(J17-K17)-N17","v":0},{"$f":"O17*'Consommation et énergies'!$Z$28","v":0}]
[null,null,null,null,null,null,null,null,null,{"$f":"$E$14*7*F18*G18/1000","v":0},{"$f":"IF(I18=\"\",0,(J18-($E$14*7*F18*(G18-I18)/1000)))","v":0},null,null,{"$f":"$E$14*7*M18*(G18-I18)/1000","v":0},{"$f":"(J18-K18)-N18","v":0},{"$f":"O18*'Consommation et énergies'!$Z$28","v":0}]
[null,null,null,null,null,null,null,null,null,0,0,null,null,0,0,{"$f":"O19*'Consommation et énergies'!$Z$28","v":0}]
[null,null,null,null,null,null,null,null,null,0,0,null,null,0,0,{"$f":"O20*'Consommation et énergies'!$Z$28","v":0}]
[null,null,null,null,null,null,null,null,null,0,0,null,null,0,0,{"$f":"O21*'Consommation et énergies'!$Z$28","v":0}]
[null,null,null,null,null,null,null,null,null,0,0,null,null,0,0,{"$f":"O22*'Consommation et énergies'!$Z$28","v":0}]
[null,null,null,null,null,null,null,null,null,0,0,null,null,0,0,{"$f":"O23*'Consommation et énergies'!$Z$28","v":0}]
[null,null,null,null,null,null,null,null,null,0,0,null,null,0,0,{"$f":"O24*'Consommation et énergies'!$Z$28","v":0}]
[null,null,null,null,null,null,null,null,null,0,0,null,null,0,0,{"$f":"O25*'Consommation et énergies'!$Z$28","v":0}]
[null,null,null,null,null,null,null,null,null,0,0,null,null,0,0,{"$f":"O26*'Consommation et énergies'!$Z$28","v":0}]
[null,null,null,null,null,null,null,null,null,0,0,null,null,0,0,{"$f":"O27*'Consommation et énergies'!$Z$28","v":0}]
[null,null,null,null,null,null,null,null,null,0,0,null,null,0,0,{"$f":"O28*'Consommation et énergies'!$Z$28","v":0}]
[null,null,null,null,null,null,null,null,"TOTAL",{"$f":"SUM(J17:J28)","v":0},{"$f":"SUM(K17:K28)","v":0},null,null,{"$f":"SUM(N17:N28)","v":0},{"$f":"SUM(O17:O28)","v":0},{"$f":"SUM(P17:P28)","v":0}]
[]
[]
[]
[]
[]
[null,null,null,null,null,null,null,null,null,null,null,null,null,null,null,null,null,null,null,null,"Données à ne pas modifier"]
[null,null,null,null,null,null,null,null,null,null,null,null,null,null,null,null,null,null,null,null,"Listes déroulantes"]
[]
[null,null,null,null,null,null,null,null,null,null,null,null,null,null,null,null,null,null,null,null,"Ecogestes 1","Ecogestes 2","Ecogestes 3","Possibilité mise en œuvre","Pièce concernée","Type ampoule initial","Nb heures utilisation","Type ampoule préconisé","Nombre préconisé","Coût"]
[null,null,null,null,null,null,null,null,null,null,null,null,null,null,null,null,null,null,null,null,"oui, toutes","non","oui","oui, je peux","Salon","Incandescant",0,"Ampoule LBC culot E27",{"$f":"COUNTIF($L$17:$L$28,AB39)","v":0},{"$f":"AC39*'MAJ Données'!F159","v":0}]
[null,null,null,null,null,null,null,null,null,null,null,null,null,null,null,null,null,null,null,null,"non, pas toutes","oui, parfois","parfois, non","non je ne peux pas","Cuisine","Halogène spot",0.5,"Ampoule LBC culot B22",{"$f":"COUNTIF($L$17:$L$28,AB40)","v":0},{"$f":"AC40*'MAJ Données'!F160","v":0}]
[null,null,null,null,null,null,null,null,null,null,null,null,null,null,null,null,null,null,null,null,null,"oui, souvent",null,null,"Chambre(s)","Autre",1,"Ampoule LBC culot E14",0,{"$f":"AC41*'MAJ Données'!F161","v":0}]
[null,null,null,null,null,null,null,null,null,null,null,null,null,null,null,null,null,null,null,null,null,null,null,null,"Salle-de-bain",null,2,"Ampoule LBC autre culot",0,{"$f":"AC42*'MAJ Données'!F162","v":0}]
[null,null,null,null,null,null,null,null,null,null,null,null,null,null,null,null,null,null,null,null,null,null,null,null,"WC",null,3,"Ampoule LED culot GU 5,3",0,{"$f":"AC43*'MAJ Données'!F163","v":0}]
[null,null,null,null,null,null,null,null,null,null,null,null,null,null,null,null,null,null,null,null,null,null,null,null,"Couloir",null,4,"Ampoule LED culot GU 10",0,{"$f":"AC44*'MAJ Données'!F164","v":0}]
[null,null,null,null,null,null,null,null,null,null,null,null,null,null,null,null,null,null,null,null,null,null,null,null,"Autre",null,5,"Ampoule LED autre culot",0,{"$f":"AC45*'MAJ Données'!F165","v":0}]
[null,null,null,null,null,null,null,null,null,null,null,null,null,null,null,null,null,null,null,null,null,null,null,null,null,null,6]
[null,null,null,null,null,null,null,null,null,null,null,null,null,null,null,null,null,null,null,null,null,null,null,null,null,null,8]
[null,null,null,null,null,null,null,null,null,null,null,null,null,null,null,null,null,null,null,null,null,null,null,null,null,null,10]
[null,null,null,null,null,null,null,null,null,null,null,null,null,null,null,null,null,null,null,null,null,null,null,null,null,null,12]
[null,null,null,null,null,null,null,null,null,null,null,null,null,null,null,null,null,null,null,null,null,null,null,null,null,null,15]
[null,null,null,null,null,null,null,null,null,null,null,null,null,null,null,null,null,null,null,null,null,null,null,null,null,null,20]
[null,null,null,null,null,null,null,null,null,null,null,null,null,null,null,null,null,null,null,null,null,null,null,null,null,null,24]
[]
[]
[null,null,null,null,null,null,null,null,null,null,null,null,null,null,null,null,null,null,null,null,"Eléments de calcul"]
[]
[null,null,null,null,null,null,null,null,null,null,null,null,null,null,null,null,null,null,null,null,"Conso théorique"]
[null,null,null,null,null,null,null,null,null,null,null,null,null,null,null,null,null,null,null,null,null,"kwh/an"]
[null,null,null,null,null,null,null,null,null,null,null,null,null,null,null,null,null,null,null,null,"<30 m²",100]
[null,null,null,null,null,null,null,null,null,null,null,null,null,null,null,null,null,null,null,null,"30-60 m²",200]
[null,null,null,null,null,null,null,null,null,null,null,null,null,null,null,null,null,null,null,null,"60-90 m²",300]
[null,null,null,null,null,null,null,null,null,null,null,null,null,null,null,null,null,null,null,null,">90 m²",400]
[null,null,null,null,null,null,null,null,null,null,null,null,null,null,null,null,null,null,null,null,"Cas présent:",{"$f":"IF('Données bâti'!E14<30,Eclairage!V59,IF('Données bâti'!E14<60,Eclairage!V60,IF('Données bâti'!E14<90,Eclairage!V61,IF('Données bâti'!E14>=90,Eclairage!V62))))","v":100}]

{"sheet":"Veilles","index":8,"n_rows":78,"n_cols":25,"rows_kept":78,"cut":false,"hidden":false,"merged":[[1,3,1,4],[2,3,2,4],[30,2,30,6],[29,2,29,6],[28,2,28,6],[12,3,13,3],[6,1,6,7],[12,5,12,6],[12,2,13,2],[12,4,13,4],[10,5,11,6],[26,2,26,5],[27,2,27,5]]}
[]
[null,null,"Nom du/ des chargé(s) de visite",{"$f":"IF('Données ménage'!D20<>\"\",'Données ménage'!D20&IF('Données ménage'!H20<>\"\",\"/ \"&'Données ménage'!H20,\"\"))","v":"Amélie LOMBARD / ROY MATHIS"}]
[null,null,"Nom de la famille",{"$f":"IF('Données ménage'!$D$9<>\"\",'Données ménage'!$D$9,\"\")","v":""},null,"Case jaune =","à remplir"]
[]
[]
[]
[null,"Les veilles"]
[]
[null,null,"Taux d'équipement:"]
[null,null,"Présence de veilles:",null,"Passer à la fiche suivante"]
[null,null,null,null,null,"Equipement préconisé: multiprise à interrupteur"]
[]
[null,null,"Appareils avec veilles","Conso mesurée en Watt","heures/ jour en veille","Economies"]
[null,null,null,null,null,"kWh/an","Euro / an"]
[null,null,null,null,null,{"$f":"(D15*E15*365)/1000","v":0},{"$f":"F15*'Consommation et énergies'!$Z$28","v":0}]
[null,null,null,null,null,0,{"$f":"F16*'Consommation et énergies'!$Z$28","v":0}]
[null,null,null,null,null,0,{"$f":"F17*'Consommation et énergies'!$Z$28","v":0}]
[null,null,null,null,null,0,{"$f":"F18*'Consommation et énergies'!$Z$28","v":0}]
[null,null,null,null,null,0,{"$f":"F19*'Consommation et énergies'!$Z$28","v":0}]
[null,null,null,null,null,0,{"$f":"F20*'Consommation et énergies'!$Z$28","v":0}]
[null,null,null,null,null,0,{"$f":"F21*'Consommation et énergies'!$Z$28","v":0}]
[null,null,null,null,null,0,{"$f":"F22*'Consommation et énergies'!$Z$28","v":0}]
[null,null,null,null,null,0,{"$f":"F23*'Consommation et énergies'!$Z$28","v":0}]
[null,null,null,null,null,0,{"$f":"F24*'Consommation et énergies'!$Z$28","v":0}]
[null,null,null,null,"TOTAL",{"$f":"SUM(F15:F24)","v":0},{"$f":"SUM(G15:G24)","v":0}]
[]
[null,null,"Nombre de multiprises avec interrupteur préconisées:"]
[null,null,"Nombre de multiprises coupe-veille préconisées:"]
[]
[]
[]
[]
[]
[]
[]
[]
[]
[]
[]
[]
[]
[null,null,null,null,null,null,null,null,null,null,null,null,null,null,null,null,"Données à ne pas modifier"]
[null,null,null,null,null,null,null,null,null,null,null,null,null,null,null,null,"Listes déroulantes"]
[]
[null,null,null,null,null,null,null,null,null,null,null,null,null,null,null,null,"Type équipements","Pièce concernée","Choix","Tx d'équipement"]
[null,null,null,null,null,null,null,null,null,null,null,null,null,null,null,null,"Ordinateur","Salon","Oui","Faible"]
[null,null,null,null,null,null,null,null,null,null,null,null,null,null,null,null,"Ecran d'ordinateur","Chambre","Non","Normal"]
[null,null,null,null,null,null,null,null,null,null,null,null,null,null,null,null,"Imprimante","Cuisine",null,"Suréquipé"]
[null,null,null,null,null,null,null,null,null,null,null,null,null,null,null,null,"scanner","Salle de bain"]
[null,null,null,null,null,null,null,null,null,null,null,null,null,null,null,null,"Console de jeu","Autre pièce"]
[null,null,null,null,null,null,null,null,null,null,null,null,null,null,null,null,"TV"]
[null,null,null,null,null,null,null,null,null,null,null,null,null,null,null,null,"Chargeur"]
[null,null,null,null,null,null,null,null,null,null,null,null,null,null,null,null,"Boitier TV satellite/numérique"]
[null,null,null,null,null,null,null,null,null,null,null,null,null,null,null,null,"Lecteur DVD"]
[null,null,null,null,null,null,null,null,null,null,null,null,null,null,null,null,"Chaîne hifi"]
[null,null,null,null,null,null,null,null,null,null,null,null,null,null,null,null,"Radio"]
[null,null,null,null,null,null,null,null,null,null,null,null,null,null,null,null,"Autre"]
[]
[]
[null,null,null,null,null,null,null,null,null,null,null,null,null,null,null,null,"Eléments de calcul"]
[null,null,null,null,null,null,null,null,null,null,null,null,null,null,null,null,"Conso théorique autres appareils"]
[null,null,null,null,null,null,null,null,null,null,null,null,null,null,null,null,"Nb occupants","Type de conso",null,null,null,null,"Total conso théorique électricité (cas présent)"]
[null,null,null,null,null,null,null,null,null,null,null,null,null,null,null,null,0,"Faible","Normal","Suréquipé","Dont cuisson",null,"Froid",{"$f":"Froid!U119","v":0}]
[null,null,null,null,null,null,null,null,null,null,null,null,null,null,null,null,1,350,500,650,210,null,"Lavage",{"$f":"'Lavage  sechage'!Q129","v":0}]
[null,null,null,null,null,null,null,null,null,null,null,null,null,null,null,null,2,{"$f":"R64+300","v":650},{"$f":"S64+300","v":800},{"$f":"T64+300","v":950},370,null,"Eclairage",{"$f":"Eclairage!V63","v":100},"Dont cuisson"]
[null,null,null,null,null,null,null,null,null,null,null,null,null,null,null,null,3,{"$f":"R65+150","v":800},{"$f":"S65+150","v":950},{"$f":"T65+150","v":1100},450,null,"Autre",{"$f":"IF('Consommation et énergies'!D12<>'Consommation et énergies'!AG95,(IF(D9=R63,VLOOKUP('Données ménage'!D27,Veilles!Q64:T78,2,FALSE),IF(D9=Veilles!S63,VLOOKUP('Données ménage'!D27,Veilles!Q64:T78,3,FALSE),IF(D9=Veilles!T63,VLOOKUP('Données ménage'!D27,Veilles!Q64:T78,4,FALSE),VLOOKUP('Données ménage'!D27,Veilles!Q64:T78,3,FALSE)))))-(VLOOKUP('Données ménage'!D27,Veilles!Q64:U78,5,FALSE)),IF(D9=R63,VLOOKUP('Données ménage'!D27,Veilles!Q64:T78,2,FALSE),IF(D9=Veilles!S63,VLOOKUP('Données ménage'!D27,Veilles!Q64:T78,3,FALSE),IF(D9=Veilles!T63,VLOOKUP('Données ménage'!D27,Veilles!Q64:T78,4,FALSE),VLOOKUP('Données ménage'!D27,Veilles!Q64:T78,3,FALSE)))))","v":{"$error":"#N/A"}},{"$f":"IF('Consommation et énergies'!D12<>'Consommation et énergies'!AG95,0,VLOOKUP('Données ménage'!D27,Veilles!Q64:U78,5,FALSE))","v":0}]
[null,null,null,null,null,null,null,null,null,null,null,null,null,null,null,null,4,{"$f":"R66+180","v":980},{"$f":"S66+180","v":1130},{"$f":"T66+180","v":1280},520,null,"Eau chaude",{"$f":"IF('Consommation et énergies'!D11='Consommation et énergies'!AF95,Eau!X173,0)","v":0}]
[null,null,null,null,null,null,null,null,null,null,null,null,null,null,null,null,5,{"$f":"R67+80","v":1060},{"$f":"S67+80","v":1210},{"$f":"T67+80","v":1360},550,null,"Chauffage",{"$f":"IF('Consommation et énergies'!D8<>'Consommation et énergies'!AG95,0,IF(AND('Chauffage ventilation'!I21<>\"\",'Chauffage ventilation'!I21>0),'Chauffage ventilation'!I21,IF('Chauffage ventilation'!K21>0,'Chauffage ventilation'!K21,0)))","v":0}]
[null,null,null,null,null,null,null,null,null,null,null,null,null,null,null,null,6,{"$f":"R68+50","v":1110},{"$f":"S68+50","v":1260},{"$f":"T68+50","v":1410},580,null,"TOTAL",{"$f":"SUM(X63:X68)","v":{"$error":"#N/A"}}]
[null,null,null,null,null,null,null,null,null,null,null,null,null,null,null,null,7,{"$f":"R69+20","v":1130},{"$f":"S69+20","v":1280},{"$f":"T69+20","v":1430},600]
[null,null,null,null,null,null,null,null,null,null,null,null,null,null,null,null,8,{"$f":"R70+15","v":1145},1295,1445,620]
[null,null,null,null,null,null,null,null,null,null,null,null,null,null,null,null,9,1160,1310,1460,640]
[null,null,null,null,null,null,null,null,null,null,null,null,null,null,null,null,10,1175,1325,1475,660]
[null,null,null,null,null,null,null,null,null,null,null,null,null,null,null,null,11,{"$f":"R73+15","v":1190},1340,1490,680]
[null,null,null,null,null,null,null,null,null,null,null,null,null,null,null,null,12,{"$f":"R74+15","v":1205},1355,1505,700]
[null,null,null,null,null,null,null,null,null,null,null,null,null,null,null,null,13,{"$f":"R75+15","v":1220},1370,1520,720]
[null,null,null,null,null,null,null,null,null,null,null,null,null,null,null,null,14,{"$f":"R76+15","v":1235},1385,1535,740]
[null,null,null,null,null,null,null,null,null,null,null,null,null,null,null,null,15,{"$f":"R77+15","v":1250},1400,1550,760]

{"sheet":"Accompagnement","index":9,"n_rows":34,"n_cols":14,"rows_kept":34,"cut":false,"hidden":false,"merged":[[29,3,29,9],[1,3,1,4],[1,5,1,6],[2,3,2,4],[2,5,2,6],[12,3,12,9],[4,1,4,9],[25,4,25,9]]}
[]
[null,null,null,"Nom du conseiller",null,{"$f":"IF('Données ménage'!$D$21=TRUE,'Données ménage'!$D$20,IF('Données ménage'!$I$21=TRUE,'Données ménage'!$H$20,\"\"))","v":""},null,null,"Case jaune =","à remplir"]
[null,null,null,"Nom de la famille",null,{"$f":"IF('Données ménage'!$D$9<>\"\",'Données ménage'!$D$9,\"\")","v":""}]
[]
[null,"Accompagnement du ménage"]
[]
[null,"Selon vous, quelles sont les principales difficultés du ménage liées à l'énergie? (plusieurs réponses possibles)"]
[null,null,"Logement mal isolé, déperditif en énergie",null,null,null,null,null,null,null,null,null,null,false]
[null,null,"Comportements énergivores",null,null,null,null,null,null,null,null,null,null,false]
[null,null,"Ressources faibles",null,null,null,null,null,null,null,null,null,null,false]
[null,null,"Défaillance des équipements ",null,null,"(chauffage, eau chaude, etc)",null,null,null,null,null,null,null,false]
[null,null,"Mauvais entretien du logement",null,null,"( fuites, moisissures, etc)",null,null,null,null,null,null,null,false]
[null,null,"Autre: ",null,null,null,null,null,null,null,null,null,null,false]
[]
[null,"Comment classeriez-vous le ménage? (1 réponse possible)"]
[null,null,"Ménage fragile économiquement mais ne sacrifiant pas son confort ",null,null,null,null,null,"(chauffage constant, impayés)"]
[null,null,"Bricoleur économe",null,"(système D, débrouille, modulation du chauffage, recour au chauffage d'appoint)",null,null,null,null,null,null,null,null,0]
[null,null,"Vulnérable résigné",null,"(inconfort subi, logement dégradé, chauffage déffaillant, mal-être)"]
[]
[null,"Le ménage a-t-il été orienté vers une ou plusieurs autre(s) structure(s)?"]
[null,null,"Oui",null,null,null,null,null,null,null,null,null,null,false]
[null,null,"Non",null,null,null,null,null,null,null,null,null,null,false]
[]
[null,"Si \"oui\", laquelle ou lesquelles?"]
[null,null,"ADIL",null,null,null,null,null,null,null,null,null,null,false]
[null,null,"Opérateur travaux, lequel: ",null,null,null,null,null,null,null,null,null,null,false]
[null,null,"Médiateur de l'énergie",null,null,null,null,null,null,null,null,null,null,false]
[null,null,"Espace Info-Energie",null,null,null,null,null,null,null,null,null,null,false]
[null,null,"Action sociale",null,null,null,null,null,null,null,null,null,null,false]
[null,null,"Autre: ",null,null,null,null,null,null,null,null,null,null,false]
[]
[null,"Le ménage a-t-il donné son accord pour être recontacté dans le cadre d'un suivi/évaluation?",null,null,null,null,null,null,null,null,null,null,null,false]
[null,null,"Oui",null,null,null,null,null,null,null,null,null,null,false]
[null,null,"Non"]

{"sheet":"Recap visite","index":10,"n_rows":103,"n_cols":29,"rows_kept":103,"cut":false,"hidden":false,"merged":[[86,3,86,7],[87,3,87,7],[74,2,74,7],[81,3,81,7],[82,3,82,7],[83,3,83,7],[84,3,84,7],[85,3,85,7],[1,2,1,10],[76,3,76,7],[77,3,77,7],[71,5,71,7],[85,11,85,13],[3,2,3,10],[16,2,16,10],[4,2,4,10],[78,11,78,13],[79,11,79,13],[80,3,80,7],[86,11,86,13],[87,11,87,13],[38,2,38,10],[25,2,25,10],[36,5,36,6],[80,11,80,13],[81,11,81,13],[82,11,82,13],[83,11,83,13],[69,5,69,7],[84,11,84,13],[78,3,78,7],[79,3,79,7],[74,11,74,13],[76,11,76,13],[77,11,77,13]]}
[]
[null,null,"Synthèse de la visite"]
[]
[null,null,"Les équipements préconisés"]
[null,null,"Chauffage, ventilation et humidité"]
[null,null,"Equipements préconisés","Installé?","Nb si installation","Conseillé ?","Nombre","Investissement","Economie en kWh","Economie en m3","Economie en €","Eco m3 eq offerts","Eco kWh eq offerts","Eco eq offerts",null,"Coût éq. offerts","CO2 économisés Eq offerts","CO2 économisés total"]
[null,null,"Film de survitrage",null,null,{"$f":"IF('Chauffage ventilation'!L37>0,\"oui\",\"non\")","v":"non"},{"$f":"'Chauffage ventilation'!L37","v":0},{"$f":"IF(F7=\"oui\",'Chauffage ventilation'!F43,\"\")","v":""},{"$f":"'Chauffage ventilation'!F41","v":0},null,{"$f":"I7*'Consommation et énergies'!$AF$159","v":0},{"$f":"IF(J7>0,J7/G7*E7,0)","v":0},{"$f":"IF(AND(G7>0,I7>0),I7/G7*E7,0)","v":0},{"$f":"IF(AND(K7>0,G7>0),(K7/G7)*E7,0)","v":0},false,{"$f":"IF(AND(E7>0,H7<>\"\"),H7/G7*E7,0)","v":0},{"$f":"IF('Consommation et énergies'!$D$8=\"\",0,IF('Consommation et énergies'!$D$8='Consommation et énergies'!$AF$95,(Indicateurs!$D$51*'Recap visite'!M7)/1000,IF(OR('Consommation et énergies'!$D$8='Consommation et énergies'!$AF$102,'Consommation et énergies'!$D$8='Consommation et énergies'!$AF$103,'Consommation et énergies'!$D$8='Consommation et énergies'!$AF$104,'Consommation et énergies'!$D$8='Consommation et énergies'!$AF$105),\"Inconnu\",(VLOOKUP('Consommation et énergies'!$D$8,Indicateurs!$B$54:$D$60,3,FALSE)*'Recap visite'!M7)/1000)))","v":0},{"$f":"IF('Consommation et énergies'!$D$8=\"\",0,IF('Consommation et énergies'!$D$8='Consommation et énergies'!$AF$95,(Indicateurs!$D$51*I7)/1000,IF(OR('Consommation et énergies'!$D$8='Consommation et énergies'!$AF$102,'Consommation et énergies'!$D$8='Consommation et énergies'!$AF$103,'Consommation et énergies'!$D$8='Consommation et énergies'!$AF$104,'Consommation et énergies'!$D$8='Consommation et énergies'!$AF$105),\"Inconnu\",(VLOOKUP('Consommation et énergies'!$D$8,Indicateurs!$B$54:$D$60,3,FALSE)*I7)/1000)))","v":0}]
[null,null,"Joints de fenêtre",null,null,{"$f":"IF('Chauffage ventilation'!L46>0,\"oui\",\"non\")","v":"non"},{"$f":"'Chauffage ventilation'!L46","v":0},{"$f":"IF(F8=\"oui\",'Chauffage ventilation'!F52,\"\")","v":""},{"$f":"'Chauffage ventilation'!F50","v":0},null,{"$f":"I8*'Consommation et énergies'!$AF$159","v":0},0,{"$f":"IF(AND(G8>0,I8>0),I8/G8*E8,0)","v":0},0,false,{"$f":"IF(AND(E8>0,H8<>\"\"),H8/G8*E8,0)","v":0},{"$f":"IF('Consommation et énergies'!$D$8=\"\",0,IF('Consommation et énergies'!$D$8='Consommation et énergies'!$AF$95,(Indicateurs!$D$51*'Recap visite'!M8)/1000,IF(OR('Consommation et énergies'!$D$8='Consommation et énergies'!$AF$102,'Consommation et énergies'!$D$8='Consommation et énergies'!$AF$103,'Consommation et énergies'!$D$8='Consommation et énergies'!$AF$104,'Consommation et énergies'!$D$8='Consommation et énergies'!$AF$105),\"Inconnu\",(VLOOKUP('Consommation et énergies'!$D$8,Indicateurs!$B$54:$D$60,3,FALSE)*'Recap visite'!M8)/1000)))","v":0},{"$f":"IF('Consommation et énergies'!$D$8=\"\",0,IF('Consommation et énergies'!$D$8='Consommation et énergies'!$AF$95,(Indicateurs!$D$51*I8)/1000,IF(OR('Consommation et énergies'!$D$8='Consommation et énergies'!$AF$102,'Consommation et énergies'!$D$8='Consommation et énergies'!$AF$103,'Consommation et énergies'!$D$8='Consommation et énergies'!$AF$104,'Consommation et énergies'!$D$8='Consommation et énergies'!$AF$105),\"Inconnu\",(VLOOKUP('Consommation et énergies'!$D$8,Indicateurs!$B$54:$D$60,3,FALSE)*I8)/1000)))","v":0}]
[null,null,"Bas de porte",null,null,{"$f":"IF('Chauffage ventilation'!K58>0,\"oui\",\"non\")","v":"non"},{"$f":"'Chauffage ventilation'!K58","v":0},{"$f":"IF(F9=\"oui\",'Chauffage ventilation'!F63,\"\")","v":""},{"$f":"'Chauffage ventilation'!F61","v":0},null,{"$f":"I9*'Consommation et énergies'!$AF$159","v":0},0,0,0,false,{"$f":"IF(AND(E9>0,H9<>\"\"),H9/G9*E9,0)","v":0},{"$f":"IF('Consommation et énergies'!$D$8=\"\",0,IF('Consommation et énergies'!$D$8='Consommation et énergies'!$AF$95,(Indicateurs!$D$51*'Recap visite'!M9)/1000,IF(OR('Consommation et énergies'!$D$8='Consommation et énergies'!$AF$102,'Consommation et énergies'!$D$8='Consommation et énergies'!$AF$103,'Consommation et énergies'!$D$8='Consommation et énergies'!$AF$104,'Consommation et énergies'!$D$8='Consommation et énergies'!$AF$105),\"Inconnu\",(VLOOKUP('Consommation et énergies'!$D$8,Indicateurs!$B$54:$D$60,3,FALSE)*'Recap visite'!M9)/1000)))","v":0},{"$f":"IF('Consommation et énergies'!$D$8=\"\",0,IF('Consommation et énergies'!$D$8='Consommation et énergies'!$AF$95,(Indicateurs!$D$51*I9)/1000,IF(OR('Consommation et énergies'!$D$8='Consommation et énergies'!$AF$102,'Consommation et énergies'!$D$8='Consommation et énergies'!$AF$103,'Consommation et énergies'!$D$8='Consommation et énergies'!$AF$104,'Consommation et énergies'!$D$8='Consommation et énergies'!$AF$105),\"Inconnu\",(VLOOKUP('Consommation et énergies'!$D$8,Indicateurs!$B$54:$D$60,3,FALSE)*I9)/1000)))","v":0}]
[null,null,"Film/ panneau réfléchissant",null,null,{"$f":"IF('Chauffage ventilation'!L70>0,\"oui\",\"non\")","v":"non"},{"$f":"'Chauffage ventilation'!L70","v":0},{"$f":"IF(F10=\"oui\",'Chauffage ventilation'!F76,\"\")","v":""},{"$f":"'Chauffage ventilation'!F74","v":0},null,{"$f":"I10*'Consommation et énergies'!$AF$159","v":0},0,0,0,false,0,{"$f":"IF('Consommation et énergies'!$D$8=\"\",0,IF('Consommation et énergies'!$D$8='Consommation et énergies'!$AF$95,(Indicateurs!$D$51*'Recap visite'!M10)/1000,IF(OR('Consommation et énergies'!$D$8='Consommation et énergies'!$AF$102,'Consommation et énergies'!$D$8='Consommation et énergies'!$AF$103,'Consommation et énergies'!$D$8='Consommation et énergies'!$AF$104,'Consommation et énergies'!$D$8='Consommation et énergies'!$AF$105),\"Inconnu\",(VLOOKUP('Consommation et énergies'!$D$8,Indicateurs!$B$54:$D$60,3,FALSE)*'Recap visite'!M10)/1000)))","v":0},{"$f":"IF('Consommation et énergies'!$D$8=\"\",0,IF('Consommation et énergies'!$D$8='Consommation et énergies'!$AF$95,(Indicateurs!$D$51*I10)/1000,IF(OR('Consommation et énergies'!$D$8='Consommation et énergies'!$AF$102,'Consommation et énergies'!$D$8='Consommation et énergies'!$AF$103,'Consommation et énergies'!$D$8='Consommation et énergies'!$AF$104,'Consommation et énergies'!$D$8='Consommation et énergies'!$AF$105),\"Inconnu\",(VLOOKUP('Consommation et énergies'!$D$8,Indicateurs!$B$54:$D$60,3,FALSE)*I10)/1000)))","v":0}]
[null,null,"Manchons isolants tuyauterie",null,null,{"$f":"IF(AND('Chauffage ventilation'!F83=\"Oui\",'Chauffage ventilation'!K84<>\"\"),\"oui\",\"non\")","v":"non"},{"$f":"IF('Chauffage ventilation'!K84<>\"\",'Chauffage ventilation'!K84,0)","v":0},{"$f":"IF(F11=\"oui\",'Chauffage ventilation'!F89,\"\")","v":""},{"$f":"'Chauffage ventilation'!F87","v":0},null,{"$f":"I11*'Consommation et énergies'!$AF$159","v":0},{"$f":"IF(J11>0,J11/G11*E11,0)","v":0},0,0,false,{"$f":"IF(AND(E11>0,H11<>\"\"),H11/G11*E11,0)","v":0},{"$f":"IF('Consommation et énergies'!$D$8=\"\",0,IF('Consommation et énergies'!$D$8='Consommation et énergies'!$AF$95,(Indicateurs!$D$51*'Recap visite'!M11)/1000,IF(OR('Consommation et énergies'!$D$8='Consommation et énergies'!$AF$102,'Consommation et énergies'!$D$8='Consommation et énergies'!$AF$103,'Consommation et énergies'!$D$8='Consommation et énergies'!$AF$104,'Consommation et énergies'!$D$8='Consommation et énergies'!$AF$105),\"Inconnu\",(VLOOKUP('Consommation et énergies'!$D$8,Indicateurs!$B$54:$D$60,3,FALSE)*'Recap visite'!M11)/1000)))","v":0},{"$f":"IF('Consommation et énergies'!$D$8=\"\",0,IF('Consommation et énergies'!$D$8='Consommation et énergies'!$AF$95,(Indicateurs!$D$51*I11)/1000,IF(OR('Consommation et énergies'!$D$8='Consommation et énergies'!$AF$102,'Consommation et énergies'!$D$8='Consommation et énergies'!$AF$103,'Consommation et énergies'!$D$8='Consommation et énergies'!$AF$104,'Consommation et énergies'!$D$8='Consommation et énergies'!$AF$105),\"Inconnu\",(VLOOKUP('Consommation et énergies'!$D$8,Indicateurs!$B$54:$D$60,3,FALSE)*I11)/1000)))","v":0}]
[null,null,"Thermomètre hygromètre",null,null,{"$f":"IF('Chauffage ventilation'!G94=\"oui\",\"oui\",\"non\")","v":"non"},{"$f":"IF(F12=\"oui\",1,0)","v":0},{"$f":"IF(F12=\"oui\",'Chauffage ventilation'!M94,\"\")","v":""},null,null,null,0,0,0,false,0,{"$f":"IF('Consommation et énergies'!$D$8=\"\",0,IF('Consommation et énergies'!$D$8='Consommation et énergies'!$AF$95,(Indicateurs!$D$51*'Recap visite'!M12)/1000,IF(OR('Consommation et énergies'!$D$8='Consommation et énergies'!$AF$102,'Consommation et énergies'!$D$8='Consommation et énergies'!$AF$103,'Consommation et énergies'!$D$8='Consommation et énergies'!$AF$104,'Consommation et énergies'!$D$8='Consommation et énergies'!$AF$105),\"Inconnu\",(VLOOKUP('Consommation et énergies'!$D$8,Indicateurs!$B$54:$D$60,3,FALSE)*'Recap visite'!M12)/1000)))","v":0},{"$f":"IF('Consommation et énergies'!$D$8=\"\",0,IF('Consommation et énergies'!$D$8='Consommation et énergies'!$AF$95,(Indicateurs!$D$51*I12)/1000,IF(OR('Consommation et énergies'!$D$8='Consommation et énergies'!$AF$102,'Consommation et énergies'!$D$8='Consommation et énergies'!$AF$103,'Consommation et énergies'!$D$8='Consommation et énergies'!$AF$104,'Consommation et énergies'!$D$8='Consommation et énergies'!$AF$105),\"Inconnu\",(VLOOKUP('Consommation et énergies'!$D$8,Indicateurs!$B$54:$D$60,3,FALSE)*I12)/1000)))","v":0}]
[null,null,"Thermomètre simple",null,null,{"$f":"IF('Chauffage ventilation'!G95=\"oui\",\"oui\",\"non\")","v":"non"},{"$f":"IF(F13=\"oui\",1,0)","v":0},{"$f":"IF(F13=\"oui\",'Chauffage ventilation'!M95,\"\")","v":""},null,null,null,0,0,0,false,0,{"$f":"IF('Consommation et énergies'!$D$8=\"\",0,IF('Consommation et énergies'!$D$8='Consommation et énergies'!$AF$95,(Indicateurs!$D$51*'Recap visite'!M13)/1000,IF(OR('Consommation et énergies'!$D$8='Consommation et énergies'!$AF$102,'Consommation et énergies'!$D$8='Consommation et énergies'!$AF$103,'Consommation et énergies'!$D$8='Consommation et énergies'!$AF$104,'Consommation et énergies'!$D$8='Consommation et énergies'!$AF$105),\"Inconnu\",(VLOOKUP('Consommation et énergies'!$D$8,Indicateurs!$B$54:$D$60,3,FALSE)*'Recap visite'!M13)/1000)))","v":0},{"$f":"IF('Consommation et énergies'!$D$8=\"\",0,IF('Consommation et énergies'!$D$8='Consommation et énergies'!$AF$95,(Indicateurs!$D$51*I13)/1000,IF(OR('Consommation et énergies'!$D$8='Consommation et énergies'!$AF$102,'Consommation et énergies'!$D$8='Consommation et énergies'!$AF$103,'Consommation et énergies'!$D$8='Consommation et énergies'!$AF$104,'Consommation et énergies'!$D$8='Consommation et énergies'!$AF$105),\"Inconnu\",(VLOOKUP('Consommation et énergies'!$D$8,Indicateurs!$B$54:$D$60,3,FALSE)*I13)/1000)))","v":0}]
[null,null,"Prise programmable",null,null,{"$f":"IF('Chauffage ventilation'!G96=\"oui\",\"oui\",\"non\")","v":"non"},0,{"$f":"IF(F14=\"oui\",'Chauffage ventilation'!M96,\"\")","v":""},null,null,null,0,0,{"$f":"IF(AND(K14>0,G14>0),(K14/G14)*E14,0)","v":0},false,0,{"$f":"IF('Consommation et énergies'!$D$8=\"\",0,IF('Consommation et énergies'!$D$8='Consommation et énergies'!$AF$95,(Indicateurs!$D$51*'Recap visite'!M14)/1000,IF(OR('Consommation et énergies'!$D$8='Consommation et énergies'!$AF$102,'Consommation et énergies'!$D$8='Consommation et énergies'!$AF$103,'Consommation et énergies'!$D$8='Consommation et énergies'!$AF$104,'Consommation et énergies'!$D$8='Consommation et énergies'!$AF$105),\"Inconnu\",(VLOOKUP('Consommation et énergies'!$D$8,Indicateurs!$B$54:$D$60,3,FALSE)*'Recap visite'!M14)/1000)))","v":0},{"$f":"IF('Consommation et énergies'!$D$8=\"\",0,IF('Consommation et énergies'!$D$8='Consommation et énergies'!$AF$95,(Indicateurs!$D$51*I14)/1000,IF(OR('Consommation et énergies'!$D$8='Consommation et énergies'!$AF$102,'Consommation et énergies'!$D$8='Consommation et énergies'!$AF$103,'Consommation et énergies'!$D$8='Consommation et énergies'!$AF$104,'Consommation et énergies'!$D$8='Consommation et énergies'!$AF$105),\"Inconnu\",(VLOOKUP('Consommation et énergies'!$D$8,Indicateurs!$B$54:$D$60,3,FALSE)*I14)/1000)))","v":0}]
[null,null,null,null,null,"oui",null,null,null,null,null,null,null,null,null,null,{"$f":"IF(OR('Consommation et énergies'!$D$8='Consommation et énergies'!$AF$102,'Consommation et énergies'!$D$8='Consommation et énergies'!$AF$103,'Consommation et énergies'!$D$8='Consommation et énergies'!$AF$104,'Consommation et énergies'!$D$8='Consommation et énergies'!$AF$105),\"Inconnu\",SUM(Q7:Q14))","v":0},{"$f":"IF(OR('Consommation et énergies'!$D$8='Consommation et énergies'!$AF$102,'Consommation et énergies'!$D$8='Consommation et énergies'!$AF$103,'Consommation et énergies'!$D$8='Consommation et énergies'!$AF$104,'Consommation et énergies'!$D$8='Consommation et énergies'!$AF$105),\"Inconnu\",SUM(R7:R14))","v":0}]
[]
[null,null,"Eau chaude et eau froide"]
[null,null,"Equipements préconisés","Installé?","Nb si installation","Conseillé ?","Nombre","Investissement","Economie en kWh","Economie en m3","Economie en €"]
[null,null,"Variateur de dédit douche/stop douche",null,null,{"$f":"IF(Eau!F18=\"Non\",\"oui\",\"non\")","v":"non"},{"$f":"IF(F19=\"oui\",1,0)","v":0},{"$f":"IF(F19=\"oui\",'MAJ Données'!F149*G19,\"\")","v":""},{"$f":"Eau!N28","v":0},{"$f":"Eau!L28","v":0},{"$f":"Eau!M28","v":0},{"$f":"IF(J19>0,J19/G19*E19,0)","v":0},{"$f":"IF(AND(G19>0,I19>0),I19/G19*E19,0)","v":0},{"$f":"IF(AND(K19>0,G19>0),(K19/G19)*E19,0)","v":0},false,{"$f":"IF(AND(E19>0,H19<>\"\"),H19/G19*E19,0)","v":0},{"$f":"IF('Consommation et énergies'!$D$11=\"\",0,IF('Consommation et énergies'!$D$11='Consommation et énergies'!$AF$95,(Indicateurs!$D$52*'Recap visite'!M19)/1000,IF(OR('Consommation et énergies'!$D$11='Consommation et énergies'!$AF$102,'Consommation et énergies'!$D$11='Consommation et énergies'!$AF$103,'Consommation et énergies'!$D$11='Consommation et énergies'!$AF$104,'Consommation et énergies'!$D$11='Consommation et énergies'!$AF$105),\"Inconnu\",(VLOOKUP('Consommation et énergies'!$D$11,Indicateurs!$B$54:$D$60,3,FALSE)*'Recap visite'!M19)/1000)))","v":0},{"$f":"IF('Consommation et énergies'!$D$11=\"\",0,IF('Consommation et énergies'!$D$11='Consommation et énergies'!$AF$95,(Indicateurs!$D$52*I19)/1000,IF(OR('Consommation et énergies'!E21='Consommation et énergies'!$AF$102,'Consommation et énergies'!$D$8='Consommation et énergies'!$AF$103,'Consommation et énergies'!$D$8='Consommation et énergies'!$AF$104,'Consommation et énergies'!$D$8='Consommation et énergies'!$AF$105),\"Inconnu\",(VLOOKUP('Consommation et énergies'!$D$11,Indicateurs!$B$54:$D$60,3,FALSE)*I19)/1000)))","v":0}]
[null,null,"Mousseur(s) Lavabo et/ou Evier",null,null,{"$f":"IF(OR(Eau!I40>0,Eau!I41>0,Eau!I42>0,Eau!I43>0),\"oui\",\"non\")","v":"non"},{"$f":"COUNTIF(Eau!J40:J43,\">\"&0)","v":0},{"$f":"IF(F20=\"oui\",'MAJ Données'!F151*G20,\"\")","v":""},{"$f":"Eau!K44","v":0},{"$f":"Eau!I44","v":0},{"$f":"Eau!J44","v":0},0,0,0,false,0,{"$f":"IF('Consommation et énergies'!$D$11=\"\",0,IF('Consommation et énergies'!$D$11='Consommation et énergies'!$AF$95,(Indicateurs!$D$52*'Recap visite'!M20)/1000,IF(OR('Consommation et énergies'!$D$11='Consommation et énergies'!$AF$102,'Consommation et énergies'!$D$11='Consommation et énergies'!$AF$103,'Consommation et énergies'!$D$11='Consommation et énergies'!$AF$104,'Consommation et énergies'!$D$11='Consommation et énergies'!$AF$105),\"Inconnu\",(VLOOKUP('Consommation et énergies'!$D$11,Indicateurs!$B$54:$D$60,3,FALSE)*'Recap visite'!M20)/1000)))","v":0},{"$f":"IF('Consommation et énergies'!$D$11=\"\",0,IF('Consommation et énergies'!$D$11='Consommation et énergies'!$AF$95,(Indicateurs!$D$52*I20)/1000,IF(OR('Consommation et énergies'!E22='Consommation et énergies'!$AF$102,'Consommation et énergies'!$D$8='Consommation et énergies'!$AF$103,'Consommation et énergies'!$D$8='Consommation et énergies'!$AF$104,'Consommation et énergies'!$D$8='Consommation et énergies'!$AF$105),\"Inconnu\",(VLOOKUP('Consommation et énergies'!$D$11,Indicateurs!$B$54:$D$60,3,FALSE)*I20)/1000)))","v":0}]
[null,null,"système éco-WC",null,null,{"$f":"IF(OR(Eau!I50>0,Eau!I51>0),\"oui\",\"non\")","v":"non"},{"$f":"COUNTIF(Eau!J50:J51,\">\"&0)","v":0},{"$f":"IF(F21=\"oui\",'MAJ Données'!F153*G21,\"\")","v":""},null,{"$f":"Eau!I52","v":0},{"$f":"Eau!J52","v":0},0,0,0,false,0,{"$f":"IF('Consommation et énergies'!$D$11=\"\",0,IF('Consommation et énergies'!$D$11='Consommation et énergies'!$AF$95,(Indicateurs!$D$52*'Recap visite'!M21)/1000,IF(OR('Consommation et énergies'!$D$11='Consommation et énergies'!$AF$102,'Consommation et énergies'!$D$11='Consommation et énergies'!$AF$103,'Consommation et énergies'!$D$11='Consommation et énergies'!$AF$104,'Consommation et énergies'!$D$11='Consommation et énergies'!$AF$105),\"Inconnu\",(VLOOKUP('Consommation et énergies'!$D$11,Indicateurs!$B$54:$D$60,3,FALSE)*'Recap visite'!M21)/1000)))","v":0},{"$f":"IF('Consommation et énergies'!$D$11=\"\",0,IF('Consommation et énergies'!$D$11='Consommation et énergies'!$AF$95,(Indicateurs!$D$52*I21)/1000,IF(OR('Consommation et énergies'!E23='Consommation et énergies'!$AF$102,'Consommation et énergies'!$D$8='Consommation et énergies'!$AF$103,'Consommation et énergies'!$D$8='Consommation et énergies'!$AF$104,'Consommation et énergies'!$D$8='Consommation et énergies'!$AF$105),\"Inconnu\",(VLOOKUP('Consommation et énergies'!$D$11,Indicateurs!$B$54:$D$60,3,FALSE)*I21)/1000)))","v":0}]
[null,null,"douchette(s) économe(s)",null,null,{"$f":"IF(OR(Eau!I58>0,Eau!I59>0),\"oui\",\"non\")","v":"non"},{"$f":"COUNTIF(Eau!J58:J59,\">\"&0)","v":0},{"$f":"IF(F22=\"oui\",'MAJ Données'!F154*G22,\"\")","v":""},{"$f":"Eau!K60","v":0},{"$f":"Eau!I60","v":0},{"$f":"Eau!J60","v":0},0,0,0,false,0,{"$f":"IF('Consommation et énergies'!$D$11=\"\",0,IF('Consommation et énergies'!$D$11='Consommation et énergies'!$AF$95,(Indicateurs!$D$52*'Recap visite'!M22)/1000,IF(OR('Consommation et énergies'!$D$11='Consommation et énergies'!$AF$102,'Consommation et énergies'!$D$11='Consommation et énergies'!$AF$103,'Consommation et énergies'!$D$11='Consommation et énergies'!$AF$104,'Consommation et énergies'!$D$11='Consommation et énergies'!$AF$105),\"Inconnu\",(VLOOKUP('Consommation et énergies'!$D$11,Indicateurs!$B$54:$D$60,3,FALSE)*'Recap visite'!M22)/1000)))","v":0},{"$f":"IF('Consommation et énergies'!$D$11=\"\",0,IF('Consommation et énergies'!$D$11='Consommation et énergies'!$AF$95,(Indicateurs!$D$52*I22)/1000,IF(OR('Consommation et énergies'!E24='Consommation et énergies'!$AF$102,'Consommation et énergies'!$D$8='Consommation et énergies'!$AF$103,'Consommation et énergies'!$D$8='Consommation et énergies'!$AF$104,'Consommation et énergies'!$D$8='Consommation et énergies'!$AF$105),\"Inconnu\",(VLOOKUP('Consommation et énergies'!$D$11,Indicateurs!$B$54:$D$60,3,FALSE)*I22)/1000)))","v":0}]
[null,null,"joints de robinetterie",null,null,{"$f":"IF(OR(Eau!I66>0,Eau!I67>0,Eau!I68>0),\"oui\",\"non\")","v":"non"},{"$f":"COUNTIF(Eau!J66:J68,\">\"&0)","v":0},{"$f":"IF(F23=\"oui\",'MAJ Données'!F155*G23,\"\")","v":""},{"$f":"Eau!K69","v":0},{"$f":"Eau!I69","v":0},{"$f":"Eau!J69","v":0},0,0,{"$f":"IF(AND(K23>0,G23>0),(K23/G23)*E23,0)","v":0},false,0,{"$f":"IF('Consommation et énergies'!$D$11=\"\",0,IF('Consommation et énergies'!$D$11='Consommation et énergies'!$AF$95,(Indicateurs!$D$52*'Recap visite'!M23)/1000,IF(OR('Consommation et énergies'!$D$11='Consommation et énergies'!$AF$102,'Consommation et énergies'!$D$11='Consommation et énergies'!$AF$103,'Consommation et énergies'!$D$11='Consommation et énergies'!$AF$104,'Consommation et énergies'!$D$11='Consommation et énergies'!$AF$105),\"Inconnu\",(VLOOKUP('Consommation et énergies'!$D$11,Indicateurs!$B$54:$D$60,3,FALSE)*'Recap visite'!M23)/1000)))","v":0},{"$f":"IF('Consommation et énergies'!$D$11=\"\",0,IF('Consommation et énergies'!$D$11='Consommation et énergies'!$AF$95,(Indicateurs!$D$52*I23)/1000,IF(OR('Consommation et énergies'!E25='Consommation et énergies'!$AF$102,'Consommation et énergies'!$D$8='Consommation et énergies'!$AF$103,'Consommation et énergies'!$D$8='Consommation et énergies'!$AF$104,'Consommation et énergies'!$D$8='Consommation et énergies'!$AF$105),\"Inconnu\",(VLOOKUP('Consommation et énergies'!$D$11,Indicateurs!$B$54:$D$60,3,FALSE)*I23)/1000)))","v":0}]
[null,null,null,null,null,"oui",null,null,null,null,null,null,null,null,null,null,{"$f":"IF(OR('Consommation et énergies'!$D$11='Consommation et énergies'!$AF$102,'Consommation et énergies'!$D$11='Consommation et énergies'!$AF$103,'Consommation et énergies'!$D$11='Consommation et énergies'!$AF$104,'Consommation et énergies'!$D$11='Consommation et énergies'!$AF$105),\"Inconnu\",SUM(Q19:Q23))","v":0},{"$f":"IF(OR('Consommation et énergies'!$D$11='Consommation et énergies'!$AF$102,'Consommation et énergies'!$D$11='Consommation et énergies'!$AF$103,'Consommation et énergies'!$D$11='Consommation et énergies'!$AF$104,'Consommation et énergies'!$D$11='Consommation et énergies'!$AF$105),\"Inconnu\",SUM(R19:R23))","v":0},null,null,null,null,null,null,null,null,null,null,14]
[]
[null,null,"Appareils et équipements électriques"]
[null,null,"Equipements préconisés","Installé?","Nb si installation","Conseillé ?","Nombre","Investissement","Economie en kWh","Economie en m3","Economie en €"]
[null,null,"Ampoule(s) LBC",null,null,{"$f":"IF(SUM(Eclairage!AC39:AC42)>0,\"oui\",\"non\")","v":"non"},{"$f":"SUM(Eclairage!AC39:AC42)","v":0},{"$f":"IF(F28=\"oui\",SUM(Eclairage!AD39:AD42),\"\")","v":""},{"$f":"SUMIF(Eclairage!L17:P28,Eclairage!AB39,Eclairage!O17:O28)+SUMIF(Eclairage!L17:P28,Eclairage!AB40,Eclairage!O17:O28)+SUMIF(Eclairage!L17:P28,Eclairage!AB41,Eclairage!O17:O28)+SUMIF(Eclairage!L17:P28,Eclairage!AB42,Eclairage!O17:O28)","v":0},null,{"$f":"I28*'Consommation et énergies'!$Z$28","v":0},{"$f":"IF(J28>0,J28/G28*E28,0)","v":0},{"$f":"IF(AND(G28>0,I28>0),I28/G28*E28,0)","v":0},{"$f":"IF(AND(K28>0,G28>0),(K28/G28)*E28,0)","v":0},false,{"$f":"IF(AND(E28>0,H28<>\"\"),H28/G28*E28,0)","v":0},{"$f":"(M28*Indicateurs!$D$53)/1000","v":0},{"$f":"(I28*Indicateurs!$D$53)/1000","v":0}]
[null,null,"Ampoule(s) LED",null,null,{"$f":"IF(SUM(Eclairage!AC43:AC45)>0,\"oui\",\"non\")","v":"non"},{"$f":"SUM(Eclairage!AC43:AC45)","v":0},{"$f":"IF(F29=\"oui\",SUM(Eclairage!AD43:AD45),\"\")","v":""},{"$f":"SUMIF(Eclairage!L17:P28,Eclairage!AB43,Eclairage!O17:O28)+SUMIF(Eclairage!L17:P28,Eclairage!AB44,Eclairage!O17:O28)+SUMIF(Eclairage!L17:P28,Eclairage!AB45,Eclairage!O17:O28)","v":0},null,{"$f":"I29*'Consommation et énergies'!$Z$28","v":0},0,0,0,false,0,{"$f":"(M29*Indicateurs!$D$53)/1000","v":0},{"$f":"(I29*Indicateurs!$D$53)/1000","v":0}]
[null,null,"Remplacement appareil de froid",null,null,{"$f":"IF(OR(Froid!F13=\"oui, je souhaite le remplacer par un appareil performant\",Froid!F38=\"oui, je souhaite le remplacer par un appareil performant\",Froid!F63=\"oui, je souhaite le remplacer par un appareil performant\"),\"oui\",\"non\")","v":"non"},{"$f":"COUNTIF(Froid!C8:P79,Froid!X91)","v":0},"300 à 600€",{"$f":"SUM(Froid!AB102,Froid!AB108,Froid!AB113)","v":0},null,{"$f":"I30*'Consommation et énergies'!$Z$28","v":0},0,0,0,false,null,{"$f":"(M30*Indicateurs!$D$53)/1000","v":0},{"$f":"(I30*Indicateurs!$D$53)/1000","v":0}]
[null,null,"Remplacement appareil de lavage/séchage",null,null,{"$f":"IF(OR('Lavage  sechage'!E61=\"oui, je souhaite le remplacer par un appareil performant\",'Lavage  sechage'!E39=\"oui, je souhaite le remplacer par un appareil performant\",'Lavage  sechage'!E13=\"oui, je souhaite le remplacer par un appareil performant\"),\"oui\",\"non\")","v":"non"},{"$f":"COUNTIF('Lavage  sechage'!B6:M78,'Lavage  sechage'!T91)","v":0},"200 à 400 €",{"$f":"IF('Lavage  sechage'!$E$13='Lavage  sechage'!$T$91,'Lavage  sechage'!R111,0)+IF('Lavage  sechage'!$E$39='Lavage  sechage'!$T$91,'Lavage  sechage'!U103,0)+IF('Lavage  sechage'!$E$61='Lavage  sechage'!$T$91,'Lavage  sechage'!R120,0)","v":0},{"$f":"IF('Lavage  sechage'!$E$13='Lavage  sechage'!$T$91,'Lavage  sechage'!S111,0)+IF('Lavage  sechage'!$E$61='Lavage  sechage'!$T$91,'Lavage  sechage'!S120,0)","v":0},{"$f":"(I31*'Consommation et énergies'!$Z$28)+(J31*'Consommation et énergies'!$Y$59*60%)","v":0},{"$f":"IF(J31>0,J31/G31*E31,0)","v":0},0,0,false,null,{"$f":"(M31*Indicateurs!$D$53)/1000","v":0},{"$f":"(I31*Indicateurs!$D$53)/1000","v":0}]
[null,null,"Thermomètre réfrigérateur",null,null,{"$f":"IF(OR(Froid!N15=Froid!AF91,Froid!N40=Froid!AH91,Froid!N65=Froid!AF91),\"oui\",\"non\")","v":"non"},{"$f":"COUNTIF(Froid!C8:P79,Froid!AF91)+COUNTIF(Froid!C8:P79,Froid!AH91)","v":0},{"$f":"IF(F32=\"oui\",'MAJ Données'!F170*G32,\"\")","v":""},null,null,null,{"$f":"IF(J32>0,J32/G32*E32,0)","v":0},0,{"$f":"IF(AND(K32>0,G32>0),(K32/G32)*E32,0)","v":0},false,{"$f":"IF(AND(E32>0,H32<>\"\"),H32/G32*E32,0)","v":0},{"$f":"(M32*Indicateurs!$D$53)/1000","v":0},{"$f":"(I32*Indicateurs!$D$53)/1000","v":0}]
[null,null,"Multiprise coupe veille",null,null,{"$f":"IF(Veilles!G28>0,\"oui\",\"non\")","v":"non"},{"$f":"Veilles!G28","v":0},{"$f":"IF(F33=\"oui\",'MAJ Données'!F171*G33,\"\")","v":""},{"$f":"IF(Veilles!G27>0,Veilles!F25*(Veilles!G28/(Veilles!G28+Veilles!G27)),Veilles!F25)","v":0},null,{"$f":"IF(Veilles!G27>0,(Veilles!G25*Veilles!G28)/(Veilles!G28+Veilles!G27),Veilles!G25)","v":0},{"$f":"IF(J33>0,J33/G33*E33,0)","v":0},0,{"$f":"IF(AND(K33>0,G33>0),(K33/G33)*E33,0)","v":0},false,{"$f":"IF(AND(E33>0,H33<>\"\"),H33/G33*E33,0)","v":0},{"$f":"(M33*Indicateurs!$D$53)/1000","v":0},{"$f":"(I33*Indicateurs!$D$53)/1000","v":0}]
[null,null,"Multiprise à interrupteur",null,null,{"$f":"IF(Veilles!G27>0,\"oui\",\"non\")","v":"non"},{"$f":"Veilles!G27","v":0},{"$f":"IF(F34=\"oui\",'MAJ Données'!F172*G34,\"\")","v":""},{"$f":"IF(Veilles!G28>0,Veilles!F25*(Veilles!G27/(Veilles!G28+Veilles!G27)),Veilles!F25)","v":0},null,{"$f":"IF(Veilles!G28>0,(Veilles!G25*Veilles!G27)/(Veilles!G28+Veilles!G27),Veilles!G25)","v":0},0,0,0,false,0,{"$f":"(M34*Indicateurs!$D$53)/1000","v":0},{"$f":"(I34*Indicateurs!$D$53)/1000","v":0}]
[null,null,null,null,null,"oui",null,null,null,null,null,null,null,null,null,null,{"$f":"SUM(Q28:Q34)","v":0},{"$f":"SUM(R28:R34)","v":0}]
[]
[null,null,null,null,null,"TOTAL équipements",null,{"$f":"(SUM(H7:H14,H19:H23,H28:H29,H32:H34))-P37","v":0},{"$f":"SUM(I7:I14,I19:I23,I28:I34)","v":0},{"$f":"SUM(J7:J14,J19:J23,J28:J29,J31)","v":0},{"$f":"SUM(K7:K14,K19:K23,K28:K29,K30:K34)","v":0},{"$f":"SUM(L7:L14,L19:L23,L28:L29,L30:L34)","v":0},{"$f":"SUM(M7:M14,M19:M23,M28:M29,M30:M34)","v":0},{"$f":"SUM(N7:N14,N19:N23,N28:N29,N30:N34)","v":0},{"$f":"SUM(O7:O14,O19:O23,O28:O29,O30:O34)","v":0},{"$f":"SUM(P7:P14,P19:P23,P28:P29,P32:P34)","v":0},{"$f":"SUM(Q7:Q14,Q19:Q23,Q28:Q29,Q32:Q34)","v":0},0]
[]
[null,null,"Les écogestes préconisés"]
[null,null,"Chauffage, ventilation et humidité"]
[null,null,"Ecogestes préconisés","Installé?","Nb si installation","Conseillé ?","Nombre","Investissement","Economie en kWh","Economie en m3","Economie en €"]
[null,null,"Abaisser la température intérieure de 1°C",null,null,{"$f":"IF('Chauffage ventilation'!L21='Recap visite'!C42,\"oui\",\"non\")","v":"non"},null,null,{"$f":"IF('Chauffage ventilation'!$L$21='Recap visite'!C42,'Chauffage ventilation'!N21,0)","v":0},null,{"$f":"I42*'Consommation et énergies'!$AF$159","v":0},null,null,null,null,null,null,{"$f":"IF('Consommation et énergies'!$D$8=\"\",0,IF('Consommation et énergies'!$D$8='Consommation et énergies'!$AF$95,(Indicateurs!$D$51*I42)/1000,IF(OR('Consommation et énergies'!$D$8='Consommation et énergies'!$AF$102,'Consommation et énergies'!$D$8='Consommation et énergies'!$AF$103,'Consommation et énergies'!$D$8='Consommation et énergies'!$AF$104,'Consommation et énergies'!$D$8='Consommation et énergies'!$AF$105),\"Inconnu\",(VLOOKUP('Consommation et énergies'!$D$8,Indicateurs!$B$54:$D$60,3,FALSE)*I42)/1000)))","v":0}]
[null,null,"Abaisser la température à 14°C pendant les absences",null,null,{"$f":"IF('Chauffage ventilation'!L23='Recap visite'!C43,\"oui\",\"non\")","v":"non"},null,null,{"$f":"'Chauffage ventilation'!N23","v":0},null,{"$f":"I43*'Consommation et énergies'!$AF$159","v":0},null,null,null,null,null,null,{"$f":"IF('Consommation et énergies'!$D$8=\"\",0,IF('Consommation et énergies'!$D$8='Consommation et énergies'!$AF$95,(Indicateurs!$D$51*I43)/1000,IF(OR('Consommation et énergies'!$D$8='Consommation et énergies'!$AF$102,'Consommation et énergies'!$D$8='Consommation et énergies'!$AF$103,'Consommation et énergies'!$D$8='Consommation et énergies'!$AF$104,'Consommation et énergies'!$D$8='Consommation et énergies'!$AF$105),\"Inconnu\",(VLOOKUP('Consommation et énergies'!$D$8,Indicateurs!$B$54:$D$60,3,FALSE)*I43)/1000)))","v":0}]
[null,null,"Penser à aérer 5 min tous les jours pour renouveler l'air et évacuer l'excès d'humidité",null,null,{"$f":"IF('Chauffage ventilation'!L25='Recap visite'!C44,\"oui\",\"non\")","v":"non"},null,null,null,null,null,null,null,null,null,null,null,{"$f":"IF('Consommation et énergies'!$D$8=\"\",0,IF('Consommation et énergies'!$D$8='Consommation et énergies'!$AF$95,(Indicateurs!$D$51*I44)/1000,IF(OR('Consommation et énergies'!$D$8='Consommation et énergies'!$AF$102,'Consommation et énergies'!$D$8='Consommation et énergies'!$AF$103,'Consommation et énergies'!$D$8='Consommation et énergies'!$AF$104,'Consommation et énergies'!$D$8='Consommation et énergies'!$AF$105),\"Inconnu\",(VLOOKUP('Consommation et énergies'!$D$8,Indicateurs!$B$54:$D$60,3,FALSE)*I44)/1000)))","v":0}]
[null,null,"Dégager les radiateurs pour permettre à la chaleur de se diffuser",null,null,{"$f":"IF('Chauffage ventilation'!L27='Recap visite'!C45,\"oui\",\"non\")","v":"non"},null,null,null,null,null,null,null,null,null,null,null,{"$f":"IF('Consommation et énergies'!$D$8=\"\",0,IF('Consommation et énergies'!$D$8='Consommation et énergies'!$AF$95,(Indicateurs!$D$51*I45)/1000,IF(OR('Consommation et énergies'!$D$8='Consommation et énergies'!$AF$102,'Consommation et énergies'!$D$8='Consommation et énergies'!$AF$103,'Consommation et énergies'!$D$8='Consommation et énergies'!$AF$104,'Consommation et énergies'!$D$8='Consommation et énergies'!$AF$105),\"Inconnu\",(VLOOKUP('Consommation et énergies'!$D$8,Indicateurs!$B$54:$D$60,3,FALSE)*I45)/1000)))","v":0}]
[null,null,"Dégager les grilles d'aération pour permettre le renouvellement d'air",null,null,{"$f":"IF('Chauffage ventilation'!L28='Recap visite'!C46,\"oui\",\"non\")","v":"non"},null,null,null,null,null,null,null,null,null,null,null,{"$f":"IF('Consommation et énergies'!$D$8=\"\",0,IF('Consommation et énergies'!$D$8='Consommation et énergies'!$AF$95,(Indicateurs!$D$51*I46)/1000,IF(OR('Consommation et énergies'!$D$8='Consommation et énergies'!$AF$102,'Consommation et énergies'!$D$8='Consommation et énergies'!$AF$103,'Consommation et énergies'!$D$8='Consommation et énergies'!$AF$104,'Consommation et énergies'!$D$8='Consommation et énergies'!$AF$105),\"Inconnu\",(VLOOKUP('Consommation et énergies'!$D$8,Indicateurs!$B$54:$D$60,3,FALSE)*I46)/1000)))","v":0}]
[null,null,null,null,null,"oui",null,null,null,null,null,null,null,null,null,null,null,{"$f":"IF(OR('Consommation et énergies'!$D$8='Consommation et énergies'!$AF$102,'Consommation et énergies'!$D$8='Consommation et énergies'!$AF$103,'Consommation et énergies'!$D$8='Consommation et énergies'!$AF$104,'Consommation et énergies'!$D$8='Consommation et énergies'!$AF$105),\"Inconnu\",SUM(R42:R46))","v":0}]
[]
[null,null,"Eau chaude et eau froide"]
[null,null,"Ecogestes préconisés","Installé?","Nb si installation","Conseillé ?","Nombre","Investissement","Economie en kWh","Economie en m3","Economie en €"]
[null,null,"Couper l'eau lors du brossage de dents et/ou du rasage",null,null,{"$f":"IF(OR(Eau!J24<>\"\",Eau!J26<>\"\"),\"oui\",\"non\")","v":"non"},null,null,{"$f":"Eau!N26","v":0},{"$f":"Eau!L24+Eau!L26","v":0},{"$f":"Eau!M24+Eau!M26","v":0},null,null,null,null,null,null,{"$f":"IF('Consommation et énergies'!$D$11=\"\",0,IF('Consommation et énergies'!$D$11='Consommation et énergies'!$AF$95,(Indicateurs!$D$52*I51)/1000,IF(OR('Consommation et énergies'!E54='Consommation et énergies'!$AF$102,'Consommation et énergies'!$D$8='Consommation et énergies'!$AF$103,'Consommation et énergies'!$D$8='Consommation et énergies'!$AF$104,'Consommation et énergies'!$D$8='Consommation et énergies'!$AF$105),\"Inconnu\",(VLOOKUP('Consommation et énergies'!$D$11,Indicateurs!$B$54:$D$60,3,FALSE)*I51)/1000)))","v":0}]
[null,null,"Couper l'eau lors de la vaisselle (ou utiliser des bacs)",null,null,{"$f":"IF(Eau!J25='Recap visite'!C52,\"oui\",\"non\")","v":"non"},null,null,{"$f":"Eau!N25","v":0},{"$f":"Eau!L25","v":0},{"$f":"Eau!M25","v":0},null,null,null,null,null,null,{"$f":"IF('Consommation et énergies'!$D$11=\"\",0,IF('Consommation et énergies'!$D$11='Consommation et énergies'!$AF$95,(Indicateurs!$D$52*I52)/1000,IF(OR('Consommation et énergies'!E55='Consommation et énergies'!$AF$102,'Consommation et énergies'!$D$8='Consommation et énergies'!$AF$103,'Consommation et énergies'!$D$8='Consommation et énergies'!$AF$104,'Consommation et énergies'!$D$8='Consommation et énergies'!$AF$105),\"Inconnu\",(VLOOKUP('Consommation et énergies'!$D$11,Indicateurs!$B$54:$D$60,3,FALSE)*I52)/1000)))","v":0}]
[null,null,"Réduire le temps passé sous la douche à 5 minutes maximum",null,null,{"$f":"IF(Eau!J27='Recap visite'!C53,\"oui\",\"non\")","v":"non"},null,null,{"$f":"Eau!N27","v":0},{"$f":"Eau!L27","v":0},{"$f":"Eau!M27","v":0},null,null,null,null,null,null,{"$f":"IF('Consommation et énergies'!$D$11=\"\",0,IF('Consommation et énergies'!$D$11='Consommation et énergies'!$AF$95,(Indicateurs!$D$52*I53)/1000,IF(OR('Consommation et énergies'!E57='Consommation et énergies'!$AF$102,'Consommation et énergies'!$D$8='Consommation et énergies'!$AF$103,'Consommation et énergies'!$D$8='Consommation et énergies'!$AF$104,'Consommation et énergies'!$D$8='Consommation et énergies'!$AF$105),\"Inconnu\",(VLOOKUP('Consommation et énergies'!$D$11,Indicateurs!$B$54:$D$60,3,FALSE)*I53)/1000)))","v":0}]
[null,null,"Couper l'eau pendant la douche lorsqu'elle coule inutilement",null,null,{"$f":"IF(Eau!J28='Recap visite'!C54,\"oui\",\"non\")","v":"non"},null,null,{"$f":"IF(F19=\"oui\",0,Eau!N28)","v":0},{"$f":"IF($F$19=\"oui\",0,Eau!L28)","v":0},{"$f":"IF($F$19=\"oui\",0,Eau!M28)","v":0},null,null,null,null,null,null,{"$f":"IF('Consommation et énergies'!$D$11=\"\",0,IF('Consommation et énergies'!$D$11='Consommation et énergies'!$AF$95,(Indicateurs!$D$52*I54)/1000,IF(OR('Consommation et énergies'!E58='Consommation et énergies'!$AF$102,'Consommation et énergies'!$D$8='Consommation et énergies'!$AF$103,'Consommation et énergies'!$D$8='Consommation et énergies'!$AF$104,'Consommation et énergies'!$D$8='Consommation et énergies'!$AF$105),\"Inconnu\",(VLOOKUP('Consommation et énergies'!$D$11,Indicateurs!$B$54:$D$60,3,FALSE)*I54)/1000)))","v":0}]
[null,null,"Remplacer les bains par des douches",null,null,{"$f":"IF(Eau!J29='Recap visite'!C55,\"oui\",\"non\")","v":"non"},null,null,{"$f":"Eau!N29","v":0},{"$f":"Eau!L29","v":0},{"$f":"Eau!M29","v":0},null,null,null,null,null,null,{"$f":"IF('Consommation et énergies'!$D$11=\"\",0,IF('Consommation et énergies'!$D$11='Consommation et énergies'!$AF$95,(Indicateurs!$D$52*I55)/1000,IF(OR('Consommation et énergies'!E59='Consommation et énergies'!$AF$102,'Consommation et énergies'!$D$8='Consommation et énergies'!$AF$103,'Consommation et énergies'!$D$8='Consommation et énergies'!$AF$104,'Consommation et énergies'!$D$8='Consommation et énergies'!$AF$105),\"Inconnu\",(VLOOKUP('Consommation et énergies'!$D$11,Indicateurs!$B$54:$D$60,3,FALSE)*I55)/1000)))","v":0}]
[null,null,null,null,null,"oui",null,null,null,null,null,null,null,null,null,null,null,{"$f":"IF(OR('Consommation et énergies'!$D$11='Consommation et énergies'!$AF$102,'Consommation et énergies'!$D$11='Consommation et énergies'!$AF$103,'Consommation et énergies'!$D$11='Consommation et énergies'!$AF$104,'Consommation et énergies'!$D$11='Consommation et énergies'!$AF$105),\"Inconnu\",SUM(R51:R55))","v":0}]
[]
[null,null,"Appareils et équipements électrique"]
[null,null,"Ecogestes préconisés","Installé?","Nb si installation","Conseillé ?","Nombre","Investissement","Economie en kWh","Economie en m3","Economie en €"]
[null,null,"Eloigner les appareils de froid de toute source de chaleur",null,null,{"$f":"IF(OR(Froid!N14<>\"\",Froid!N39<>\"\",Froid!N64<>\"\"),\"oui\",\"non\")","v":"non"},null,null,{"$f":"Froid!O64+Froid!O39+Froid!O14","v":0},null,{"$f":"I60*'Consommation et énergies'!$Z$28","v":0},null,null,null,null,null,null,{"$f":"(I60*Indicateurs!$D$53)/1000","v":0}]
[null,null,"Adapter la température du réfrigérateur (5°C) et/ou du congélateur (-18°C)",null,null,{"$f":"IF(OR(Froid!N15<>\"\",Froid!N65<>\"\",Froid!N40<>\"\"),\"oui\",\"non\")","v":"non"},null,null,{"$f":"Froid!O15+Froid!O65+Froid!O40","v":0},null,{"$f":"I61*'Consommation et énergies'!$Z$28","v":0},null,null,null,null,null,null,{"$f":"(I61*Indicateurs!$D$53)/1000","v":0}]
[null,null,"Penser à dégivrer régulièrement et à maintenir l'étanchéité",null,null,{"$f":"IF(OR(Froid!N16<>\"\",Froid!N41<>\"\",Froid!N66<>\"\"),\"oui\",\"non\")","v":"non"},null,null,{"$f":"Froid!O16+Froid!O41+Froid!O66","v":0},null,{"$f":"I62*'Consommation et énergies'!$Z$28","v":0},null,null,null,null,null,null,{"$f":"(I62*Indicateurs!$D$53)/1000","v":0}]
[null,null,"Remplir à son maximum le lave-linge et/ou lave-vaisselle à chaque utilisation",null,null,{"$f":"IF(OR('Lavage  sechage'!J14<>\"\",'Lavage  sechage'!J62<>\"\"),\"oui\",\"non\")","v":"non"},null,null,{"$f":"'Lavage  sechage'!K14+'Lavage  sechage'!K62","v":0},{"$f":"'Lavage  sechage'!L14+'Lavage  sechage'!L62","v":0},{"$f":"(I63*'Consommation et énergies'!$Z$28)+(J63*'Consommation et énergies'!$Y$59)","v":0},null,null,null,null,null,null,{"$f":"(I63*Indicateurs!$D$53)/1000","v":0}]
[null,null,"Utiliser la touche éco ou baisser la température du lave-linge et/ou lave-vaisselle",null,null,{"$f":"IF(OR('Lavage  sechage'!J15<>\"\",'Lavage  sechage'!J63<>\"\"),\"oui\",\"non\")","v":"non"},null,null,{"$f":"'Lavage  sechage'!K15+'Lavage  sechage'!K63","v":0},null,{"$f":"I64*'Consommation et énergies'!$Z$28","v":0},null,null,null,null,null,null,{"$f":"(I64*Indicateurs!$D$53)/1000","v":0}]
[null,null,"Chosir la vitesse maximum d'éssorage du lave-linge",null,null,{"$f":"IF('Lavage  sechage'!J41<>\"\",\"oui\",\"non\")","v":"non"},null,null,{"$f":"'Lavage  sechage'!K41","v":0},null,{"$f":"I65*'Consommation et énergies'!$Z$28","v":0},null,null,null,null,null,null,{"$f":"(I65*Indicateurs!$D$53)/1000","v":0}]
[null,null,"Favoriser le séchage du linge à l'air libre",null,null,{"$f":"IF('Lavage  sechage'!J40<>\"\",\"oui\",\"non\")","v":"non"},null,null,{"$f":"'Lavage  sechage'!K40","v":0},null,{"$f":"I66*'Consommation et énergies'!$Z$28","v":0},null,null,null,null,null,null,{"$f":"(I66*Indicateurs!$D$53)/1000","v":0}]
[null,null,"Eteindre systématiquement les lumières inutiles et adapter le nombre d'éclairage",null,null,{"$f":"IF(OR(Eclairage!K29>0,Eclairage!J12=\"Oui, je peux\"),\"oui\",\"non\")","v":"non"},null,null,{"$f":"SUM(Eclairage!K29)","v":0},null,{"$f":"I67*'Consommation et énergies'!$Z$28","v":0},null,null,null,null,null,null,{"$f":"(I67*Indicateurs!$D$53)/1000","v":0}]
[null,null,"Penser à éteindre les veilles des appareils (en utilisant par exemple une multiprise coupe-veille)",null,null,{"$f":"IF(Veilles!D10=\"oui\",\"oui\",\"non\")","v":"non"},null,null,{"$f":"IF(OR(F33=\"oui\",F34=\"oui\"),0,SUM(I33:I34))","v":0},null,{"$f":"I68*'Consommation et énergies'!$Z$28","v":0},null,null,null,null,null,null,{"$f":"(I68*Indicateurs!$D$53)/1000","v":0}]
[null,null,null,null,null,"oui",null,null,null,null,null,null,null,null,null,null,null,{"$f":"SUM(R60:R68)","v":0}]
[null,null,null,null,null,"TOTAL Ecogestes",null,null,{"$f":"SUM(I42:I43,I52:I55,I60:I68)","v":0},{"$f":"SUM(J42:J46,J51:J55,J60:J68)","v":0},{"$f":"SUM(K42:K46,K51:K55,K60:K68)","v":0},null,null,null,null,null,null,{"$f":"SUM(R69,R56,R47)","v":0}]
[]
[null,null,null,null,null,"TOTAL Ecogestes + équipements",null,null,{"$f":"I70+I37","v":0},{"$f":"J70+J37","v":0},{"$f":"K70+K37","v":0}]
[]
[]
[null,null,"Points de vigilances"]
[null,null,"Type de commentaire","Commentaires"]
[null,null,"Consommation énergies",{"$f":"IF(Indicateurs!H68=\"Importante\",\"- La consommation d'énergie paraît élevée par rapport aux besoins\",\"-\")","v":"-"}]
[null,null,"Humidité",{"$f":"IF('Données bâti'!G48>65,\"- Le taux d'humidité mesuré est important. Un excès d'humidité dégrade le confort et la qualité de l'air, et entraîne des risques de moisissures.\",\"-\")","v":"-"}]
[null,null,"Ventilation",{"$f":"IF('Chauffage ventilation'!F28=\"non\",\"- Il est important que les bouches d'aération soient dégagées pour permettre le renouvellement d'air et éviter l'excès d'humidité\",\"-\")","v":"-"}]
[null,null,"Chauffage appoints",{"$f":"IF(OR('Consommation et énergies'!N14='Consommation et énergies'!AN96,'Consommation et énergies'!N14='Consommation et énergies'!AN97,'Consommation et énergies'!N14='Consommation et énergies'!AN99),\"- Les chauffages d'appoint à combustion doivent être utilisés dans des pièces ventilées. Une mauvaise utilisation ou un appareil defectueux peut entraîner des risques d'intoxication au monoxyde de carbone\",\"-\")","v":"-"}]
[null,null,"Salubrité",{"$f":"IF(AND('Données bâti'!G59=\"oui\",'Données bâti'!G60=\"non\"),\"- Suspicion d'insalubrité. Une procédure auprès du service hygiène serait souhaitable\",\"-\")","v":"-"}]
[null,null,"Impayé electrique",{"$f":"IF('Consommation et énergies'!N26=\"oui\",\"- Impayé d'électricité. Une solution doit être trouvée avec le fournisseur d'énergie, éventuellement en lien avec l'assistante sociale\",\"-\")","v":"-"}]
[null,null,"Impayé gaz",{"$f":"IF(AND('Consommation et énergies'!N43=\"oui\",'Consommation et énergies'!O45=\"Gaz naturel\"),\"- Impayé de gaz. Une solution doit être trouvée avec le fournisseur d'énergie, éventuellement en lien avec l'assistante sociale\",\"-\")","v":"-"}]
[null,null,"Tarifs sociaux",{"$f":"IF(OR('Données ménage'!U100=\"Eligible au TPN et n'en bénéficie pas\",'Données ménage'!U100=\"Eligible au TSS et TPN et n'en bénéficie pas\",'Données ménage'!U100=\"Eligible au TSS et n'en bénéficie pas\"),\"- Demande de TPN et/ou TSS à effectuer\",\"-\")","v":"-"}]
[null,null,"Abonnement électicité",{"$f":"IF('Consommation et énergies'!Z31=\"non\",\"- L'abonnement électrique paraît mal dimensionné par rapport aux besoins de la famille.\",\"-\")","v":"-"}]
[null,null,"Abonnement gaz",{"$f":"IF(AND('Consommation et énergies'!O45=\"Gaz naturel\",'Consommation et énergies'!Z48=\"non\"),\"- L'abonnement de gaz paraît mal dimensionné par rapport aux besoins de la famille. Pour davantages d'informations, contacter l'Espace Info-Energie le plus proche de chez vous\",\"-\")","v":"-"}]
[null,null,"Ballon eau chaude",{"$f":"IF(AND(Eau!L11=\"Electricité\",Eau!L12=\"non\"), \"- Le ballon d'eau chaude fonctionne en permanence. La pose d'un commutateur jour/nuit permettrait d'optimiser la consommation d'eau chaude\",\"-\")","v":"-"}]
[null,null,"Optimisation HC",{"$f":"IF(AND(Eau!L12=Eau!AB87,Eau!L11=\"Electricité\"),\"- Activer la marche auto du ballon d'eau chaude permettrait de profiter davantage du tarif Heures Creuses et donc de réaliser des économies\",\"-\")","v":"-"}]
[]
[]
[]
[]
[]
[]
[null,null,null,null,null,null,null,null,null,null,null,null,null,null,null,null,null,null,null,null,null,null,null,null,null,null,null,null,"Ne pas effacer"]
[null,null,null,null,null,null,null,null,null,null,null,null,null,null,null,null,null,null,null,null,null,null,null,null,null,null,null,null,1]
[null,null,null,null,null,null,null,null,null,null,null,null,null,null,null,null,null,null,null,null,null,null,null,null,null,null,null,null,2]
[null,null,null,null,null,null,null,null,null,null,null,null,null,null,null,null,null,null,null,null,null,null,null,null,null,null,null,null,3]
[null,null,null,null,null,null,null,null,null,null,null,null,null,null,null,null,null,null,null,null,null,null,null,null,null,null,null,null,4]
[null,null,null,null,null,null,null,null,null,null,null,null,null,null,null,null,null,null,null,null,null,null,null,null,null,null,null,null,5]
[null,null,null,null,null,null,null,null,null,null,null,null,null,null,null,null,null,null,null,null,null,null,null,null,null,null,null,null,6]
[null,null,null,null,null,null,null,null,null,null,null,null,null,null,null,null,null,null,null,null,null,null,null,null,null,null,null,null,7]
[null,null,null,null,null,null,null,null,null,null,null,null,null,null,null,null,null,null,null,null,null,null,null,null,null,null,null,null,8]

{"sheet":"Rapport visite","index":11,"n_rows":118,"n_cols":11,"rows_kept":118,"cut":false,"hidden":false,"merged":[[94,2,94,5],[94,9,94,12],[67,2,67,12],[114,10,115,12],[75,2,75,12],[83,2,83,12],[104,9,104,12],[104,2,104,5],[111,1,111,6],[111,9,111,13],[63,2,64,12],[20,2,20,5],[52,9,55,12],[31,2,32,5],[55,2,56,5],[52,2,52,5],[37,2,37,5],[9,2,9,5],[17,9,17,12],[27,9,27,12],[14,2,14,5],[61,2,62,12]]}
[]
[null,null,null,null,null,null,null,null,null,"RAPPORT DE VISITE"]
[]
[null,{"$f":"\"Nom de l'occupant: \"&Indicateurs!B2&\" \"&Indicateurs!C2","v":"Nom de l'occupant: - "},null,null,null,null,null,null,{"$f":"\"Date d'émission du rapport: \"&TEXT(Indicateurs!O2,\"jj/mm/aaaa\")","v":"Date d'émission du rapport: 21/07/2023"}]
[null,{"$f":"\"Adresse de l'occupant: \"&Indicateurs!D2","v":"Adresse de l'occupant: -"},null,null,null,null,null,null,{"$f":"\"Date de la visite: \"&TEXT(Indicateurs!R2,\"jj/mm/aaaa\")","v":"Date de la visite: 21/07/2023"}]
[null,{"$f":"\"Code Postal: \"&Indicateurs!E2","v":"Code Postal: -"},null,null,null,null,null,null,{"$f":"\"Chargé(s) de visite: \"&Indicateurs!P2&IF('Données ménage'!H20<>\"\",\"/\"&Indicateurs!Q2,\"\")","v":"Chargé(s) de visite: Amélie LOMBARD / ROY MATHIS"}]
[null,{"$f":"\"Ville: \"&Indicateurs!F2","v":"Ville: -"},null,null,null,null,null,null,{"$f":"\"Météo lors de la visite: \"&Indicateurs!BC2&\"/ \"&Indicateurs!BD2&\"°C \"","v":"Météo lors de la visite: Pluvieux/ humide/ -°C "}]
[]
[null,"LES OCCUPANTS",null,null,null,null,null,null,"LE LOGEMENT"]
[null,null,"L'occupation du logement"]
[null,null,{"$f":"\"Statut d'occupation: \"&Indicateurs!S2","v":"Statut d'occupation: Locataire social"}]
[null,null,{"$f":"\"Date d'entrée dans le logement: \"&Indicateurs!U2","v":"Date d'entrée dans le logement: -"}]
[null,null,{"$f":"\"Nombre d'occupants: \"&Indicateurs!V2","v":"Nombre d'occupants: -"}]
[]
[null,null,"Situation économique et sociale"]
[null,null,{"$f":"\"Aides à l'énergie perçues: \"&Indicateurs!AG2&IF(Indicateurs!AH2<>\"-\",\" (\"&Indicateurs!AH2&\")\",\"\")","v":"Aides à l'énergie perçues: -"}]
[null,null,{"$f":"\"Eligible aides ANAH: \"&Indicateurs!AK2","v":"Eligible aides ANAH: Inconnu"}]
[null,null,{"$f":"\"Tarifs sociaux énergie: \"&Indicateurs!DJ2","v":"Tarifs sociaux énergie: Non éligible"},null,null,null,null,null,null,"Caractéristiques du bâti"]
[null,null,null,null,null,null,null,null,null,{"$f":"\"Type de logement: \"&Indicateurs!AP2","v":"Type de logement: Collectif"}]
[null,"LES CONSOMMATIONS",null,null,null,null,null,null,null,{"$f":"\"Nombre de lots (si collectif): \"&Indicateurs!AQ2","v":"Nombre de lots (si collectif): > 50 lots"}]
[null,null,"Les énergies",null,null,null,null,null,null,{"$f":"\"Nombre de pièces: \"&Indicateurs!AM2","v":"Nombre de pièces: -"}]
[null,null,"Chauffage:",null,null,null,null,null,null,{"$f":"\"Surface: \"&Indicateurs!AN2&\" m²\"","v":"Surface: - m²"}]
[null,null,{"$f":"\"Energie de chauffage: \"&Indicateurs!CQ2","v":"Energie de chauffage: -"},null,null,null,null,null,null,{"$f":"\"Année de construction: \"&Indicateurs!AO2","v":"Année de construction: -"}]
[null,null,{"$f":"\"Type de chaudière: \"&Indicateurs!CU2","v":"Type de chaudière: -"},null,null,null,null,null,null,{"$f":"\"Etat de la toiture: \"&Indicateurs!AT2","v":"Etat de la toiture: Bon"}]
[null,null,{"$f":"\"Type de compteur: \"&Indicateurs!DK2","v":"Type de compteur: -"},null,null,null,null,null,null,{"$f":"\"Evacuation des eaux de pluie: \"&Indicateurs!AU2","v":"Evacuation des eaux de pluie: Oui"}]
[null,null,{"$f":"\"Présence d'appoints: \"&Indicateurs!DA2","v":"Présence d'appoints: -"},null,null,null,null,null,null,{"$f":"\"Signes de remontées capillaires: \"&Indicateurs!AV2","v":"Signes de remontées capillaires: Non"}]
[]
[null,null,"Eau chaude sanitaire:",null,null,null,null,null,null,"Etat du logement"]
[null,null,{"$f":"\"Energie ECS: \"&Indicateurs!CR2","v":"Energie ECS: -"},null,null,null,null,null,null,"Fenêtres:"]
[null,null,{"$f":"\"Type de production: \"&Indicateurs!CS2","v":"Type de production: -"},null,null,null,null,null,null,{"$f":"\"Type de vitrage: \"&Indicateurs!BX2","v":"Type de vitrage: Double vitrage"}]
[null,null,{"$f":"\"Type de compteur: \"&Indicateurs!DP2","v":"Type de compteur: Individuel"},null,null,null,null,null,null,{"$f":"\"Etat des meuiseries: \"&Indicateurs!BV2","v":"Etat des meuiseries: Bon"}]
[null,null,{"$f":"\"Présence commutateur J/N (si électrique): \"&Indicateurs!DG2","v":"Présence commutateur J/N (si électrique): -"},null,null,null,null,null,null,{"$f":"\"Infiltration d'air par les fenêtres: \"&Indicateurs!BY2","v":"Infiltration d'air par les fenêtres: -"}]
[]
[null,null,null,null,null,null,null,null,null,"Confort intérieur:"]
[null,null,"Cuisson:",null,null,null,null,null,null,{"$f":"\"T° mesurée dans la pièce principale: \"&Indicateurs!BF2&\" °C\"","v":"T° mesurée dans la pièce principale: - °C"}]
[null,null,{"$f":"\"Energie cuisson: \"&Indicateurs!CT2","v":"Energie cuisson: -"},null,null,null,null,null,null,{"$f":"\"T° mesurée du mur donnant sur l'extérieur: \"&Indicateurs!BG2&\" °C\"","v":"T° mesurée du mur donnant sur l'extérieur: - °C"}]
[null,null,null,null,null,null,null,null,null,{"$f":"\"Difficulté à chauffer: \"&Indicateurs!BQ2","v":"Difficulté à chauffer: -"}]
[null,null,"Les factures d'énergie",null,null,null,null,null,null,{"$f":"\"Privation de chauffage en hiver: \"&Indicateurs!BM2","v":"Privation de chauffage en hiver: Non"}]
[null,null,"Electricité:",null,null,null,null,null,null,{"$f":"\"Confort perçu par les occupants (0 à 5 important): \"&Indicateurs!BK2","v":"Confort perçu par les occupants (0 à 5 important): -"}]
[null,null,{"$f":"\"Consommation annuelle: \"&TEXT(Indicateurs!EA2,\"0 000\")&\" kWh\"","v":"Consommation annuelle: - kWh"}]
[null,null,{"$f":"\"Coût annuel: \"&TEXT(Indicateurs!EB2,\"0\")&\" €\"","v":"Coût annuel: - €"},null,null,null,null,null,null,"Ventilation et humidité:"]
[null,null,{"$f":"\"Adéquation abonnement: \"&Indicateurs!EC2","v":"Adéquation abonnement: -"},null,null,null,null,null,null,{"$f":"\"Type de ventilation: \"&Indicateurs!BN2","v":"Type de ventilation: -"}]
[null,null,null,null,null,null,null,null,null,{"$f":"\"Grilles d'extraction d'air obstruées: \"&Indicateurs!BS2","v":"Grilles d'extraction d'air obstruées: -"}]
[null,null,{"$f":"\"Autre énergie: \"&Indicateurs!EH2","v":"Autre énergie: -"},null,null,null,null,null,null,{"$f":"\"Taux d'humidité mesuré extérieur/intérieur: \"&Indicateurs!BE2&\"% / \"&Indicateurs!BH2&\"%\"","v":"Taux d'humidité mesuré extérieur/intérieur: 93% / 60%"}]
[null,null,{"$f":"\"Consommation annuelle: \"&TEXT(Indicateurs!EL2,\"0 000\")&\" kWh\"","v":"Consommation annuelle: - kWh"},null,null,null,null,null,null,{"$f":"\"Moisissures/traces d'humidité: \"&Indicateurs!BO2","v":"Moisissures/traces d'humidité: Non"}]
[null,null,{"$f":"\"Coût annuel: \"&TEXT(Indicateurs!EM2,\"0\")&\" €\"","v":"Coût annuel: - €"},null,null,null,null,null,null,{"$f":"\"Humidité perçue par l'occupant (0 nul à 5 très humide): \"&Indicateurs!BL2","v":"Humidité perçue par l'occupant (0 nul à 5 très humide): -"}]
[null,null,{"$f":"\"Adéquation abonnement: \"&Indicateurs!EN2","v":"Adéquation abonnement: -"}]
[null,null,null,null,null,null,null,null,null,"Salubrité du logement:"]
[null,null,"Eau froide",null,null,null,null,null,null,{"$f":"\"Procédure d'insalubrité en cours: \"&Indicateurs!BT2","v":"Procédure d'insalubrité en cours: -"}]
[null,null,{"$f":"\"Consommation annuelle: \"&Indicateurs!ES2","v":"Consommation annuelle: -"},null,null,null,null,null,null,{"$f":"\"Presomption d'indécence ou d'insalubrité: \"&Indicateurs!BU2","v":"Presomption d'indécence ou d'insalubrité: Non"}]
[null,null,{"$f":"\"Coût annuel: \"&Indicateurs!ET2","v":"Coût annuel: -"}]
[null,null,null,null,null,null,null,null,null,"Autres observations:"]
[null,null,"Repères de consommation",null,null,null,null,null,null,{"$f":"Indicateurs!CC2&IF(Indicateurs!CB2<>\"\",\"; \",\"\")&Indicateurs!CC2&IF(Indicateurs!CC2<>\"\",\"; \",\"\")&Indicateurs!CD2&IF(Indicateurs!CD2<>\"\",\"; \",\"\")&Indicateurs!CE2&IF(Indicateurs!CE2<>\"\",\"; \",\"\")&Indicateurs!CF2&IF(Indicateurs!CF2<>\"\",\"; \",\"\")&Indicateurs!CG2&IF(Indicateurs!CG2<>\"\",\"; \",\"\")&Indicateurs!CH2&IF(Indicateurs!CH2<>\"\",\"; \",\"\")&Indicateurs!CI2&IF(Indicateurs!CI2<>\"\",\"; \",\"\")&Indicateurs!CJ2&IF(Indicateurs!CJ2<>\"\",\"; \",\"\")&Indicateurs!CK2&IF(Indicateurs!CK2<>\"\",\"; \",\"\")&Indicateurs!CL2&IF(Indicateurs!CL2<>\"\",\"; \",\"\")&Indicateurs!CM2&IF(Indicateurs!CM2<>\"\",\"; \",\"\")&Indicateurs!CN2&IF(Indicateurs!CN2<>\"\",\"; \",\"\")&Indicateurs!CO2&IF(Indicateurs!CO2<>\"\",\"; \",\"\")&Indicateurs!CP2","v":"Aucune"}]
[null,null,{"$f":"\"Evaluation de la consommation: \"&Indicateurs!ER2","v":"Evaluation de la consommation: Non mesurable"}]
[null,null,{"$f":"\"Taux d'effort énergétique: \"&TEXT(Indicateurs!EO2,0)&\" %\"","v":"Taux d'effort énergétique: - %"}]
[null,null,{"$f":"\"Consommation moyenne chauffage : \"&TEXT(Indicateurs!EP2,0)&\" kWh/m²/an \"&Indicateurs!EQ2","v":"Consommation moyenne chauffage : - kWh/m²/an (théorique)"}]
[]
[]
[]
[null,null,null,null,null,null,null,null,null,"RAPPORT DE VISITE"]
[]
[null,null,"A noter: les économies présentées ci-dessous ont été estimées sur la base du diagnostic réalisé, et peuvent ne pas tout à fait correspondre à la réalité."]
[]
[null,null,{"$f":"Indicateurs!IX2","v":""}]
[]
[]
[null,"LES ECOGESTES PRECONISES"]
[null,null,"Chauffage, ventilation et humidité"]
[null,null,{"$f":"Indicateurs!GF2","v":""}]
[null,null,{"$f":"Indicateurs!GG2","v":""}]
[null,null,{"$f":"Indicateurs!GH2","v":""}]
[null,null,{"$f":"Indicateurs!GI2","v":""}]
[null,null,{"$f":"Indicateurs!GJ2","v":""}]
[null,null,null,null,null,null,null,null,null,{"$f":"\"Economie estimée grâce à ces écogestes: \"&TEXT(Indicateurs!II2,0)&\" €\"","v":"Economie estimée grâce à ces écogestes: 0 €"}]
[]
[null,null,"Eau chaude et eau froide"]
[null,null,{"$f":"Indicateurs!GK2","v":""}]
[null,null,{"$f":"Indicateurs!GL2","v":""}]
[null,null,{"$f":"Indicateurs!GM2","v":""}]
[null,null,{"$f":"Indicateurs!GN2","v":""}]
[null,null,{"$f":"Indicateurs!GO2","v":""}]
[null,null,null,null,null,null,null,null,null,{"$f":"\"Economie estimée grâce à ces écogestes: \"&TEXT(Indicateurs!IL2,0)&\" €\"","v":"Economie estimée grâce à ces écogestes: 0 €"}]
[]
[null,null,"Electricité spécifique"]
[null,null,{"$f":"Indicateurs!GP2","v":""}]
[null,null,{"$f":"Indicateurs!GQ2","v":""}]
[null,null,{"$f":"Indicateurs!GR2","v":""}]
[null,null,{"$f":"Indicateurs!GS2","v":""}]
[null,null,{"$f":"Indicateurs!GT2","v":""}]
[null,null,{"$f":"Indicateurs!GU2","v":""}]
[null,null,{"$f":"Indicateurs!GV2","v":""}]
[null,null,null,null,null,null,null,null,null,{"$f":"\"Economie estimée grâce à ces écogestes: \"&TEXT(Indicateurs!IO2,0)&\" €\"","v":"Economie estimée grâce à ces écogestes: 0 €"}]
[]
[null,"Les équipements économes préconisés"]
[null,null,"Chauffage, ventilation et humidité",null,null,null,null,null,null,"Electricité spécifique"]
[null,null,{"$f":"Indicateurs!FL2&\" \"&Indicateurs!IY2","v":" "},null,null,null,null,null,null,{"$f":"Indicateurs!FY2&\" \"&Indicateurs!JL2","v":" "}]
[null,null,{"$f":"Indicateurs!FM2&\" \"&Indicateurs!IZ2","v":" "},null,null,null,null,null,null,{"$f":"Indicateurs!FZ2&\" \"&Indicateurs!JM2","v":" "}]
[null,null,{"$f":"Indicateurs!FN2&\" \"&Indicateurs!JA2","v":" "},null,null,null,null,null,null,{"$f":"Indicateurs!GA2&\" \"&Indicateurs!JN2","v":" "}]
[null,null,{"$f":"Indicateurs!FO2&\" \"&Indicateurs!JB2","v":" "},null,null,null,null,null,null,{"$f":"Indicateurs!GB2&\" \"&Indicateurs!JO2","v":" "}]
[null,null,{"$f":"Indicateurs!FP2&\" \"&Indicateurs!JC2","v":" "},null,null,null,null,null,null,{"$f":"Indicateurs!GC2&\" \"&Indicateurs!JP2","v":" "}]
[null,null,{"$f":"Indicateurs!FQ2&\" \"&Indicateurs!JD2","v":" "},null,null,null,null,null,null,{"$f":"Indicateurs!GD2&\" \"&Indicateurs!JQ2","v":" "}]
[null,null,{"$f":"Indicateurs!FR2&\" \"&Indicateurs!JE2","v":" "},null,null,null,null,null,null,{"$f":"Indicateurs!GE2&\" \"&Indicateurs!JR2","v":" "}]
[null,null,{"$f":"\"Economie estimée grâce à ces équipements: \"&TEXT(Indicateurs!IA2,0)&\" €\"","v":"Economie estimée grâce à ces équipements: 0 €"},null,null,null,null,null,null,{"$f":"\"Economie estimée grâce à ces équipements: \"&TEXT(Indicateurs!IC2,0)&\" €\"","v":"Economie estimée grâce à ces équipements: 0 €"}]
[]
[null,null,"Eau chaude et eau froide",null,null,null,null,null,null,"Les équipements économes offerts"]
[null,null,{"$f":"Indicateurs!FT2&\" \"&Indicateurs!JG2","v":" "},null,null,null,null,null,null,{"$f":"\"Nombre d'équipements offerts: \"&Indicateurs!HK2","v":"Nombre d'équipements offerts: 0"}]
[null,null,{"$f":"Indicateurs!FU2&\" \"&Indicateurs!JH2","v":" "},null,null,null,null,null,null,{"$f":"\"Valeur des équipements offerts: \"&Indicateurs!HL2&\" €\"","v":"Valeur des équipements offerts: 0 €"}]
[null,null,{"$f":"Indicateurs!FV2&\" \"&Indicateurs!JI2","v":" "},null,null,null,null,null,null,{"$f":"\"Economie estimée grâce aux équipements offerts: \"&TEXT(Indicateurs!HY2,0)&\" €\"","v":"Economie estimée grâce aux équipements offerts: 0 €"}]
[null,null,{"$f":"Indicateurs!FW2&\" \"&Indicateurs!JJ2","v":" "}]
[null,null,{"$f":"\"Economie estimée grâce à ces équipements: \"&TEXT(Indicateurs!IB2,0)&\" €\"","v":"Economie estimée grâce à ces équipements: 0 €"}]
[]
[null,"COMMENTAIRE",null,null,null,null,null,null,null,"SYNTHESE DES ECONOMIES ESTIMEES"]
[null,null,null,null,null,null,null,null,null,null,{"$f":"\"Grâce aux écogestes: \"&TEXT(Indicateurs!IR2,0)&\" €\"","v":"Grâce aux écogestes: 0 €"}]
[null,null,null,null,null,null,null,null,null,null,{"$f":"\"Grâce aux équipements installés: \"&TEXT(Indicateurs!HY2,0)&\" €\"","v":"Grâce aux équipements installés: 0 €"}]
[null,null,null,null,null,null,null,null,null,null,{"$f":"\"Grâce à un investissement de votre part (hors électroménager): \"&TEXT(Indicateurs!HJ2,0)&\" €\"","v":"Grâce à un investissement de votre part (hors électroménager): 0 €"}]
[]
[null,null,null,null,null,null,null,null,null,null,{"$f":"\"Soit une économie totale de: \"&TEXT(Indicateurs!IV2,0)&\" €\"","v":"Soit une économie totale de: 0 €"}]
[null,null,null,null,null,null,null,null,null,null,{"$f":"\"(correspondant à \"&TEXT(Indicateurs!ID2,0)&\" kWh et \"&TEXT(Indicateurs!IE2,0)&\" m3 d'eau)\"","v":"(correspondant à 0 kWh et 0 m3 d'eau)"}]

{"sheet":"MAJ Données","index":12,"n_rows":172,"n_cols":9,"rows_kept":172,"cut":false,"hidden":false,"merged":[[118,1,118,2],[116,1,116,8],[132,1,132,8],[2,1,2,8],[63,1,63,8],[40,1,40,8],[54,1,55,1],[30,2,30,3],[30,4,30,5],[26,1,26,5],[46,2,48,2],[46,3,48,3],[46,4,48,4],[52,1,52,5],[28,2,28,5],[88,2,88,3],[86,1,86,3],[96,1,96,2],[57,5,59,5],[57,2,59,2],[57,3,59,3],[57,4,59,4],[10,2,10,3],[11,2,11,3],[12,2,12,3],[4,1,4,3],[18,2,18,3],[6,2,6,3],[5,2,5,3],[7,2,7,3],[8,2,8,3],[9,2,9,3],[54,2,54,4],[69,0,78,0],[65,1,65,8],[67,2,67,8],[42,1,42,4],[135,1,135,6],[146,1,146,6],[147,2,147,4],[157,2,157,4],[156,1,156,6],[141,3,141,4],[136,2,136,4],[137,3,137,4],[138,3,138,4],[139,3,139,4],[140,3,140,4],[22,2,22,3],[23,2,23,3],[15,1,15,3],[16,2,16,3],[17,2,17,3],[19,2,19,3],[20,2,20,3],[21,2,21,3]]}
[]
[]
[null,"Plafond des aides"]
[]
[null,"Plafond ressources aide ACS"]
[null,"Date de mise à jour:","2023-07-21"]
[null,"Source:","http://vosdroits.service-public.fr/particuliers/F13375.xhtml"]
[null,"Nombre de personnes composant le foyer","Montant du plafond annuel en France métropolitaine"]
[null,"1 personne",13120]
[null,"2 personnes",19680]
[null,"3 personnes",23616]
[null,"4 personnes",27533]
[null,"Au-delà de 4 personnes, par personne à charge supplémentaire",5248]
[]
[]
[null,"Plafond annuel de ressources CMU complémentaire"]
[null,"Date de mise à jour:","2023-07-21"]
[null,"Source: ","http://vosdroits.service-public.fr/particuliers/F10027.xhtml"]
[null,"Nombre de personnes composant le foyer","Montant du plafond annuel en France métropolitaine"]
[null,"1 personne",9719]
[null,"2 personnes",14578]
[null,"3 personnes",17494]
[null,"4 personnes",20409]
[null,"au-delà de 4 personnes, par personne supplémentaire",3887]
[]
[]
[null,"Plafond ressources aides ANAH"]
[null,"Date de mise à jour:","2015-06-26"]
[null,"Source:","http://www.anah.fr/les-aides/vous-etes-proprietaire-occupant/etes-vous-eligible-aux-aides-de-lanah/"]
[null,"Région concernée par le SLIME","Ile-de-France"]
[null,null,"Ile-de-France",null,"Autres régions"]
[null,"Nombre de personnes composant le ménage","Ménages aux ressources très modestes (€)","Ménages aux ressources modestes (€)","Ménages aux ressources très modestes (€)","Ménages aux ressources modestes (€)"]
[null,1,19792,24094,14300,18332]
[null,2,29050,35362,20913,26811]
[null,3,34887,42471,25152,32242]
[null,4,40735,49592,29384,37669]
[null,5,46604,56733,33663,43117]
[null,"Par personne supplémentaire",5867,7132,4239,5431]
[]
[]
[null,"Déduction Tarifs Sociaux de l'Energie"]
[]
[null,"Déduction forfaitaire TPN électricité"]
[null,"Date de mise à jour:","2017-08-21"]
[null,"Déduction forfaitaire en fonction de l’UC (en euros TTC/an)","3 kVA","6 kVA","9 kVA et plus"]
[null,"UC = 1 (Une personne seule)",71,87,94]
[null,"1 < UC < 2 (Un adulte avec un enfant)",88,109,117]
[null,"1 < UC < 2 (Un couple sans enfant ou avec un enfant)"]
[null,"1 < UC < 2 (Un adulte avec deux enfants)"]
[null,"UC >=2 (Un couple/adulte avec deux enfants et plus)",106,131,140]
[]
[]
[null,"Déduction forfaitaire TSS gaz"]
[null,"Date de mise à jour:","2017-08-21"]
[null,"Déduction ou versement forfaitaire en fonction de la composition du foyer en €TTC/an","Individuel",null,null,"Collectif"]
[null,null,"0-1000 kWh/an [cuisson]","1000-6000 kWh/an\n[eau chaude]","> 6000 kWh/an [chauffage]","[chauffage]"]
[null,"UC = 1 (Une personne seule)",23,72,123,100]
[null,"1 < UC < 2 (Un adulte avec un enfant)",30,95,153,123]
[null,"1 < UC < 2 (Un couple sans enfant ou avec un enfant)"]
[null,"1 < UC < 2 (Un adulte avec deux enfants)"]
[null,"UC >=2 (Un couple/adulte avec deux enfants et plus)",38,117,185,147]
[]
[]
[null,"Prix des énergies/eau"]
[]
[null,"Tarifs électricité"]
[null,"Date de mise à jour:","2023-07-21"]
[null,"Source:","http://developpement-durable.bsocom.fr/statistiques/ReportFolders/reportFolders.aspx"]
[null,"Puissance souscrite (kVA)","Abonnement annuel TTC (euros)","Prix du kWh TTC (euros) Heures Pleines","Prix du kWh TTC (euros) Heures Creuses","Blanc HP","Blanc HC","Rouge HP","Rouge HC"]
[null,"3 (Base)",104.89,0.15579999999999999]
[null,"6 (Base)",143.87,0.20619999999999999]
[null,"9 (Base)",171.28,0.1605]
[null,"12 (Base)",205.42,0.1605]
[null,"15 (Base)",237.67,0.1605]
[null,"6 (HP/HC)",151.63999999999999,0.2228,0.1615]
[null,"9 (HP/HC)",185.03,0.18210000000000001,0.13600000000000001]
[null,"12 (HP/HC)",223.21,0.18210000000000001,0.13600000000000001]
[null,"15 (HP/HC)",260.37,0.18210000000000001,0.13600000000000001]
[null,"18 (HP/HC)",295.64,0.18210000000000001,0.13600000000000001]
[null,"24 (HP/HC)",362.01,0.18210000000000001,0.13600000000000001]
[null,"9 (Tempo)",121.494,0.100314,8.3993999999999999E-2,0.14003399999999999,0.117474,0.55931399999999998,0.214194]
[null,"12 (Tempo)",198.715,0.100314,8.3993999999999999E-2,0.14003399999999999,0.117474,0.55931399999999998,0.214194]
[null,"30 (Tempo)",408.4,0.1605,8.3993999999999999E-2,0.14003399999999999,0.117474,0.55931399999999998,0.214194]
[null,"36 (Tempo)",477.7,0.1605,8.3993999999999999E-2,0.14003399999999999,0.117474,0.55931399999999998,0.214194]
[]
[]
[null,"Tarifs Gaz"]
[null,"Date de mise à jour:","2023-07-21"]
[null,"Source:","http://developpement-durable.bsocom.fr/statistiques/ReportFolders/reportFolders.aspx"]
[null,"Type d'abonnement","Abonnement annuel TTC (euros)","Prix du kWh TTC (euros)"]
[null,"GN base < 1000kWh",102.12,0.12839999999999999]
[null,"B0 zone 1",102.12,0.12839999999999999]
[null,"B1 zone 1",249.84,0.1043]
[null,"B2i zone 1 ",249.84,0.1043]
[]
[]
[null,"Prix moyen complet kWh par type d'énergie (abonnement inclus)"]
[null,"Date de mise à jour:","2023-07-21"]
[null,"Source:","http://developpement-durable.bsocom.fr/statistiques/ReportFolders/reportFolders.aspx"]
[null,"Energie","Tarif comple kWh TTC (euros)"]
[null,"Electricité",0.2228]
[null,"Gaz naturel",0.1043]
[null,"Gaz propane en citerne",0.14649999999999999]
[null,"Fioul domestique",1.2569999999999999]
[null,"Réseau de chaleur",8.6254999999999998E-2]
[null,"Bois (granulés)",5.6750000000000002E-2]
[null,"Bois (bûches)",0.04]
[null,"Gaz bouteille",0.19700000000000001]
[null,"Aucune",0]
[null,"Autre",0.1]
[null,"Inconnue",0.1]
[]
[null,"Prix du mètre cube d'eau froide (en € TTC)",4]
[null,"Date de mise à jour","2023-02-01"]
[]
[]
[null,"Emission CO² par type d'énergie"]
[]
[null,"Emission en gramme de CO² par kWh"]
[null,"Date de mise à jour","2014-02-01"]
[null,"Electricité (chauffage)",180]
[null,"Electricité (ECS)",40]
[null,"Electricité spécifique",84]
[null,"Gaz naturel",234]
[null,"Gaz propane en citerne",274]
[null,"Gaz bouteille",274]
[null,"Fioul domestique",300]
[null,"Réseau de chaleur",160]
[null,"Bois (granulés)",13]
[null,"Bois (bûches)",13]
[]
[]
[null,"Le matériel économe"]
[]
[]
[null,"Chauffage, ventilation et humidité"]
[null,"Equipements préconisés","Economie grâce à l'équipement",null,null,"Prix unitaire","Unité"]
[null,"Film de survitrage",0.05,"sur les consommations de chauffage",null,6.5,"m²"]
[null,"Joints de fenêtre",0.04,"sur les consommations de chauffage",null,1.3,"m"]
[null,"Bas de porte",0.01,"sur les consommations de chauffage",null,8,"article"]
[null,"Film/panneau réfléchissant",0.05,"sur les consommations de chauffage",null,8,"m²"]
[null,"Manchon isolant tuyauterie",0.04,"sur les consommations de chauffage",null,1.5,"m"]
[null,"Thermomètre hygromètre","Non mesurable",null,null,15,"article"]
[null,"Thermomètre simple","Non mesurable",null,null,4,"article"]
[null,"Prise programmable","Non mesurable",null,null,10,"article"]
[]
[null,"Eau chaude et eau froide"]
[null,"Equipements préconisés","Débit équipement",null,null,"Prix unitaire","Unité"]
[null,"Variateur de dédit douche/stop douche","-",null,null,8,"article"]
[null,"Economiseur d'eau Evier",8,"litres/minutes",null,3,"article"]
[null,"Economiseur d'eau lavabo",6,"litres/minutes",null,3,"article"]
[null,"Economiseur d'eau autre",8,"litres/minutes",null,3,"article"]
[null,"système éco-WC",2,"litres économisés /chasse d'eau",null,4,"article"]
[null,"douchette(s) économe(s)",9,"litres/minutes",null,18,"article"]
[null,"joints de robinetterie","-",null,null,1,"article"]
[]
[null,"Appareils et équipements électriques"]
[null,"Equipements préconisés",null,null,null,"Prix unitaire","Unité"]
[null,"Ampoule LBC culot E27",null,null,null,6,"article"]
[null,"Ampoule LBC culot B22",null,null,null,6,"article"]
[null,"Ampoule LBC culot E14",null,null,null,6,"article"]
[null,"Ampoule LBC autre culot",null,null,null,6,"article"]
[null,"Ampoule LED culot GU 5,3",null,null,null,12,"article"]
[null,"Ampoule LED culot GU 10",null,null,null,12,"article"]
[null,"Ampoule LED autre culot",null,null,null,18,"article"]
[null,"Autre type d'ampoule",null,null,null,8,"article"]
[null,"Ampoule(s) LED spot",null,null,null,18,"article"]
[null,"Remplacement appareil de froid",null,null,null,"300 à 600€","article"]
[null,"Remplacement appareil de lavage/séchage",null,null,null,"200 à 400 €","article"]
[null,"Thermomètre réfrigérateur",null,null,null,6,"article"]
[null,"Multiprise coupe veille",null,null,null,25,"article"]
[null,"Multiprise à interrupteur",null,null,null,8,"article"]

{"sheet":"Indicateurs","index":13,"n_rows":68,"n_cols":294,"rows_kept":68,"cut":false,"hidden":false,"merged":[]}
["Num contact","Nom","Prénom","Voie","Code Postal","Commune","N° appartement","Bâtiment","Pallier","Digicode","Téléphone fixe","Téléphone portable","Photos ext","Photos int","Date du jour","Chargé visite 1","chargé visite 2","Date 1ère visite","Statut","Nom du bailleur","Date entrée log.","Nb occupants","Dont enfants","Dont +60 ans","Profil ménage","Pb respiratoire","Nb concernés","Dont enfants","Présence continue","Suivi TS","Nom TS","Revenus annuels","Aide FSL","Année FSL","CMU-C","ACS","ANAH","PACT energie","Nb pièces","Surface","Année const","Type hab","nb lots","Mitoyenneté","Forme","Etat toit","Ruissellement","Remontée eau","Combles","Réno","Année trav","Travaux 1","Travaux 2","Travaux 3","Météo","T° ext","Tx humidité ext","T° interieure","T° mur","Tx humidité","Murs froids","Confort ressenti","Niveau confort","Niveau humidité","Privation chauffage","Ventilation","trace humidité","pièce humide","difficulté chauffer","aération","grille d'aération","Procédure insalubrité","insalubrité susp","Etat menuiserie","nb fenetres","Vitrage","Infiltration air fenêtres","Infiltration air portes","radiateurs devant Fenetres","Obs1","Obs2","Obs3","Obs4","Obs5","Obs6","Obs7","Obs8","Obs9","Obs10","Obs11","Obs12","Obs13","Obs14","obstot","NRJ chauffage","NRJ ECS","Type ECS","NRJ cuisson","Type chaudiere","Age chaudiere","Programmation/ régulation","Emetteurs","Nb émetteurs","Robinets thermostatiques","Présence appoints","Nb appoints","Types appoints","Utilisation","Raison utilisation","Volume ballon eau","commut J/N","fuite groupe sécurité","fuite eau","Tarifs sociaux","compteur chauffage","Relevé compteur chauffage","Relevé compteur élec HC","Relevé compteur élec HC","compteur ECS","compteur eau","Relevé compteur eau chaude","Relevé compteur eau froide","difficulté paiement electricité","Impayé electricité","Montant impayé électricité","Disponibilité factures électricité","Fournisseur électricité","Abonnement électricité","Besoins electricité","Besoins cuisson","Conso electricité kWh","Coût élec euros","Adéquation abonnement","Difficulté paiement autres factures","Impayé autres factures","Montant Impayé autres factures","Autres factures disponibles","Energie autres factures","abonnement autres factures","fournisseur autres factures","Besoins autres factures","conso autres factures","Coût autres factures","Adequation abonnement autres factures","%effort Energétique","kWhchauf/m2","kwh/m² r-t","Type conso","conso eau","coût eau","Age réfrigérateur","remplacement 1","Age congélateur","remplacement 2","Age combiné","remplacement 3","Age lave-linge","remplacement 4","Age sèche linge","remplacement 5","Age lave-vaisselle","remplacement 6","remplacement total","Tx équipement","pts lumineux","présence ampoules classiques","Présence veilles","Equ 1","Equ 2","Equ 3","Equ 4","Equ 5","Equ 6","Equ 7","Equ 8","Equ 9","Equ 10","Equ 11","Equ 12","Equ 13","Equ 14","Equ 15","Equ 16","Equ 17","Equ 18","Equ 19","Equ 20","Eco geste 1","Eco geste 2","Eco geste 3","Eco geste 4","Eco geste 5","Eco geste 6","Eco geste 7","Eco geste 8","Eco geste 9","Eco geste 10","Eco geste 11","Eco geste 12","Eco geste 13","Eco geste 14","Eco geste 15","Eco geste 16","Eco geste 17","Eco geste 18","Eco geste 19","Investissement ménage hos électro","Economie équipements chauffage investissement personnel (kWh)","Economie équipements chauffage investissement personnel (€)","Economie équipements eau investissement personnel (kWh)","Economie équipements eau investissement personnel (m3)","Economie équipements eau investissement personnel (€)","Economie équipements electricité investissement personnel (kWh)","Economie équipements electricité investissement personnel (m3)","Economie équipements électricité investissement personnel (€)","Total économie équipements investissement personnel (kWh)","Total économie équipements investissement personnel (m3)","Total économie équipements investissement personnel (€)","Nb Eq offerts","Coût équipements offerts","Economie équipements chauffage offerts (kWh)","Economie équipements chauffage offerts (€)","Economie équipements chauffage offerts (kg CO2)","Economie équipements eau offerts (kWh)","Economie équipements eau offerts (m3)","Economie équipements eau offerts (€)","Economie équipements eau offerts (Kg CO²)","Economie équipements electricité offerts(kWh)","Economie équipements electricité offerts (€)","Economie équipements electricité offerts (Kg CO²)","Totale économie équipements offerts (kWh)","Totale économie équipements offerts (m3)","Totale économie équipements offerts (€)","Totale économie équipements offerts (Kg CO²)","Total économies équipements chauffage (€)","Total économie équipements eau (€)","Total économie équipements électricité (€)","Total économies équipements (kWh)","Total économies équipements (m3)","Total économies équipements (€)","Total économies équipements (Kg CO²)","Economies chauffage Ecogestes (kWh)","Economies chauffage Ecogestes (€)","Economies eau Ecogestes (kWh)","Economies eau Ecogestes (m3)","Economies eau Ecogestes (€)","Economies électricité Ecogestes (kWh)","Economies électricité Ecogestes (m3)","Economies électricité Ecogestes (€)","Total économie écogestes (kWh)","Total économie écogestes (m3)","Total économie écogestes (€)","Total économie écogestes (Kg CO²)","Economie Totale ecogestes + équipements (kWh)","Economie Totale ecogestes + équipements (m3)","Economie Totale ecogestes + équipements (€)","Economie Totale ecogestes + équipements (Kg CO2)","Avertissement","InstallEqu 1","InstallEqu 2","InstallEqu 3","InstallEqu 4","InstallEqu 5","InstallEqu 6","InstallEqu 7","InstallEqu 8","InstallEqu 9","InstallEqu 10","InstallEqu 11","InstallEqu 12","InstallEqu 13","InstallEqu 14","InstallEqu 15","InstallEqu 16","InstallEqu 17","InstallEqu 18","InstallEqu 19","InstallEqu 20","Classification 1","Classification 2","Classification 3","Difficulté 1","Difficulté 2","Difficulté 3","Difficulté 4","Difficulté 5","Difficulté 6","Orientation 1","Orientation 2","Orientation 3","Orientation 4","Orientation 5","Orientation 6","Accord suivi"]
[{"$f":"IF('Données ménage'!D10<>\"\",'Données ménage'!D10,\"-\")","v":"-"},{"$f":"IF('Données ménage'!D9<>\"\",'Données ménage'!D9,\"-\")","v":"-"},{"$f":"IF('Données ménage'!H9=\"\",\"\",'Données ménage'!H9)","v":""},{"$f":"IF('Données ménage'!D11<>\"\",'Données ménage'!D11,\"-\")","v":"-"},{"$f":"IF('Données ménage'!D12<>\"\",'Données ménage'!D12,\"-\")","v":"-"},{"$f":"IF('Données ménage'!D12<>\"\",'Données ménage'!H11,\"-\")","v":"-"},{"$f":"IF('Données ménage'!D13=\"\",\"-\",'Données ménage'!D13)","v":"-"},{"$f":"IF('Données ménage'!H13=\"\",\"-\",'Données ménage'!H13)","v":"-"},{"$f":"IF('Données ménage'!D14=\"\",\"-\",'Données ménage'!D14)","v":"-"},{"$f":"IF('Données ménage'!H14=\"\",\"-\",'Données ménage'!H14)","v":"-"},{"$f":"IF('Données ménage'!D15=\"\",\"-\",'Données ménage'!D15)","v":"-"},{"$f":"IF('Données ménage'!H15=\"\",\"-\",'Données ménage'!H15)","v":"-"},{"$f":"IF('Données bâti'!I25<>\"\",'Données bâti'!I25,\"-\")","v":"Non"},{"$f":"IF('Données bâti'!G37<>\"\",'Données bâti'!G37,\"-\")","v":"Non"},{"$f":"TODAY()","v":"2023-07-21"},{"$f":"IF('Données ménage'!D20<>\"\",'Données ménage'!D20,\"-\")","v":"Amélie LOMBARD / ROY MATHIS"},{"$f":"IF('Données ménage'!H20<>\"\",'Données ménage'!H20,\"\")","v":""},{"$f":"IF('Données ménage'!D22=\"\",\"-\",'Données ménage'!D22)","v":"2023-07-21"},{"$f":"IF('Données ménage'!D38<>\"\",'Données ménage'!D38,\"-\")","v":"Locataire social"},{"$f":"IF('Données ménage'!G38=\"\",\"-\",'Données ménage'!G38)","v":"VOSGELIS"},{"$f":"IF('Données ménage'!D39=\"\",\"-\",'Données ménage'!D39)","v":"-"},{"$f":"IF('Données ménage'!D27=\"\",\"-\",'Données ménage'!D27)","v":"-"},{"$f":"IF('Données ménage'!D28=\"\",\"-\",'Données ménage'!D28)","v":"-"},{"$f":"IF('Données ménage'!D29=\"\",\"-\",'Données ménage'!D29)","v":"-"},{"$f":"IF('Données ménage'!H27<>\"\",'Données ménage'!H27,\"-\")","v":"-"},{"$f":"IF('Données ménage'!D30=\"\",\"-\",'Données ménage'!D30)","v":"-"},{"$f":"IF('Données ménage'!G30=\"\",\"-\",'Données ménage'!G30)","v":"-"},{"$f":"IF('Données ménage'!G31=\"\",\"-\",'Données ménage'!G31)","v":"-"},{"$f":"IF('Données ménage'!D32=\"\",\"-\",'Données ménage'!D32)","v":"-"},{"$f":"IF('Données ménage'!D48=\"\",\"-\",'Données ménage'!D48)","v":"-"},{"$f":"IF('Données ménage'!H48=\"\",\"-\",'Données ménage'!H48)","v":"-"},{"$f":"IF(AND('Données ménage'!H45=\"\",'Données ménage'!H47=\"\"),\"-\",IF(('Données ménage'!H45+'Données ménage'!H47)>3000,('Données ménage'!H45+'Données ménage'!H47),\"-\"))","v":"-"},{"$f":"IF('Données ménage'!D51=\"\",\"-\",'Données ménage'!D51)","v":"-"},{"$f":"IF(AG2=\"Non\",\"Aucune aide\",IF(AND('Données ménage'!H51<>\"\",AG2=\"Oui\"),'Données ménage'!H51,\"-\"))","v":"-"},{"$f":"IF('Données ménage'!D52=\"Oui\",\"En bénéficie\",IF(AND('Données ménage'!D52=\"Non\",'Données ménage'!H52=\"Eligible\"),\"Eligible et n'en bénéficie pas\",IF(AND('Données ménage'!D52=\"Non\",'Données ménage'!H52=\"Non éligible\"),\"Non éligible\",IF(AND('Données ménage'!D52=\"\",'Données ménage'!H52=\"Eligible\"),\"Eligible\",\"Inconnu\"))))","v":"Inconnu"},{"$f":"IF('Données ménage'!H53=\"Non éligible\",\"Non éligible\",IF('Données ménage'!D52=\"Oui\",\"Non\",IF('Données ménage'!D53=\"oui\",\"En bénéficie\",IF(AND('Données ménage'!D53=\"non\",'Données ménage'!H53=\"Eligible\"),\"Eligible et n'en bénéficie pas\",\"Inconnu\"))))","v":"Inconnu"},{"$f":"'Données ménage'!H54","v":"Inconnu"},{"$f":"'Données ménage'!H55","v":"Inconnu"},{"$f":"IF('Données bâti'!E13<>\"\",'Données bâti'!E13,\"-\")","v":"-"},{"$f":"IF('Données bâti'!E14<>\"\",'Données bâti'!E14,\"-\")","v":"-"},{"$f":"IF('Données bâti'!E16=\"\",\"-\",'Données bâti'!E16)","v":"-"},{"$f":"IF('Données bâti'!E17=\"\",\"-\",'Données bâti'!E17)","v":"Collectif"},{"$f":"IF('Données bâti'!$M$13>0,'Données bâti'!$M$13,\"-\")","v":"> 50 lots"},{"$f":"IF(AND($AP$2=\"Collectif\",'Données bâti'!M11<>\"\"),'Données bâti'!M11,IF(AND($AP$2=\"Individuel\",'Données bâti'!H12<>\"\"),'Données bâti'!H12,\"-\"))","v":"-"},{"$f":"IF(AND(AP2=\"Collectif\",'Données bâti'!M12<>\"\"),'Données bâti'!M12,IF(AND(AP2=\"Individuel\",'Données bâti'!H13<>\"\"),'Données bâti'!H13,\"-\"))","v":"-"},{"$f":"IF('Données bâti'!I29=\"\",\"-\",IF('Données bâti'!I30=\"Oui\",\"Bon\",\"Dégradé\"))","v":"Bon"},{"$f":"IF('Données bâti'!I30<>\"\",'Données bâti'!I30,\"-\")","v":"Oui"},{"$f":"IF('Données bâti'!I31=\"\",\"-\",IF('Données bâti'!I31=\"oui\",\"Non\",\"Oui\"))","v":"Non"},{"$f":"IF(AND($AP$2=\"Individuel\",'Données bâti'!H14<>\"\"),'Données bâti'!H14,\"-\")","v":"-"},{"$f":"IF(AND($AP$2=\"Collectif\",'Données bâti'!M14<>\"\"),'Données bâti'!M14,IF(AND($AP$2=\"Individuel\",'Données bâti'!H15<>\"\"),'Données bâti'!H15,\"-\"))","v":"Oui"},{"$f":"IF(AND($AP$2=\"Collectif\",'Données bâti'!N15<>\"\"),'Données bâti'!N15,IF(AND($AP$2=\"Individuel\",'Données bâti'!J15<>\"\"),'Données bâti'!J15,\"-\"))","v":"< 5 ans"},{"$f":"IF(AND($AP$2=\"Collectif\",'Données bâti'!N16<>\"\"),'Données bâti'!N16,IF(AND($AP$2=\"Individuel\",'Données bâti'!J16<>\"\"),'Données bâti'!J16,\"-\"))","v":"Isolation murs"},{"$f":"IF(AND($AP$2=\"Collectif\",'Données bâti'!N17<>\"\"),'Données bâti'!N17,IF(AND($AP$2=\"Individuel\",'Données bâti'!J17<>\"\"),'Données bâti'!J17,\"\"))","v":"Changement fenêtres"},{"$f":"IF(AND($AP$2=\"Collectif\",'Données bâti'!N18<>\"\"),'Données bâti'!N18,IF(AND($AP$2=\"Individuel\",'Données bâti'!J18<>\"\"),'Données bâti'!J18,\"\"))","v":"Ravalement de façade"},{"$f":"IF('Données bâti'!I26<>\"\",'Données bâti'!I26,\"-\")","v":"Pluvieux/ humide"},{"$f":"IF('Données bâti'!I27<>\"\",'Données bâti'!I27,\"-\")","v":"-"},{"$f":"IF('Données bâti'!I28<>\"\",'Données bâti'!I28*100,\"-\")","v":93},{"$f":"IF('Données bâti'!G47<>\"\",'Données bâti'!G47,\"-\")","v":"-"},{"$f":"IF(AND(BD2<10,'Données bâti'!G46<>\"\"),'Données bâti'!G46,\"-\")","v":"-"},{"$f":"IF('Données bâti'!G48<>\"\",'Données bâti'!G48,\"-\")","v":60},{"$f":"IF('Données bâti'!G39<>\"\",'Données bâti'!G39,\"-\")","v":"-"},{"$f":"IF('Données bâti'!G40<>\"\",'Données bâti'!G40,\"-\")","v":"Normal"},{"$f":"IF('Données bâti'!G41<>\"\",'Données bâti'!G41,\"-\")","v":"-"},{"$f":"IF('Données bâti'!G42<>\"\",'Données bâti'!G42,\"-\")","v":"-"},{"$f":"IF('Consommation et énergies'!W17<>\"\",'Consommation et énergies'!W17,\"-\")","v":"Non"},{"$f":"IF('Données bâti'!G43<>\"\",'Données bâti'!G43,\"-\")","v":"-"},{"$f":"IF('Chauffage ventilation'!G94<>\"\",'Chauffage ventilation'!G94,\"-\")","v":"Non"},{"$f":"IF('Chauffage ventilation'!H94<>\"\",'Chauffage ventilation'!H94,\"-\")","v":"-"},{"$f":"IF('Données bâti'!G38<>\"\",'Données bâti'!G38,\"-\")","v":"-"},{"$f":"IF('Chauffage ventilation'!F25<>\"\",'Chauffage ventilation'!F25,\"-\")","v":"-"},{"$f":"IF('Chauffage ventilation'!F28<>\"\",'Chauffage ventilation'!F28,\"-\")","v":"-"},{"$f":"IF('Données bâti'!G60<>\"\",'Données bâti'!G60,\"-\")","v":"-"},{"$f":"IF('Données bâti'!G59=\"\",\"-\",'Données bâti'!G59)","v":"Non"},{"$f":"IF('Données bâti'!G45<>\"\",'Données bâti'!G45,\"-\")","v":"Bon"},{"$f":"IF('Chauffage ventilation'!F35<>\"\",'Chauffage ventilation'!F35,\"-\")","v":"-"},{"$f":"IF('Chauffage ventilation'!F37=\"Oui, en partie\",\"en partie simple vitrage\",IF('Chauffage ventilation'!F37=\"Non\",\"Double vitrage\",IF('Chauffage ventilation'!F37=\"Oui, toutes\",\"Simple vitrage\",\"-\")))","v":"Double vitrage"},{"$f":"IF('Chauffage ventilation'!F46<>\"\",'Chauffage ventilation'!F46,\"-\")","v":"-"},{"$f":"IF('Chauffage ventilation'!F58<>\"\",'Chauffage ventilation'!F58,\"-\")","v":"-"},{"$f":"IF('Chauffage ventilation'!F69<>\"\",'Chauffage ventilation'!F69,\"-\")","v":"Non"},{"$f":"IF('Données bâti'!C51=TRUE,'Données bâti'!D51,\"\")","v":""},{"$f":"IF('Données bâti'!C52=TRUE,'Données bâti'!D52,\"\")","v":""},{"$f":"IF('Données bâti'!C53=TRUE,'Données bâti'!D53,\"\")","v":""},{"$f":"IF('Données bâti'!C54=TRUE,'Données bâti'!D54,\"\")","v":""},{"$f":"IF('Données bâti'!C55=TRUE,'Données bâti'!D55,\"\")","v":""},{"$f":"IF('Données bâti'!C56=TRUE,'Données bâti'!D56,\"\")","v":""},{"$f":"IF('Données bâti'!C57=TRUE,'Données bâti'!D57,\"\")","v":""},{"$f":"IF('Données bâti'!H51=TRUE,'Données bâti'!I51,\"\")","v":""},{"$f":"IF('Données bâti'!H52=TRUE,'Données bâti'!I52,\"\")","v":""},{"$f":"IF('Données bâti'!H53=TRUE,'Données bâti'!I53,\"\")","v":""},{"$f":"IF('Données bâti'!H54=TRUE,'Données bâti'!I53,\"\")","v":""},{"$f":"IF('Données bâti'!H55=TRUE,'Données bâti'!I55,\"\")","v":""},{"$f":"IF('Données bâti'!H56=TRUE,'Données bâti'!I56,\"\")","v":""},{"$f":"IF('Données bâti'!H57=TRUE,'Données bâti'!I57,\"\")","v":""},{"$f":"IF(AND(CO2=\"\",CN2=\"\",CM2=\"\",CL2=\"\",CK2=\"\",CJ2=\"\",CI2=\"\",CH2=\"\",CG2=\"\",CF2=\"\",CE2=\"\",CD2=\"\",CC2=\"\",CB2=\"\"),\"Aucune\",\"\")","v":"Aucune"},{"$f":"IF('Consommation et énergies'!D8='Consommation et énergies'!AF101,\"Non répertoriée\",IF('Consommation et énergies'!D8<>\"\",'Consommation et énergies'!D8,\"-\"))","v":"-"},{"$f":"IF('Consommation et énergies'!D11='Consommation et énergies'!AF101,\"Non répertoriée\",IF('Consommation et énergies'!D11<>\"\",'Consommation et énergies'!D11,\"-\"))","v":"-"},{"$f":"IF('Consommation et énergies'!N11<>\"\",'Consommation et énergies'!N11,\"-\")","v":"-"},{"$f":"IF('Consommation et énergies'!D12='Consommation et énergies'!AF101,\"Non répertoriée\",IF('Consommation et énergies'!D12<>\"\",'Consommation et énergies'!D12,\"-\"))","v":"-"},{"$f":"IF('Consommation et énergies'!N8<>\"\",'Consommation et énergies'!N8,\"-\")","v":"-"},{"$f":"IF('Consommation et énergies'!N9<>\"\",'Consommation et énergies'!N9,\"-\")","v":"-"},{"$f":"IF('Chauffage ventilation'!G95=\"\",\"-\",IF('Chauffage ventilation'!G95=\"Oui\",\"Non\",\"Oui\"))","v":"Oui"},{"$f":"IF('Consommation et énergies'!D10<>\"\",'Consommation et énergies'!D10,\"-\")","v":"-"},{"$f":"IF('Chauffage ventilation'!L70<>\"\",'Chauffage ventilation'!L70,\"-\")","v":"-"},{"$f":"IF('Consommation et énergies'!N10<>\"\",'Consommation et énergies'!N10,\"-\")","v":"-"},{"$f":"IF('Consommation et énergies'!D14<>\"\",'Consommation et énergies'!D14,\"-\")","v":"-"},{"$f":"IF('Consommation et énergies'!N15<>\"\",'Consommation et énergies'!N15,\"-\")","v":"-"},{"$f":"IF('Consommation et énergies'!N14='Consommation et énergies'!AN101,\"Non répertorié\",IF('Consommation et énergies'!N14<>\"\",'Consommation et énergies'!N14,\"-\"))","v":"-"},{"$f":"IF('Consommation et énergies'!W14<>\"\",'Consommation et énergies'!W14,\"-\")","v":"-"},{"$f":"IF('Consommation et énergies'!W15<>\"\",'Consommation et énergies'!W15,\"-\")","v":"-"},{"$f":"IF(Eau!E13<>\"\",Eau!E13,\"-\")","v":"-"},{"$f":"IF(Eau!L12=\"\",\"-\",Eau!L12)","v":"-"},{"$f":"IF(Eau!D66=Eau!AG90,\"Oui\",IF(Eau!D67=Eau!AG90,\"Oui\",IF(Eau!D68=Eau!AG90,\"Oui\",\"-\")))","v":"-"},{"$f":"IF(Eau!F62<>\"\",Eau!F62,\"-\")","v":"Non"},{"$f":"'Données ménage'!U100","v":"Non éligible"},{"$f":"IF('Consommation et énergies'!W8<>\"\",'Consommation et énergies'!W8,\"-\")","v":"-"},{"$f":"IF('Consommation et énergies'!P68<>\"\",'Consommation et énergies'!P68,\"-\")","v":"-"},{"$f":"IF('Consommation et énergies'!W66<>\"\",'Consommation et énergies'!W66,\"-\")","v":"-"},{"$f":"IF('Consommation et énergies'!M66<>\"\",'Consommation et énergies'!M66,\"-\")","v":"-"},{"$f":"IF('Consommation et énergies'!W11<>\"\",'Consommation et énergies'!W11,\"-\")","v":"-"},{"$f":"IF('Consommation et énergies'!D61<>\"\",'Consommation et énergies'!D61,\"-\")","v":"Individuel"},{"$f":"IF('Consommation et énergies'!P70<>\"\",'Consommation et énergies'!P70,\"-\")","v":"-"},{"$f":"IF('Consommation et énergies'!P71<>\"\",'Consommation et énergies'!P71,\"-\")","v":"-"},{"$f":"IF('Consommation et énergies'!D26<>\"\",'Consommation et énergies'!D26,\"-\")","v":"-"},{"$f":"IF('Consommation et énergies'!N26<>\"\",'Consommation et énergies'!N26,\"-\")","v":"-"},{"$f":"IF('Consommation et énergies'!X26<>\"\",'Consommation et énergies'!X26,\"-\")","v":"-"},{"$f":"IF('Consommation et énergies'!D28<>\"\",'Consommation et énergies'!D28,\"-\")","v":"-"},{"$f":"IF('Consommation et énergies'!P28='Consommation et énergies'!AX97,\"Non répertorié\",IF('Consommation et énergies'!P28<>\"\",'Consommation et énergies'!P28,\"-\"))","v":"-"},{"$f":"IF('Consommation et énergies'!P29<>\"\",'Consommation et énergies'!P29,\"-\")","v":"-"},{"$f":"IF('Consommation et énergies'!D8<>\"\",'Consommation et énergies'!AF155,\"-\")","v":"-"},{"$f":"IF(DY2<>\"-\",'Consommation et énergies'!AF156,\"-\")","v":"-"},{"$f":"IF(AND('Consommation et énergies'!P30<>\"\",'Consommation et énergies'!P30<>\"Renseigner les consos\",'Consommation et énergies'!P30<>\"Indiquer une période\",'Consommation et énergies'!P30<>\"Renseigner les cases jaunes\"),'Consommation et énergies'!P30,\"-\")","v":"-"},{"$f":"IF('Consommation et énergies'!Z30<>0,'Consommation et énergies'!Z30,\"-\")","v":"-"},{"$f":"IF(EB2<>\"-\",'Consommation et énergies'!Z31,\"-\")","v":"-"},{"$f":"IF(EG2=\"-\",\"-\",IF('Consommation et énergies'!D45<>\"\",'Consommation et énergies'!D45,\"-\"))","v":"-"},{"$f":"IF('Consommation et énergies'!N43<>\"\",'Consommation et énergies'!N43,\"-\")","v":"-"},{"$f":"IF('Consommation et énergies'!X43<>\"\",'Consommation et énergies'!X43,\"-\")","v":"-"},{"$f":"IF('Consommation et énergies'!D43<>\"\",'Consommation et énergies'!D43,\"-\")","v":"-"},{"$f":"IF('Consommation et énergies'!O45<>\"\",'Consommation et énergies'!O45,\"-\")","v":"-"},{"$f":"IF('Consommation et énergies'!O48<>\"\",'Consommation et énergies'!O48,\"-\")","v":"-"},{"$f":"IF('Consommation et énergies'!O46='Consommation et énergies'!AX97,\"Non répertorié\",IF('Consommation et énergies'!O46<>\"\",'Consommation et énergies'!O46,\"-\"))","v":"-"},{"$f":"IF('Consommation et énergies'!O47<>\"\",'Consommation et énergies'!O47,\"-\")","v":"-"},{"$f":"IF(AND('Consommation et énergies'!O49<>\"\",'Consommation et énergies'!O49<>\"Renseigner les consos\",'Consommation et énergies'!O49<>\"Indiquer une période\",'Consommation et énergies'!O49<>\"Renseigner les cases jaunes\"),'Consommation et énergies'!O49,\"-\")","v":"-"},{"$f":"IF('Consommation et énergies'!Z47<>0,'Consommation et énergies'!Z47,\"-\")","v":"-"},{"$f":"IF(Indicateurs!EM2<>\"-\",'Consommation et énergies'!Z48,\"-\")","v":"-"},{"$f":"IF(AF2=\"-\",\"-\",IF(AND(E68<>\"-\",AF2>3000),(F68/AF2)*100,\"-\"))","v":"-"},{"$f":"IF(AND('Chauffage ventilation'!I21<>\"\",'Données bâti'!E14>0),'Chauffage ventilation'!I21/'Données bâti'!E14,IF(AND('Chauffage ventilation'!K21<>\"\",'Données bâti'!E14>0),'Chauffage ventilation'!K21/'Données bâti'!E14,\"-\"))","v":"-"},{"$f":"IF(AND('Chauffage ventilation'!I21=\"\",'Chauffage ventilation'!K21=\"\"),\"\",IF('Chauffage ventilation'!K21=\"\",\"(réel)\",\"(théorique)\"))","v":"(théorique)"},{"$f":"H68","v":"Non mesurable"},{"$f":"IF('Consommation et énergies'!P59<>\"\",'Consommation et énergies'!P59,\"-\")","v":"-"},{"$f":"'Consommation et énergies'!Y60","v":"-"},{"$f":"IF(Froid!F8=\"Non\",\"Non équipé\",IF(Froid!F8=\"\",\"-\",IF(Froid!E13=\"oui\",\"Moins de 5 ans\",IF(AND(Froid!E13=\"non\",Froid!F13=Froid!X91),Froid!G13,IF(AND(Froid!E13=\"non\",Froid!F13=Froid!X92),\"Plus de 5 ans\",\"-\")))))","v":"-"},{"$f":"IF(Froid!N13<>\"\",\"réfrigérateur\",\"\")","v":""},{"$f":"IF(Froid!F33=\"Non\",\"Non équipé\",IF(Froid!F33=\"\",\"-\",IF(Froid!E38=\"Oui\",\"Moins de 5 ans\",IF(AND(Froid!E38=\"non\",Froid!F38=Froid!Y38),Froid!G38,IF(AND(Froid!E38=\"non\",Froid!F38=Froid!Z38),\"Plus de 5 ans\",\"-\")))))","v":"-"},{"$f":"IF(Froid!N38<>\"\",\"congélateur\",\"\")","v":""},{"$f":"IF(Froid!F58=\"Non\",\"Non équipé\",IF(Froid!F58=\"\",\"-\",IF(Froid!E63=\"Oui\",\"Moins de 5 ans\",IF(AND(Froid!E63=\"non\",Froid!F63=Froid!Y63),Froid!G63,IF(AND(Froid!E63=\"non\",Froid!F63=Froid!Z63),\"Plus de 5 ans\",\"-\")))))","v":"-"},{"$f":"IF(Froid!N63<>\"\",\"combiné froid\",\"\")","v":""},{"$f":"IF('Lavage  sechage'!E9=\"Non\",\"Non équipé\",IF('Lavage  sechage'!E9=\"\",\"-\",IF('Lavage  sechage'!D13=\"Oui\",\"Moins de 5 ans\",'Lavage  sechage'!F13)))","v":"-"},{"$f":"IF('Lavage  sechage'!J13<>\"\",\"lave-linge\",\"\")","v":""},{"$f":"IF('Lavage  sechage'!E35=\"Non\",\"Non équipé\",IF('Lavage  sechage'!E35=\"\",\"-\",IF('Lavage  sechage'!D39=\"Oui\",\"Moins de 5 ans\",'Lavage  sechage'!F39)))","v":"-"},{"$f":"IF('Lavage  sechage'!J39<>\"\",\"Sèche-linge\",\"\")","v":""},{"$f":"IF('Lavage  sechage'!E57=\"Non\",\"Non équipé\",IF('Lavage  sechage'!E57=\"\",\"-\",IF('Lavage  sechage'!D61=\"Oui\",\"Moins de 5 ans\",'Lavage  sechage'!F61)))","v":"-"},{"$f":"IF('Lavage  sechage'!J61<>\"\",\"lave-vaisselle\",\"\")","v":""},{"$f":"IF(AND(FF2=\"\",FD2=\"\",FB2=\"\",EZ2=\"\",EX2=\"\",EV2=\"\"),\"Aucun\",\"\")","v":"Aucun"},{"$f":"IF(Veilles!D9<>\"\",Veilles!D9,\"-\")","v":"-"},{"$f":"IF(Eclairage!J14<>\"\",Eclairage!J14,\"-\")","v":"-"},{"$f":"IF(Eclairage!F10=\"\",\"-\",IF(Eclairage!F10=Eclairage!U39,\"Non\",IF(Eclairage!F10=Eclairage!U40,\"Oui, en partie\",IF(Eclairage!F10=Eclairage!U41,\"Oui, toutes\"))))","v":"-"},{"$f":"IF(Veilles!D10<>\"\",Veilles!D10,\"-\")","v":"-"},{"$f":"IF('liste preconisations'!A5=\"\",\"\",IF(OR('liste preconisations'!A5=\"Total général\",'liste preconisations'!A5=\"(vide)\"),\"\",'liste preconisations'!A5))","v":""},{"$f":"IF('liste preconisations'!A6=\"\",\"\",IF(OR('liste preconisations'!A6=\"Total général\",'liste preconisations'!A6=\"(vide)\"),\"\",'liste preconisations'!A6))","v":""},{"$f":"IF('liste preconisations'!A7=\"\",\"\",IF(OR('liste preconisations'!A7=\"Total général\",'liste preconisations'!A7=\"(vide)\"),\"\",'liste preconisations'!A7))","v":""},{"$f":"IF('liste preconisations'!A8=\"\",\"\",IF(OR('liste preconisations'!A8=\"Total général\",'liste preconisations'!A8=\"(vide)\"),\"\",'liste preconisations'!A8))","v":""},{"$f":"IF('liste preconisations'!A9=\"\",\"\",IF(OR('liste preconisations'!A9=\"Total général\",'liste preconisations'!A9=\"(vide)\"),\"\",'liste preconisations'!A9))","v":""},{"$f":"IF('liste preconisations'!A10=\"\",\"\",IF(OR('liste preconisations'!A10=\"Total général\",'liste preconisations'!A10=\"(vide)\"),\"\",'liste preconisations'!A10))","v":""},{"$f":"IF('liste preconisations'!A11=\"\",\"\",IF(OR('liste preconisations'!A11=\"Total général\",'liste preconisations'!A11=\"(vide)\"),\"\",'liste preconisations'!A11))","v":""},{"$f":"IF('liste preconisations'!A12=\"\",\"\",IF(OR('liste preconisations'!A12=\"Total général\",'liste preconisations'!A12=\"(vide)\"),\"\",'liste preconisations'!A12))","v":""},{"$f":"IF('liste preconisations'!D5=\"\",\"\",IF(OR('liste preconisations'!D5=\"Total général\",'liste preconisations'!D5=\"(vide)\"),\"\",'liste preconisations'!D5))","v":""},{"$f":"IF('liste preconisations'!D6=\"\",\"\",IF(OR('liste preconisations'!D6=\"Total général\",'liste preconisations'!D6=\"(vide)\"),\"\",'liste preconisations'!D6))","v":""},{"$f":"IF('liste preconisations'!D7=\"\",\"\",IF(OR('liste preconisations'!D7=\"Total général\",'liste preconisations'!D7=\"(vide)\"),\"\",'liste preconisations'!D7))","v":""},{"$f":"IF('liste preconisations'!D8=\"\",\"\",IF(OR('liste preconisations'!D8=\"Total général\",'liste preconisations'!D8=\"(vide)\"),\"\",'liste preconisations'!D8))","v":""},{"$f":"IF('liste preconisations'!D9=\"\",\"\",IF(OR('liste preconisations'!D9=\"Total général\",'liste preconisations'!D9=\"(vide)\"),\"\",'liste preconisations'!D9))","v":""},{"$f":"IF('liste preconisations'!G5=\"\",\"\",IF(OR('liste preconisations'!G5=\"Total général\",'liste preconisations'!G5=\"(vide)\"),\"\",'liste preconisations'!G5))","v":""},{"$f":"IF('liste preconisations'!G6=\"\",\"\",IF(OR('liste preconisations'!G6=\"Total général\",'liste preconisations'!G6=\"(vide)\"),\"\",'liste preconisations'!G6))","v":""},{"$f":"IF('liste preconisations'!G7=\"\",\"\",IF(OR('liste preconisations'!G7=\"Total général\",'liste preconisations'!G7=\"(vide)\"),\"\",'liste preconisations'!G7))","v":""},{"$f":"IF('liste preconisations'!G8=\"\",\"\",IF(OR('liste preconisations'!G8=\"Total général\",'liste preconisations'!G8=\"(vide)\"),\"\",'liste preconisations'!G8))","v":""},{"$f":"IF('liste preconisations'!G9=\"\",\"\",IF(OR('liste preconisations'!G9=\"Total général\",'liste preconisations'!G9=\"(vide)\"),\"\",'liste preconisations'!G9))","v":""},{"$f":"IF('liste preconisations'!G10=\"\",\"\",IF(OR('liste preconisations'!G10=\"Total général\",'liste preconisations'!G10=\"(vide)\"),\"\",'liste preconisations'!G10))","v":""},{"$f":"IF('liste preconisations'!G11=\"\",\"\",IF(OR('liste preconisations'!G11=\"Total général\",'liste preconisations'!G11=\"(vide)\"),\"\",'liste preconisations'!G11))","v":""},{"$f":"IF('liste preconisations'!J5=\"\",\"\",IF(OR('liste preconisations'!J5=\"Total général\",'liste preconisations'!J5=\"(vide)\"),\"\",'liste preconisations'!J5))","v":""},{"$f":"IF('liste preconisations'!J6=\"\",\"\",IF(OR('liste preconisations'!J6=\"Total général\",'liste preconisations'!J6=\"(vide)\"),\"\",'liste preconisations'!J6))","v":""},{"$f":"IF('liste preconisations'!J7=\"\",\"\",IF(OR('liste preconisations'!J7=\"Total général\",'liste preconisations'!J7=\"(vide)\"),\"\",'liste preconisations'!J7))","v":""},{"$f":"IF('liste preconisations'!J8=\"\",\"\",IF(OR('liste preconisations'!J8=\"Total général\",'liste preconisations'!J8=\"(vide)\"),\"\",'liste preconisations'!J8))","v":""},{"$f":"IF('liste preconisations'!J9=\"\",\"\",IF(OR('liste preconisations'!J9=\"Total général\",'liste preconisations'!J9=\"(vide)\"),\"\",'liste preconisations'!J9))","v":""},{"$f":"IF('liste preconisations'!M5=\"\",\"\",IF(OR('liste preconisations'!M5=\"Total général\",'liste preconisations'!M5=\"(vide)\"),\"\",'liste preconisations'!M5))","v":""},{"$f":"IF('liste preconisations'!M6=\"\",\"\",IF(OR('liste preconisations'!M6=\"Total général\",'liste preconisations'!M6=\"(vide)\"),\"\",'liste preconisations'!M6))","v":""},{"$f":"IF('liste preconisations'!M7=\"\",\"\",IF(OR('liste preconisations'!M7=\"Total général\",'liste preconisations'!M7=\"(vide)\"),\"\",'liste preconisations'!M7))","v":""},{"$f":"IF('liste preconisations'!M8=\"\",\"\",IF(OR('liste preconisations'!M8=\"Total général\",'liste preconisations'!M8=\"(vide)\"),\"\",'liste preconisations'!M8))","v":""},{"$f":"IF('liste preconisations'!M9=\"\",\"\",IF(OR('liste preconisations'!M9=\"Total général\",'liste preconisations'!M9=\"(vide)\"),\"\",'liste preconisations'!M9))","v":""},{"$f":"IF('liste preconisations'!P5=\"\",\"\",IF(OR('liste preconisations'!P5=\"Total général\",'liste preconisations'!P5=\"(vide)\"),\"\",'liste preconisations'!P5))","v":""},{"$f":"IF('liste preconisations'!P6=\"\",\"\",IF(OR('liste preconisations'!P6=\"Total général\",'liste preconisations'!P6=\"(vide)\"),\"\",'liste preconisations'!P6))","v":""},{"$f":"IF('liste preconisations'!P7=\"\",\"\",IF(OR('liste preconisations'!P7=\"Total général\",'liste preconisations'!P7=\"(vide)\"),\"\",'liste preconisations'!P7))","v":""},{"$f":"IF('liste preconisations'!P8=\"\",\"\",IF(OR('liste preconisations'!P8=\"Total général\",'liste preconisations'!P8=\"(vide)\"),\"\",'liste preconisations'!P8))","v":""},{"$f":"IF('liste preconisations'!P9=\"\",\"\",IF(OR('liste preconisations'!P9=\"Total général\",'liste preconisations'!P9=\"(vide)\"),\"\",'liste preconisations'!P9))","v":""},{"$f":"IF('liste preconisations'!P10=\"\",\"\",IF(OR('liste preconisations'!P10=\"Total général\",'liste preconisations'!P10=\"(vide)\"),\"\",'liste preconisations'!P10))","v":""},{"$f":"IF('liste preconisations'!P11=\"\",\"\",IF(OR('liste preconisations'!P11=\"Total général\",'liste preconisations'!P11=\"(vide)\"),\"\",'liste preconisations'!P11))","v":""},{"$f":"IF('liste preconisations'!P12=\"\",\"\",IF(OR('liste preconisations'!P12=\"Total général\",'liste preconisations'!P12=\"(vide)\"),\"\",'liste preconisations'!P12))","v":""},{"$f":"IF('liste preconisations'!P13=\"\",\"\",IF(OR('liste preconisations'!P13=\"Total général\",'liste preconisations'!P13=\"(vide)\"),\"\",'liste preconisations'!P13))","v":""},{"$f":"'Recap visite'!H37","v":0},{"$f":"SUM('Recap visite'!I7:I14)-SUM('Recap visite'!M7:M14)","v":0},{"$f":"SUM('Recap visite'!K7:K14)-SUM('Recap visite'!N7:N14)","v":0},{"$f":"SUM('Recap visite'!I19:I23)-SUM('Recap visite'!M19:M23)","v":0},{"$f":"SUM('Recap visite'!J19:J23)-SUM('Recap visite'!L19:L23)","v":0},{"$f":"SUM('Recap visite'!K19:K23)-SUM('Recap visite'!N19:N23)","v":0},{"$f":"SUM('Recap visite'!I28:I34)-SUM('Recap visite'!M28:M34)","v":0},{"$f":"SUM('Recap visite'!J28:J34)-SUM('Recap visite'!L28:L34)","v":0},{"$f":"SUM('Recap visite'!K28:K34)-SUM('Recap visite'!N28:N34)","v":0},{"$f":"SUM(GZ2,HB2,HE2)","v":0},{"$f":"SUM(HC2,HF2)","v":0},{"$f":"SUM(HA2,HD2,HG2)","v":0},{"$f":"SUM('Recap visite'!E7:E14,'Recap visite'!E19:E23,'Recap visite'!E28:E34)","v":0},{"$f":"'Recap visite'!P37","v":0},{"$f":"SUM('Recap visite'!M7:M14)","v":0},{"$f":"SUM('Recap visite'!N7:N14)","v":0},{"$f":"'Recap visite'!Q15","v":0},{"$f":"SUM('Recap visite'!M19:M23)","v":0},{"$f":"SUM('Recap visite'!L19:L23)","v":0},{"$f":"SUM('Recap visite'!N19:N23)","v":0},{"$f":"'Recap visite'!Q24","v":0},{"$f":"SUM('Recap visite'!M28:M34)","v":0},{"$f":"SUM('Recap visite'!N28:N34)","v":0},{"$f":"'Recap visite'!Q35","v":0},{"$f":"'Recap visite'!M37","v":0},{"$f":"'Recap visite'!L37","v":0},{"$f":"'Recap visite'!N37","v":0},{"$f":"'Recap visite'!Q37","v":0},{"$f":"SUM('Recap visite'!K7:K11)","v":0},{"$f":"SUM('Recap visite'!K19:K23)","v":0},{"$f":"SUM('Recap visite'!K28:K34)","v":0},{"$f":"'Recap visite'!I37","v":0},{"$f":"'Recap visite'!J37","v":0},{"$f":"'Recap visite'!K37","v":0},{"$f":"'Recap visite'!R37","v":0},{"$f":"SUM('Recap visite'!I42:I46)","v":0},{"$f":"SUM('Recap visite'!K42:K46)","v":0},{"$f":"SUM('Recap visite'!I51:I55)","v":0},{"$f":"SUM('Recap visite'!J51:J55)","v":0},{"$f":"SUM('Recap visite'!K51:K55)","v":0},{"$f":"SUM('Recap visite'!I60:I68)","v":0},{"$f":"SUM('Recap visite'!J60:J68)","v":0},{"$f":"SUM('Recap visite'!K60:K68)","v":0},{"$f":"SUM('Recap visite'!I42:I46,'Recap visite'!I51:I55,'Recap visite'!I60:I68)","v":0},{"$f":"SUM('Recap visite'!J42:J46,'Recap visite'!J51:J55,'Recap visite'!J60:J68)","v":0},{"$f":"SUM('Recap visite'!K42:K46,'Recap visite'!K51:K55,'Recap visite'!K60:K68)","v":0},{"$f":"'Recap visite'!R70","v":0},{"$f":"ID2+IP2","v":0},{"$f":"IE2+IQ2","v":0},{"$f":"IF2+IR2","v":0},{"$f":"'Recap visite'!R70+'Recap visite'!R37","v":0},{"$f":"IF(AND('Consommation et énergies'!W8=\"Collectif\",'Consommation et énergies'!D61=\"Collectif\"),\"Attention, vos charges d'eau et de chauffage étant collectives, les économies estimées sur les consommations de chauffage et d'eau sont valables à l'échelle de l'immeuble et non du logement. Elles sont indiquées à titre informatif\",IF(AND('Consommation et énergies'!W8=\"Collectif\",'Consommation et énergies'!D61<>\"Collectif\"),\"Attention, vos charges de chauffage étant réparties collectivement, les économies éstimées sur les consommations de chauffage sont valables à l'échelle de l'immeuble et non du logement. Elles sont indiquées à titre informatif\",IF(AND('Consommation et énergies'!W8<>\"Collectif\",'Consommation et énergies'!D61=\"Collectif\"),\"Attention, vos charges d'eau froide étant réparties collectivement, les économies éstimées sur les consommations d'eau sont valables à l'échelle de l'immeuble et non du logement. Elles sont indiquées à titre informatif\",\"\")))","v":""},{"$f":"IF(FL2=\"\",\"\",IF(VLOOKUP(FL2,'Recap visite'!$C$7:$P$14,3,0)>0,\"(\"&VLOOKUP(FL2,'Recap visite'!$C$7:$P$14,3,0)&\" équipement(s) offert(s))\",\"\"))","v":""},{"$f":"IF(FM2=\"\",\"\",IF(VLOOKUP(FM2,'Recap visite'!$C$7:$P$14,3,0)>0,\"(\"&VLOOKUP(FM2,'Recap visite'!$C$7:$P$14,3,0)&\" équipement(s) offert(s))\",\"\"))","v":""},{"$f":"IF(FN2=\"\",\"\",IF(VLOOKUP(FN2,'Recap visite'!$C$7:$P$14,3,0)>0,\"(\"&VLOOKUP(FN2,'Recap visite'!$C$7:$P$14,3,0)&\" équipement(s) offert(s))\",\"\"))","v":""},{"$f":"IF(FO2=\"\",\"\",IF(VLOOKUP(FO2,'Recap visite'!$C$7:$P$14,3,0)>0,\"(\"&VLOOKUP(FO2,'Recap visite'!$C$7:$P$14,3,0)&\" équipement(s) offert(s))\",\"\"))","v":""},{"$f":"IF(FP2=\"\",\"\",IF(VLOOKUP(FP2,'Recap visite'!$C$7:$P$14,3,0)>0,\"(\"&VLOOKUP(FP2,'Recap visite'!$C$7:$P$14,3,0)&\" équipement(s) offert(s))\",\"\"))","v":""},{"$f":"IF(FQ2=\"\",\"\",IF(VLOOKUP(FQ2,'Recap visite'!$C$7:$P$14,3,0)>0,\"(\"&VLOOKUP(FQ2,'Recap visite'!$C$7:$P$14,3,0)&\" équipement(s) offert(s))\",\"\"))","v":""},{"$f":"IF(FR2=\"\",\"\",IF(VLOOKUP(FR2,'Recap visite'!$C$7:$P$14,3,0)>0,\"(\"&VLOOKUP(FR2,'Recap visite'!$C$7:$P$14,3,0)&\" équipement(s) offert(s))\",\"\"))","v":""},{"$f":"IF(FS2=\"\",\"\",IF(VLOOKUP(FS2,'Recap visite'!$C$7:$P$14,3,0)>0,\"(\"&VLOOKUP(FS2,'Recap visite'!$C$7:$P$14,3,0)&\" équipement(s) offert(s))\",\"\"))","v":""},{"$f":"IF(FT2=\"\",\"\",IF(VLOOKUP(FT2,'Recap visite'!$C$19:$P$23,3,0)>0,\"(\"&VLOOKUP(FT2,'Recap visite'!$C$19:$P$23,3,0)&\" équipement(s) offert(s))\",\"\"))","v":""},{"$f":"IF(FU2=\"\",\"\",IF(VLOOKUP(FU2,'Recap visite'!$C$19:$P$23,3,0)>0,\"(\"&VLOOKUP(FU2,'Recap visite'!$C$19:$P$23,3,0)&\" équipement(s) offert(s))\",\"\"))","v":""},{"$f":"IF(FV2=\"\",\"\",IF(VLOOKUP(FV2,'Recap visite'!$C$19:$P$23,3,0)>0,\"(\"&VLOOKUP(FV2,'Recap visite'!$C$19:$P$23,3,0)&\" équipement(s) offert(s))\",\"\"))","v":""},{"$f":"IF(FW2=\"\",\"\",IF(VLOOKUP(FW2,'Recap visite'!$C$19:$P$23,3,0)>0,\"(\"&VLOOKUP(FW2,'Recap visite'!$C$19:$P$23,3,0)&\" équipement(s) offert(s))\",\"\"))","v":""},{"$f":"IF(FX2=\"\",\"\",IF(VLOOKUP(FX2,'Recap visite'!$C$19:$P$23,3,0)>0,\"(\"&VLOOKUP(FX2,'Recap visite'!$C$19:$P$23,3,0)&\" équipement(s) offert(s))\",\"\"))","v":""},{"$f":"IF(FY2=\"\",\"\",IF(VLOOKUP(FY2,'Recap visite'!$C$28:$P$34,3,0)>0,\"(\"&VLOOKUP(FY2,'Recap visite'!$C$28:$P$34,3,0)&\" équipement(s) offert(s))\",\"\"))","v":""},{"$f":"IF(FZ2=\"\",\"\",IF(VLOOKUP(FZ2,'Recap visite'!$C$28:$P$34,3,0)>0,\"(\"&VLOOKUP(FZ2,'Recap visite'!$C$28:$P$34,3,0)&\" équipement(s) offert(s))\",\"\"))","v":""},{"$f":"IF(GA2=\"\",\"\",IF(VLOOKUP(GA2,'Recap visite'!$C$28:$P$34,3,0)>0,\"(\"&VLOOKUP(GA2,'Recap visite'!$C$28:$P$34,3,0)&\" équipement(s) offert(s))\",\"\"))","v":""},{"$f":"IF(GB2=\"\",\"\",IF(VLOOKUP(GB2,'Recap visite'!$C$28:$P$34,3,0)>0,\"(\"&VLOOKUP(GB2,'Recap visite'!$C$28:$P$34,3,0)&\" équipement(s) offert(s))\",\"\"))","v":""},{"$f":"IF(GC2=\"\",\"\",IF(VLOOKUP(GC2,'Recap visite'!$C$28:$P$34,3,0)>0,\"(\"&VLOOKUP(GC2,'Recap visite'!$C$28:$P$34,3,0)&\" équipement(s) offert(s))\",\"\"))","v":""},{"$f":"IF(GD2=\"\",\"\",IF(VLOOKUP(GD2,'Recap visite'!$C$28:$P$34,3,0)>0,\"(\"&VLOOKUP(GD2,'Recap visite'!$C$28:$P$34,3,0)&\" équipement(s) offert(s))\",\"\"))","v":""},{"$f":"IF(GE2=\"\",\"\",IF(VLOOKUP(GE2,'Recap visite'!$C$28:$P$34,3,0)>0,\"(\"&VLOOKUP(GE2,'Recap visite'!$C$28:$P$34,3,0)&\" équipement(s) offert(s))\",\"\"))","v":""},{"$f":"IF(Accompagnement!$N$17=1,Accompagnement!C16,\"\")","v":""},{"$f":"IF(Accompagnement!$N$17=2,Accompagnement!C17,\"\")","v":""},{"$f":"IF(Accompagnement!$N$17=3,Accompagnement!C18,\"\")","v":""},{"$f":"IF(Accompagnement!N8=TRUE,Accompagnement!C8,\"\")","v":""},{"$f":"IF(Accompagnement!N9=TRUE,Accompagnement!C9,\"\")","v":""},{"$f":"IF(Accompagnement!N10=TRUE,Accompagnement!C10,\"\")","v":""},{"$f":"IF(Accompagnement!N11=TRUE,Accompagnement!C11,\"\")","v":""},{"$f":"IF(Accompagnement!N12=TRUE,Accompagnement!C12,\"\")","v":""},{"$f":"IF(Accompagnement!N13=TRUE,Accompagnement!D13,\"\")","v":""},{"$f":"IF(Accompagnement!N25=TRUE,Accompagnement!C25,\"\")","v":""},{"$f":"IF(Accompagnement!N26=TRUE,\"Opérateur travaux:\"&\" \"&Accompagnement!E26,\"\")","v":""},{"$f":"IF(Accompagnement!N27=TRUE,Accompagnement!C27,\"\")","v":""},{"$f":"IF(Accompagnement!N28=TRUE,Accompagnement!C28,\"\")","v":""},{"$f":"IF(Accompagnement!N29=TRUE,Accompagnement!C29,\"\")","v":""},{"$f":"IF(Accompagnement!N30=TRUE,Accompagnement!D30,\"\")","v":""},{"$f":"IF(Accompagnement!N32=TRUE,\"oui\",\"non\")","v":"non"}]
[]
[]
[]
[]
[]
[]
[]
[]
[]
[]
[]
[]
[]
[]
[]
[]
[]
[]
[]
[]
[]
[]
[]
[]
[]
[]
[]
[]
[]
[]
[]
[]
[]
[null,"Données à ne pas modifier"]
[null,"Récap consos théoriques",null,"kWh","m3","€"]
[null,"Eau froide",null,null,{"$f":"Eau!X171","v":{"$error":"#N/A"}},{"$f":"E38*Eau!L9","v":{"$error":"#N/A"}}]
[null,"Eau chaude",null,{"$f":"Eau!X173","v":{"$error":"#N/A"}},{"$f":"Eau!X172","v":{"$error":"#N/A"}},{"$f":"E39*Eau!L10","v":{"$error":"#N/A"}}]
[null,"Chauffage",null,{"$f":"IF('Chauffage ventilation'!I21=\"\",'Chauffage ventilation'!K21,'Chauffage ventilation'!I21)","v":"INDIQUER LA SURFACE DU LOGEMENT, LA HAUTEUR SOUS PLAFOND ET L'ANNEE DE CONSTRUCTION DANS L'ONGLET 'Données bâti'"},null,{"$f":"D40*'Consommation et énergies'!AF159","v":{"$error":"#VALUE!"}}]
[null,"Cuisson",null,{"$f":"VLOOKUP('Données ménage'!D27,Veilles!Q64:U78,5,0)","v":{"$error":"#N/A"}},null,{"$f":"D41*VLOOKUP('Consommation et énergies'!D12,'Consommation et énergies'!AF111:AG121,2,0)","v":{"$error":"#N/A"}}]
[null,"Electricité spécifique",null,{"$f":"SUM(Veilles!X63:X66)-Veilles!Y66","v":{"$error":"#N/A"}},null,{"$f":"Q22*'Consommation et énergies'!Z28","v":0}]
[null,"Total",null,{"$f":"SUM(D38:D42)","v":{"$error":"#N/A"}},null,{"$f":"SUM(F38:F42)","v":{"$error":"#N/A"}}]
[]
[null,"Conso electrique",null,{"$f":"Veilles!X69","v":{"$error":"#N/A"}}]
[null,"Chauffage inclus",{"$f":"IF(OR('Consommation et énergies'!AF155=\"Electricité spécifique + chauffage + ECS\",'Consommation et énergies'!AF155=\"Electricité spécifique + chauffage\"),\"oui\",\"non\")","v":"non"}]
[null,"Hors chauffage",{"$f":"IF(C46=\"oui\",D45-D40,0)","v":0}]
[null,"ECS inclus",{"$f":"IF('Consommation et énergies'!D11='Consommation et énergies'!AF95,\"Oui\",\"Non\")","v":"Non"}]
[null,"Hors ECS",{"$f":"IF(C48=\"Oui\",D45-D39,0)","v":0}]
[]
[null,"Electricité (chauffage)",null,{"$f":"'MAJ Données'!C121","v":180}]
[null,"Electricité (ECS)",null,{"$f":"'MAJ Données'!C122","v":40}]
[null,"Electricité spécifique",null,{"$f":"'MAJ Données'!C123","v":84}]
[null,"Gaz naturel",null,{"$f":"'MAJ Données'!C124","v":234}]
[null,"Gaz propane en citerne",null,{"$f":"'MAJ Données'!C125","v":274}]
[null,"Gaz bouteille",null,{"$f":"'MAJ Données'!C126","v":274}]
[null,"Fioul domestique",null,{"$f":"'MAJ Données'!C127","v":300}]
[null,"Réseau de chaleur",null,{"$f":"'MAJ Données'!C128","v":160}]
[null,"Bois (granulés)",null,{"$f":"'MAJ Données'!C129","v":13}]
[null,"Bois (bûches)",null,{"$f":"'MAJ Données'!C130","v":13}]
[null,"Aucune"]
[null,"Autre"]
[null,"Inconnue"]
[null,"Chauffage d'appoint uniquement"]
[]
[null,"Evaluation consommation"]
[null,"Conso chauffage","Conso ECS","Conso Elec","Conso totale kWh","Conso totale €","Moyenne théorique (kWh)","Rapport moyenne"]
[null,{"$f":"IF(OR('Consommation et énergies'!AJ155=\"oui\",'Consommation et énergies'!AJ156=\"oui\"),\"oui\",\"non\")","v":"non"},{"$f":"IF(OR('Consommation et énergies'!AK155=\"oui\",'Consommation et énergies'!AK156=\"oui\"),\"oui\",\"non\")","v":"non"},{"$f":"IF('Consommation et énergies'!Z30>0,\"oui\",\"non\")","v":"non"},{"$f":"IF(AND($B$68=\"oui\",$C$68=\"oui\",$D$68=\"oui\",$EM$2=\"-\"),EA2,IF(AND($B$68=\"oui\",$C$68=\"oui\",$D$68=\"oui\",$EM$2<>\"-\"),EL2+EA2,\"-\"))","v":"-"},{"$f":"IF(AND($B$68=\"oui\",$C$68=\"oui\",$D$68=\"oui\",$EM$2=\"-\"),EB2,IF(AND($B$68=\"oui\",$C$68=\"oui\",$D$68=\"oui\",$EM$2<>\"-\"),EM2+EB2,\"-\"))","v":"-"},{"$f":"'Chauffage ventilation'!AG133+Eau!W173+Indicateurs!D41+Indicateurs!D42","v":{"$error":"#N/A"}},{"$f":"IF(E68=\"-\",\"Non mesurable\",IF(E68<(85%*G68),\"Faible\",IF(E68>(110%*G68),\"Importante\",\"Normale\")))","v":"Non mesurable"}]

{"sheet":"liste preconisations","index":14,"n_rows":5,"n_cols":17,"rows_kept":5,"cut":false,"hidden":false,"merged":[]}
["Equipements Chauffage",null,null,"Equipements Eau",null,null,"Equipements Electricité",null,null,"Ecogestes Chauffage",null,null,"Ecogestes Eau",null,null,"Ecogestes Electricité"]
["Conseillé ?","oui",null,"Conseillé ?","oui",null,"Conseillé ?","oui",null,"Conseillé ?","oui",null,"Conseillé ?","oui",null,"Conseillé ?","oui"]
[]
["Étiquettes de lignes",null,null,"Étiquettes de lignes",null,null,"Étiquettes de lignes",null,null,"Étiquettes de lignes",null,null,"Étiquettes de lignes",null,null,"Étiquettes de lignes"]
["Total général",null,null,"Total général",null,null,"Total général",null,null,"Total général",null,null,"Total général",null,null,"Total général"]